Workbook

Sheet Orçamento
O3: UNIDADE ESCOLAR | V3: CÓDIGO INEP
O4: ACERVO DAS ESCOLAS EXTINTAS DE GOIÂNIA
A6: Nmax | O6: OBRA | S6: DATA | V6: CIDADE
A7: =MAX($C$18:$C$330) -> 3 | O7: AMPLIAÇÃO E REFORMA | S7: 2020-09-02 | V7: GOIÂNIA
O9: CRE | R9: ENDEREÇO | S9: REFERÊNCIA AGETOP | V9: REFERÊNCIA SINAPI
O10: GOIÂNIA | R10: AV. HUGO DE CARVALHO RAMOS, VILA IRANY | S10: ABR/19 | T10: ONERADA | V10: OUT/19 | W10: ONERADA
O12: ÁREA EXISTENTE (M²) | R12: ÁREA A CONSTRUIR (M²) | S12: ÁREA A DEMOLIR (M²) | V12: ÁREA TOTAL CONSTRUÍDA (M²)
O13: 2374.26 | R13: 39.49 | V13: 2413.75
L15: FILTRO | O15: PLANILHA ORÇAMENTÁRIA
A16: Nível E | B16: Save Nivel | C16: Nível C | D16: Altura | E16: n1 | F16: n2 | G16: n3 | H16: n4 | I16: n5 | J16: Czero | K16: Cnível | L16: ↓ | M16: Nível | N16: Nível Corrigido | O16: ITEM | P16: TABELA | Q16: CODIGO | R16: DESCRIÇÃO DOS SERVIÇOS | S16: UNID | T16: QUANT | U16: MAT | V16: MO | W16: T.SERVIÇO | X16: OBSERVAÇÕES¹
A17: =CHOOSE(1+LOG(1+2*(ORÇAMENTO.Nivel="Nível 1")+4*(ORÇAMENTO.Nivel="Nível 2")+8*(ORÇAMENTO.Nivel="Nível 3")+16*(ORÇAMENTO.Nivel="Nível 4")+32*(ORÇAMENTO.Nivel="Serviço"),2),0,1,2,3,4,"S") -> S | B17: =IF(OR(C17="s",C17=0),OFFSET(B17,-1,0),C17) -> Save Nivel | C17: =IF(OFFSET(C17,-1,0)="L",1,IF(OFFSET(C17,-1,0)=1,2,IF(OR(A17="s",A17=0),"S",IF(AND(OFFSET(C17,-1,0)=2,A17=4),3,IF(AND(OR(OFFSET(C17,-1,0)="s",OFFSET(C17,-1,0)=0),A17<>"s",A17>OFFSET(B17,-1,0)),OFFSET(B17,-1,0),A17))))) -> S | D17: =IF(OR(C17="S",C17=0),0,IF(ISERROR(K17),J17,SMALL(J17:K17,1))) -> 0 | E17: =IF($C17=1,OFFSET(E17,-1,0)+1,OFFSET(E17,-1,0)) -> n1 | F17: =IF($C17=1,0,IF($C17=2,OFFSET(F17,-1,0)+1,OFFSET(F17,-1,0))) -> n2 | G17: =IF(AND($C17<=2,$C17<>0),0,IF($C17=3,OFFSET(G17,-1,0)+1,OFFSET(G17,-1,0))) -> n3 | H17: =IF(AND($C17<=3,$C17<>0),0,IF($C17=4,OFFSET(H17,-1,0)+1,OFFSET(H17,-1,0))) -> n4 | I17: =IF(AND($C17<=4,$C17<>0),0,IF(AND($C17="S",$W17>0),OFFSET(I17,-1,0)+1,OFFSET(I17,-1,0))) -> n5 | J17: =IF(OR($C17="S",$C17=0),0,MATCH(0,OFFSET($D17,1,$C17,ROW($C$330)-ROW($C17)),0)) -> 0 | K17: =IF(OR($C17="S",$C17=0),0,MATCH(OFFSET($D17,0,$C17)+1,OFFSET($D17,1,$C17,ROW($C$330)-ROW($C17)),0)) -> 0 | M17: Serviço | N17: Serviço | O17: - | P17: SINAPI | R17: (sem código) | S17: - | U17: 0 | V17: 0 | W17: 0
A18: 0 | C18: L | D18: =COUNTA(OFFSET(D18,1,0):D$330) -> 311 | E18: =LEFT(O19,1)-1 -> 0 | L18: F | M18: LOTE | N18: LOTE | O18: AMPLIAÇÃO E REFORMA - ACERVO DAS ESCOLAS EXTINTAS DE GOIÂNIA | W18: 326838.72
A19: 1 | B19: =IF(OR(C19="s",C19=0),OFFSET(B19,-1,0),C19) -> 1 | C19: =IF(OFFSET(C19,-1,0)="L",1,IF(OFFSET(C19,-1,0)=1,2,IF(OR(A19="s",A19=0),"S",IF(AND(OFFSET(C19,-1,0)=2,A19=4),3,IF(AND(OR(OFFSET(C19,-1,0)="s",OFFSET(C19,-1,0)=0),A19<>"s",A19>OFFSET(B19,-1,0)),OFFSET(B19,-1,0),A19))))) -> 1 | D19: =IF(OR(C19="S",C19=0),0,IF(ISERROR(K19),J19,SMALL(J19:K19,1))) -> 275 | E19: =IF($C19=1,OFFSET(E19,-1,0)+1,OFFSET(E19,-1,0)) -> 1 | F19: =IF($C19=1,0,IF($C19=2,OFFSET(F19,-1,0)+1,OFFSET(F19,-1,0))) -> 0 | G19: =IF(AND($C19<=2,$C19<>0),0,IF($C19=3,OFFSET(G19,-1,0)+1,OFFSET(G19,-1,0))) -> 0 | H19: =IF(AND($C19<=3,$C19<>0),0,IF($C19=4,OFFSET(H19,-1,0)+1,OFFSET(H19,-1,0))) -> 0 | I19: 0 | J19: =IF(OR($C19="S",$C19=0),0,MATCH(0,OFFSET($D19,1,$C19,ROW($C$330)-ROW($C19)),0)) -> 311 | K19: =IF(OR($C19="S",$C19=0),0,MATCH(OFFSET($D19,0,$C19)+1,OFFSET($D19,1,$C19,ROW($C$330)-ROW($C19)),0)) -> 275 | L19: F | M19: Nível 1 | N19: Nível 1 | O19: 1. | P19: AGETOP | R19: AMPLIAÇÃO E REFORMA
A20: 2 | B20: =IF(OR(C20="s",C20=0),OFFSET(B20,-1,0),C20) -> 2 | C20: =IF(OFFSET(C20,-1,0)="L",1,IF(OFFSET(C20,-1,0)=1,2,IF(OR(A20="s",A20=0),"S",IF(AND(OFFSET(C20,-1,0)=2,A20=4),3,IF(AND(OR(OFFSET(C20,-1,0)="s",OFFSET(C20,-1,0)=0),A20<>"s",A20>OFFSET(B20,-1,0)),OFFSET(B20,-1,0),A20))))) -> 2 | D20: =IF(OR(C20="S",C20=0),0,IF(ISERROR(K20),J20,SMALL(J20:K20,1))) -> 57 | E20: =IF($C20=1,OFFSET(E20,-1,0)+1,OFFSET(E20,-1,0)) -> 1 | F20: =IF($C20=1,0,IF($C20=2,OFFSET(F20,-1,0)+1,OFFSET(F20,-1,0))) -> 1 | G20: =IF(AND($C20<=2,$C20<>0),0,IF($C20=3,OFFSET(G20,-1,0)+1,OFFSET(G20,-1,0))) -> 0 | H20: =IF(AND($C20<=3,$C20<>0),0,IF($C20=4,OFFSET(H20,-1,0)+1,OFFSET(H20,-1,0))) -> 0 | I20: 0 | J20: 274 | K20: 57 | L20: F | M20: Nível 2 | N20: Nível 2 | O20: 1.1. | P20: AGETOP | R20: SERVIÇOS PRELIMINARES
A21: =CHOOSE(1+LOG(1+2*(ORÇAMENTO.Nivel="Nível 1")+4*(ORÇAMENTO.Nivel="Nível 2")+8*(ORÇAMENTO.Nivel="Nível 3")+16*(ORÇAMENTO.Nivel="Nível 4")+32*(ORÇAMENTO.Nivel="Serviço"),2),0,1,2,3,4,"S") -> 3 | B21: =IF(OR(C21="s",C21=0),OFFSET(B21,-1,0),C21) -> 3 | C21: =IF(OFFSET(C21,-1,0)="L",1,IF(OFFSET(C21,-1,0)=1,2,IF(OR(A21="s",A21=0),"S",IF(AND(OFFSET(C21,-1,0)=2,A21=4),3,IF(AND(OR(OFFSET(C21,-1,0)="s",OFFSET(C21,-1,0)=0),A21<>"s",A21>OFFSET(B21,-1,0)),OFFSET(B21,-1,0),A21))))) -> 3 | D21: =IF(OR(C21="S",C21=0),0,IF(ISERROR(K21),J21,SMALL(J21:K21,1))) -> 5 | E21: =IF($C21=1,OFFSET(E21,-1,0)+1,OFFSET(E21,-1,0)) -> 1 | F21: =IF($C21=1,0,IF($C21=2,OFFSET(F21,-1,0)+1,OFFSET(F21,-1,0))) -> 1 | G21: =IF(AND($C21<=2,$C21<>0),0,IF($C21=3,OFFSET(G21,-1,0)+1,OFFSET(G21,-1,0))) -> 1 | H21: =IF(AND($C21<=3,$C21<>0),0,IF($C21=4,OFFSET(H21,-1,0)+1,OFFSET(H21,-1,0))) -> 0 | I21: =IF(AND($C21<=4,$C21<>0),0,IF(AND($C21="S",$W21>0),OFFSET(I21,-1,0)+1,OFFSET(I21,-1,0))) -> 0 | J21: 56 | K21: 5 | L21: F | M21: Nível 3 | N21: Nível 3 | O21: 1.1.1. | P21: SINAPI | R21: COBERTURA BLOCO 06 | S21: -
A22: S | B22: 3 | C22: S | D22: 0 | E22: 1 | F22: 1 | G22: 1 | H22: 0 | I22: 0 | J22: 0 | K22: 0 | L22: F | M22: Serviço | N22: Serviço | O22: 1.1.1.1. | P22: AGETOP | Q22: 20101 | R22: DEMOLICAO COBERTURA TELHA CERAMICA C/ TRANSP. ATÉ CB. E CARGA | S22: m2 | T22: 156.29
A23: S | B23: 3 | C23: S | D23: 0 | E23: 1 | F23: 1 | G23: 1 | H23: 0 | I23: 0 | J23: 0 | K23: 0 | L23: F | M23: Serviço | N23: Serviço | O23: 1.1.1.2. | P23: AGETOP | Q23: 20103 | R23: DEMOLIÇÃO ESTRUTURA EM MADEIRA TELHADO C/ TRANSP. ATÉ CB. E CARGA | S23: m2 | T23: 156.29
A24: S | B24: 3 | C24: S | D24: 0 | E24: 1 | F24: 1 | G24: 1 | H24: 0 | I24: 0 | J24: 0 | K24: 0 | L24: F | M24: Serviço | N24: Serviço | O24: 1.1.1.3. | P24: SINAPI | Q24: 97640 | R24: REMOÇÃO DE FORROS DE DRYWALL, PVC E FIBROMINERAL, DE FORMA MANUAL, SEM REAPROVEITAMENTO. AF_12/2017 | S24: M2 | T24: 103.86
A25: S | B25: 3 | C25: S | D25: 0 | E25: 1 | F25: 1 | G25: 1 | H25: 0 | I25: 0 | J25: 0 | K25: 0 | L25: F | M25: Serviço | N25: Serviço | O25: 1.1.1.4. | P25: SINAPI | Q25: 97642 | R25: REMOÇÃO DE TRAMA METÁLICA OU DE MADEIRA PARA FORRO, DE FORMA MANUAL, SEM REAPROVEITAMENTO. AF_12/2017 | S25: M2 | T25: 103.86
A26: 3 | B26: 3 | C26: 3 | D26: 5 | E26: 1 | F26: 1 | G26: 2 | H26: 0 | I26: 0 | J26: 51 | K26: 5 | L26: F | M26: Nível 3 | N26: Nível 3 | O26: 1.1.2. | P26: SINAPI | R26: COBERTURA BLOCO 01 | S26: -
A27: S | B27: 3 | C27: S | D27: 0 | E27: 1 | F27: 1 | G27: 2 | H27: 0 | I27: 0 | J27: 0 | K27: 0 | L27: F | M27: Serviço | N27: Serviço | O27: 1.1.2.1. | P27: AGETOP | Q27: 20101 | R27: DEMOLICAO COBERTURA TELHA CERAMICA C/ TRANSP. ATÉ CB. E CARGA | S27: m2 | T27: 292.87
A28: S | B28: 3 | C28: S | D28: 0 | E28: 1 | F28: 1 | G28: 2 | H28: 0 | I28: 0 | J28: 0 | K28: 0 | L28: F | M28: Serviço | N28: Serviço | O28: 1.1.2.2. | P28: AGETOP | Q28: 20103 | R28: DEMOLIÇÃO ESTRUTURA EM MADEIRA TELHADO C/ TRANSP. ATÉ CB. E CARGA | S28: m2 | T28: 292.87
A29: S | B29: 3 | C29: S | D29: 0 | E29: 1 | F29: 1 | G29: 2 | H29: 0 | I29: 0 | J29: 0 | K29: 0 | L29: F | M29: Serviço | N29: Serviço | O29: 1.1.2.3. | P29: SINAPI | Q29: 97640 | R29: REMOÇÃO DE FORROS DE DRYWALL, PVC E FIBROMINERAL, DE FORMA MANUAL, SEM REAPROVEITAMENTO. AF_12/2017 | S29: M2 | T29: 205.92
A30: S | B30: 3 | C30: S | D30: 0 | E30: 1 | F30: 1 | G30: 2 | H30: 0 | I30: 0 | J30: 0 | K30: 0 | L30: F | M30: Serviço | N30: Serviço | O30: 1.1.2.4. | P30: SINAPI | Q30: 97642 | R30: REMOÇÃO DE TRAMA METÁLICA OU DE MADEIRA PARA FORRO, DE FORMA MANUAL, SEM REAPROVEITAMENTO. AF_12/2017 | S30: M2 | T30: 205.92
A31: 3 | B31: 3 | C31: 3 | D31: 5 | E31: 1 | F31: 1 | G31: 3 | H31: 0 | I31: 0 | J31: 46 | K31: 5 | L31: F | M31: Nível 3 | N31: Nível 3 | O31: 1.1.3. | P31: SINAPI | R31: COBERTURA BLOCO 02 | S31: -
A32: S | B32: 3 | C32: S | D32: 0 | E32: 1 | F32: 1 | G32: 3 | H32: 0 | I32: 0 | J32: 0 | K32: 0 | L32: F | M32: Serviço | N32: Serviço | O32: 1.1.3.1. | P32: AGETOP | Q32: 20102 | R32: DEMOLICAO-COBERTURA TELHA FIBROCIMENTO/FIBRA DE VIDRO/SIMILARES C/ TRANSP. ATÉ CB. E CARGA | S32: m2 | T32: 90.16
A33: S | B33: 3 | C33: S | D33: 0 | E33: 1 | F33: 1 | G33: 3 | H33: 0 | I33: 0 | J33: 0 | K33: 0 | L33: F | M33: Serviço | N33: Serviço | O33: 1.1.3.2. | P33: AGETOP | Q33: 20103 | R33: DEMOLIÇÃO ESTRUTURA EM MADEIRA TELHADO C/ TRANSP. ATÉ CB. E CARGA | S33: m2 | T33: 90.16
A34: S | B34: 3 | C34: S | D34: 0 | E34: 1 | F34: 1 | G34: 3 | H34: 0 | I34: 0 | J34: 0 | K34: 0 | L34: F | M34: Serviço | N34: Serviço | O34: 1.1.3.3. | P34: SINAPI | Q34: 97640 | R34: REMOÇÃO DE FORROS DE DRYWALL, PVC E FIBROMINERAL, DE FORMA MANUAL, SEM REAPROVEITAMENTO. AF_12/2017 | S34: M2 | T34: 43.53
A35: S | B35: 3 | C35: S | D35: 0 | E35: 1 | F35: 1 | G35: 3 | H35: 0 | I35: 0 | J35: 0 | K35: 0 | L35: F | M35: Serviço | N35: Serviço | O35: 1.1.3.4. | P35: SINAPI | Q35: 97642 | R35: REMOÇÃO DE TRAMA METÁLICA OU DE MADEIRA PARA FORRO, DE FORMA MANUAL, SEM REAPROVEITAMENTO. AF_12/2017 | S35: M2 | T35: 43.53
A36: 3 | B36: 3 | C36: 3 | D36: 3 | E36: 1 | F36: 1 | G36: 4 | H36: 0 | I36: 0 | J36: 41 | K36: 3 | L36: F | M36: Nível 3 | N36: Nível 3 | O36: 1.1.4. | P36: SINAPI | R36: COBERTURA BLOCO 03 | S36: -
A37: S | B37: 3 | C37: S | D37: 0 | E37: 1 | F37: 1 | G37: 4 | H37: 0 | I37: 0 | J37: 0 | K37: 0 | L37: F | M37: Serviço | N37: Serviço | O37: 1.1.4.1. | P37: AGETOP | Q37: 20102 | R37: DEMOLICAO-COBERTURA TELHA FIBROCIMENTO/FIBRA DE VIDRO/SIMILARES C/ TRANSP. ATÉ CB. E CARGA | S37: m2 | T37: 209.59
A38: S | B38: 3 | C38: S | D38: 0 | E38: 1 | F38: 1 | G38: 4 | H38: 0 | I38: 0 | J38: 0 | K38: 0 | L38: F | M38: Serviço | N38: Serviço | O38: 1.1.4.2. | P38: AGETOP | Q38: 20103 | R38: DEMOLIÇÃO ESTRUTURA EM MADEIRA TELHADO C/ TRANSP. ATÉ CB. E CARGA | S38: m2 | T38: 209.59
A39: 3 | B39: 3 | C39: 3 | D39: 3 | E39: 1 | F39: 1 | G39: 5 | H39: 0 | I39: 0 | J39: 38 | K39: 3 | L39: F | M39: Nível 3 | N39: Nível 3 | O39: 1.1.5. | P39: SINAPI | R39: HALL | S39: -
A40: S | B40: 3 | C40: S | D40: 0 | E40: 1 | F40: 1 | G40: 5 | H40: 0 | I40: 0 | J40: 0 | K40: 0 | L40: F | M40: Serviço | N40: Serviço | O40: 1.1.5.1. | P40: SINAPI | Q40: 97622 | R40: DEMOLIÇÃO DE ALVENARIA DE BLOCO FURADO, DE FORMA MANUAL, SEM REAPROVEITAMENTO. AF_12/2017 | S40: M3 | T40: 1.692 | X40: Referência: AGETOP - 20118
A41: S | B41: 3 | C41: S | D41: 0 | E41: 1 | F41: 1 | G41: 5 | H41: 0 | I41: 0 | J41: 0 | K41: 0 | L41: F | M41: Serviço | N41: Serviço | O41: 1.1.5.2. | P41: SINAPI | Q41: 97645 | R41: REMOÇÃO DE JANELAS, DE FORMA MANUAL, SEM REAPROVEITAMENTO. AF_12/2017 | S41: M2 | T41: 1.29 | X41: Referência: AGETOP - 20106
A42: 3 | B42: 3 | C42: 3 | D42: 9 | E42: 1 | F42: 1 | G42: 6 | H42: 0 | I42: 0 | J42: 35 | K42: 9 | L42: F | M42: Nível 3 | N42: Nível 3 | O42: 1.1.6. | P42: SINAPI | R42: WC FUNCIONÁRIOS / DIRETORIA | S42: -
A43: S | B43: 3 | C43: S | D43: 0 | E43: 1 | F43: 1 | G43: 6 | H43: 0 | I43: 0 | J43: 0 | K43: 0 | L43: F | M43: Serviço | N43: Serviço | O43: 1.1.6.1. | P43: SINAPI | Q43: 97622 | R43: DEMOLIÇÃO DE ALVENARIA DE BLOCO FURADO, DE FORMA MANUAL, SEM REAPROVEITAMENTO. AF_12/2017 | S43: M3 | T43: 4.5885 | X43: Referência: AGETOP - 20118
A44: S | B44: 3 | C44: S | D44: 0 | E44: 1 | F44: 1 | G44: 6 | H44: 0 | I44: 0 | J44: 0 | K44: 0 | L44: F | M44: Serviço | N44: Serviço | O44: 1.1.6.2. | P44: SINAPI | Q44: 97644 | R44: REMOÇÃO DE PORTAS, DE FORMA MANUAL, SEM REAPROVEITAMENTO. AF_12/2017 | S44: M2 | T44: 6.6 | X44: Referência: AGETOP - 20106
A45: S | B45: 3 | C45: S | D45: 0 | E45: 1 | F45: 1 | G45: 6 | H45: 0 | I45: 0 | J45: 0 | K45: 0 | L45: F | M45: Serviço | N45: Serviço | O45: 1.1.6.3. | P45: AGETOP | Q45: 20137 | R45: DEMOLIÇAO BACIA SANITARIA C/ TRANSP. ATÉ CB. E CARGA | S45: Un | T45: 3
A46: S | B46: 3 | C46: S | D46: 0 | E46: 1 | F46: 1 | G46: 6 | H46: 0 | I46: 0 | J46: 0 | K46: 0 | L46: F | M46: Serviço | N46: Serviço | O46: 1.1.6.4. | P46: AGETOP | Q46: 20140 | R46: DEMOLIÇAO DE VÁLVULA DE DESCARGA C/ TRANSP. ATÉ CB. E CARGA | S46: Un | T46: 3
A47: S | B47: 3 | C47: S | D47: 0 | E47: 1 | F47: 1 | G47: 6 | H47: 0 | I47: 0 | J47: 0 | K47: 0 | L47: F | M47: Serviço | N47: Serviço | O47: 1.1.6.5. | P47: AGETOP | Q47: 20138 | R47: DEMOLIÇAO DE LAVATÓRIO C/ TRANSP. ATÉ CB. E CARGA | S47: Un | T47: 1
A48: S | B48: 3 | C48: S | D48: 0 | E48: 1 | F48: 1 | G48: 6 | H48: 0 | I48: 0 | J48: 0 | K48: 0 | L48: F | M48: Serviço | N48: Serviço | O48: 1.1.6.6. | P48: AGETOP | Q48: 20163 | R48: DEMOLIÇÃO DAS INSTALAÇÕES HIDROSANITÁRIAS E AFINS C/ TRANSP. ATÉ CB. E CARGA | S48: H | T48: 1
A49: S | B49: 3 | C49: S | D49: 0 | E49: 1 | F49: 1 | G49: 6 | H49: 0 | I49: 0 | J49: 0 | K49: 0 | L49: F | M49: Serviço | N49: Serviço | O49: 1.1.6.7. | P49: AGETOP | Q49: 20112 | R49: DEM.PISO CERAM. INCLUS. RETIRADA DE CONTRAPISO SOBRE LASTRO CONC.C/TR.CB.E CARGA | S49: m2 | T49: 32.79
A50: S | B50: 3 | C50: S | D50: 0 | E50: 1 | F50: 1 | G50: 6 | H50: 0 | I50: 0 | J50: 0 | K50: 0 | L50: F | M50: Serviço | N50: Serviço | O50: 1.1.6.8. | P50: SINAPI | Q50: 97633 | R50: DEMOLIÇÃO DE REVESTIMENTO CERÂMICO, DE FORMA MANUAL, SEM REAPROVEITAMENTO. AF_12/2017 | S50: M2 | T50: 15.7 | X50: Referência: AGETOP - 20115
A51: 3 | B51: 3 | C51: 3 | D51: 3 | E51: 1 | F51: 1 | G51: 7 | H51: 0 | I51: 0 | J51: 26 | K51: 3 | L51: F | M51: Nível 3 | N51: Nível 3 | O51: 1.1.7. | P51: SINAPI | R51: ACESSIBILIDADE | S51: -
A52: S | B52: 3 | C52: S | D52: 0 | E52: 1 | F52: 1 | G52: 7 | H52: 0 | I52: 0 | J52: 0 | K52: 0 | L52: F | M52: Serviço | N52: Serviço | O52: 1.1.7.1. | P52: COMPOSIÇÃO | Q52: COMP 010_SEE | R52: DEMOLIÇÃO DE GRADE/GRELHA/CORRIMÃO/GUARDA CORPO - METÁLICO | S52: M2 | T52: 21.5496
A53: S | B53: 3 | C53: S | D53: 0 | E53: 1 | F53: 1 | G53: 7 | H53: 0 | I53: 0 | J53: 0 | K53: 0 | L53: F | M53: Serviço | N53: Serviço | O53: 1.1.7.2. | P53: AGETOP | Q53: 20121 | R53: DEM. MANUAL EM CONCR.SIMPLES C/TR.ATE CB.E CARGA (O.C.) | S53: m3 | T53: 1.9485
A54: 3 | B54: 3 | C54: 3 | D54: 3 | E54: 1 | F54: 1 | G54: 8 | H54: 0 | I54: 0 | J54: 23 | K54: 3 | L54: F | M54: Nível 3 | N54: Nível 3 | O54: 1.1.8. | P54: SINAPI | R54: COBERTURA BLOCO 04 | S54: -
A55: S | B55: 3 | C55: S | D55: 0 | E55: 1 | F55: 1 | G55: 8 | H55: 0 | I55: 0 | J55: 0 | K55: 0 | L55: F | M55: Serviço | N55: Serviço | O55: 1.1.8.1. | P55: AGETOP | Q55: 20102 | R55: DEMOLICAO-COBERTURA TELHA FIBROCIMENTO/FIBRA DE VIDRO/SIMILARES C/ TRANSP. ATÉ CB. E CARGA | S55: m2 | T55: 236.92
A56: S | B56: 3 | C56: S | D56: 0 | E56: 1 | F56: 1 | G56: 8 | H56: 0 | I56: 0 | J56: 0 | K56: 0 | L56: F | M56: Serviço | N56: Serviço | O56: 1.1.8.2. | P56: AGETOP | Q56: 20103 | R56: DEMOLIÇÃO ESTRUTURA EM MADEIRA TELHADO C/ TRANSP. ATÉ CB. E CARGA | S56: m2 | T56: 236.92
A57: 3 | B57: 3 | C57: 3 | D57: 6 | E57: 1 | F57: 1 | G57: 9 | H57: 0 | I57: 0 | J57: 20 | K57: 6 | L57: F | M57: Nível 3 | N57: Nível 3 | O57: 1.1.9. | P57: SINAPI | R57: VESTIÁRIO | S57: -
A58: S | B58: 3 | C58: S | D58: 0 | E58: 1 | F58: 1 | G58: 9 | H58: 0 | I58: 0 | J58: 0 | K58: 0 | L58: F | M58: Serviço | N58: Serviço | O58: 1.1.9.1. | P58: SINAPI | Q58: 97622 | R58: DEMOLIÇÃO DE ALVENARIA DE BLOCO FURADO, DE FORMA MANUAL, SEM REAPROVEITAMENTO. AF_12/2017 | S58: M3 | T58: 9.651 | X58: Referência: AGETOP - 20118
A59: S | B59: 3 | C59: S | D59: 0 | E59: 1 | F59: 1 | G59: 9 | H59: 0 | I59: 0 | J59: 0 | K59: 0 | L59: F | M59: Serviço | N59: Serviço | O59: 1.1.9.2. | P59: SINAPI | Q59: 97644 | R59: REMOÇÃO DE PORTAS, DE FORMA MANUAL, SEM REAPROVEITAMENTO. AF_12/2017 | S59: M2 | T59: 14.64 | X59: Referência: AGETOP - 20106
A60: S | B60: 3 | C60: S | D60: 0 | E60: 1 | F60: 1 | G60: 9 | H60: 0 | I60: 0 | J60: 0 | K60: 0 | L60: F | M60: Serviço | N60: Serviço | O60: 1.1.9.3. | P60: AGETOP | Q60: 20139 | R60: DEMOLIÇAO DE BANCADAS C/ TRANSP. ATÉ CB. E CARGA | S60: m2 | T60: 0.48
A61: S | B61: 3 | C61: S | D61: 0 | E61: 1 | F61: 1 | G61: 9 | H61: 0 | I61: 0 | J61: 0 | K61: 0 | L61: F | M61: Serviço | N61: Serviço | O61: 1.1.9.4. | P61: AGETOP | Q61: 20112 | R61: DEM.PISO CERAM. INCLUS. RETIRADA DE CONTRAPISO SOBRE LASTRO CONC.C/TR.CB.E CARGA | S61: m2 | T61: 27.72
A62: S | B62: 3 | C62: S | D62: 0 | E62: 1 | F62: 1 | G62: 9 | H62: 0 | I62: 0 | J62: 0 | K62: 0 | L62: F | M62: Serviço | N62: Serviço | O62: 1.1.9.5. | P62: SINAPI | Q62: 97633 | R62: DEMOLIÇÃO DE REVESTIMENTO CERÂMICO, DE FORMA MANUAL, SEM REAPROVEITAMENTO. AF_12/2017 | S62: M2 | T62: 56.94 | X62: Referência: AGETOP - 20115
A63: 3 | B63: 3 | C63: 3 | D63: 6 | E63: 1 | F63: 1 | G63: 10 | H63: 0 | I63: 0 | J63: 14 | K63: 6 | L63: F | M63: Nível 3 | N63: Nível 3 | O63: 1.1.10. | P63: SINAPI | R63: BLOCO 02 | S63: -
A64: S | B64: 3 | C64: S | D64: 0 | E64: 1 | F64: 1 | G64: 10 | H64: 0 | I64: 0 | J64: 0 | K64: 0 | L64: F | M64: Serviço | N64: Serviço | O64: 1.1.10.1. | P64: SINAPI | Q64: 97622 | R64: DEMOLIÇÃO DE ALVENARIA DE BLOCO FURADO, DE FORMA MANUAL, SEM REAPROVEITAMENTO. AF_12/2017 | S64: M3 | T64: 1.0785 | X64: Referência: AGETOP - 20118
A65: S | B65: 3 | C65: S | D65: 0 | E65: 1 | F65: 1 | G65: 10 | H65: 0 | I65: 0 | J65: 0 | K65: 0 | L65: F | M65: Serviço | N65: Serviço | O65: 1.1.10.2. | P65: AGETOP | Q65: 20163 | R65: DEMOLIÇÃO DAS INSTALAÇÕES HIDROSANITÁRIAS E AFINS C/ TRANSP. ATÉ CB. E CARGA | S65: H | T65: 1
A66: S | B66: 3 | C66: S | D66: 0 | E66: 1 | F66: 1 | G66: 10 | H66: 0 | I66: 0 | J66: 0 | K66: 0 | L66: F | M66: Serviço | N66: Serviço | O66: 1.1.10.3. | P66: AGETOP | Q66: 20139 | R66: DEMOLIÇAO DE BANCADAS C/ TRANSP. ATÉ CB. E CARGA | S66: m2 | T66: 1.77
A67: S | B67: 3 | C67: S | D67: 0 | E67: 1 | F67: 1 | G67: 10 | H67: 0 | I67: 0 | J67: 0 | K67: 0 | L67: F | M67: Serviço | N67: Serviço | O67: 1.1.10.4. | P67: SINAPI | Q67: 97633 | R67: DEMOLIÇÃO DE REVESTIMENTO CERÂMICO, DE FORMA MANUAL, SEM REAPROVEITAMENTO. AF_12/2017 | S67: M2 | T67: 60.75 | X67: Referência: AGETOP - 20115
A68: S | B68: 3 | C68: S | D68: 0 | E68: 1 | F68: 1 | G68: 10 | H68: 0 | I68: 0 | J68: 0 | K68: 0 | L68: F | M68: Serviço | N68: Serviço | O68: 1.1.10.5. | P68: AGETOP | Q68: 20112 | R68: DEM.PISO CERAM. INCLUS. RETIRADA DE CONTRAPISO SOBRE LASTRO CONC.C/TR.CB.E CARGA | S68: m2 | T68: 81.17
A69: 3 | B69: 3 | C69: 3 | D69: 2 | E69: 1 | F69: 1 | G69: 11 | H69: 0 | I69: 0 | J69: 8 | K69: 2 | L69: F | M69: Nível 3 | N69: Nível 3 | O69: 1.1.11. | P69: SINAPI | R69: SECRETARIA | S69: -
A70: S | B70: 3 | C70: S | D70: 0 | E70: 1 | F70: 1 | G70: 11 | H70: 0 | I70: 0 | J70: 0 | K70: 0 | L70: F | M70: Serviço | N70: Serviço | O70: 1.1.11.1. | P70: AGETOP | Q70: 20139 | R70: DEMOLIÇAO DE BANCADAS C/ TRANSP. ATÉ CB. E CARGA | S70: m2 | T70: 2
A71: 3 | B71: 3 | C71: 3 | D71: 4 | E71: 1 | F71: 1 | G71: 12 | H71: 0 | I71: 0 | J71: 6 | K71: 4 | L71: F | M71: Nível 3 | N71: Nível 3 | O71: 1.1.12. | P71: SINAPI | R71: INST. ELÉTRICAS | S71: -
A72: S | B72: 3 | C72: S | D72: 0 | E72: 1 | F72: 1 | G72: 12 | H72: 0 | I72: 0 | J72: 0 | K72: 0 | L72: F | M72: Serviço | N72: Serviço | O72: 1.1.12.1. | P72: SINAPI | Q72: 97661 | R72: REMOÇÃO DE CABOS ELÉTRICOS, DE FORMA MANUAL, SEM REAPROVEITAMENTO. AF_12/2017 | S72: M | T72: 1250
A73: S | B73: 3 | C73: S | D73: 0 | E73: 1 | F73: 1 | G73: 12 | H73: 0 | I73: 0 | J73: 0 | K73: 0 | L73: F | M73: Serviço | N73: Serviço | O73: 1.1.12.2. | P73: SINAPI | Q73: 97660 | R73: REMOÇÃO DE INTERRUPTORES/TOMADAS ELÉTRICAS, DE FORMA MANUAL, SEM REAPROVEITAMENTO. AF_12/2017 | S73: UN | T73: 60
A74: S | B74: 3 | C74: S | D74: 0 | E74: 1 | F74: 1 | G74: 12 | H74: 0 | I74: 0 | J74: 0 | K74: 0 | L74: F | M74: Serviço | N74: Serviço | O74: 1.1.12.3. | P74: SINAPI | Q74: 97665 | R74: REMOÇÃO DE LUMINÁRIAS, DE FORMA MANUAL, SEM REAPROVEITAMENTO. AF_12/2017 | S74: UN | T74: 280
A75: =CHOOSE(1+LOG(1+2*(ORÇAMENTO.Nivel="Nível 1")+4*(ORÇAMENTO.Nivel="Nível 2")+8*(ORÇAMENTO.Nivel="Nível 3")+16*(ORÇAMENTO.Nivel="Nível 4")+32*(ORÇAMENTO.Nivel="Serviço"),2),0,1,2,3,4,"S") -> 3 | B75: =IF(OR(C75="s",C75=0),OFFSET(B75,-1,0),C75) -> 3 | C75: =IF(OFFSET(C75,-1,0)="L",1,IF(OFFSET(C75,-1,0)=1,2,IF(OR(A75="s",A75=0),"S",IF(AND(OFFSET(C75,-1,0)=2,A75=4),3,IF(AND(OR(OFFSET(C75,-1,0)="s",OFFSET(C75,-1,0)=0),A75<>"s",A75>OFFSET(B75,-1,0)),OFFSET(B75,-1,0),A75))))) -> 3 | D75: =IF(OR(C75="S",C75=0),0,IF(ISERROR(K75),J75,SMALL(J75:K75,1))) -> 2 | E75: =IF($C75=1,OFFSET(E75,-1,0)+1,OFFSET(E75,-1,0)) -> 1 | F75: =IF($C75=1,0,IF($C75=2,OFFSET(F75,-1,0)+1,OFFSET(F75,-1,0))) -> 1 | G75: =IF(AND($C75<=2,$C75<>0),0,IF($C75=3,OFFSET(G75,-1,0)+1,OFFSET(G75,-1,0))) -> 13 | H75: =IF(AND($C75<=3,$C75<>0),0,IF($C75=4,OFFSET(H75,-1,0)+1,OFFSET(H75,-1,0))) -> 0 | I75: =IF(AND($C75<=4,$C75<>0),0,IF(AND($C75="S",$W75>0),OFFSET(I75,-1,0)+1,OFFSET(I75,-1,0))) -> 0 | J75: 2 | L75: F | M75: Nível 3 | N75: Nível 3 | O75: 1.1.13. | P75: SINAPI | R75: OUTROS | S75: -
A76: S | B76: 3 | C76: S | D76: 0 | E76: 1 | F76: 1 | G76: 13 | H76: 0 | I76: 0 | J76: 0 | K76: 0 | L76: F | M76: Serviço | N76: Serviço | O76: 1.1.13.1. | P76: SINAPI | Q76: 74209/1 | R76: PLACA DE OBRA EM CHAPA DE ACO GALVANIZADO | S76: M2 | T76: 7.5 | X76: Referência: AGETOP - 21301
A77: 2 | B77: 2 | C77: 2 | D77: 3 | E77: 1 | F77: 2 | G77: 0 | H77: 0 | I77: 0 | J77: 217 | K77: 3 | L77: F | M77: Nível 2 | N77: Nível 2 | O77: 1.2. | P77: AGETOP | R77: TRANSPORTES | S77: -
A78: S | B78: 2 | C78: S | D78: 0 | E78: 1 | F78: 2 | G78: 0 | H78: 0 | I78: 0 | J78: 0 | K78: 0 | L78: F | M78: Serviço | N78: Serviço | O78: 1.2.0.1. | P78: SINAPI | Q78: 72900 | R78: TRANSPORTE DE ENTULHO COM CAMINHAO BASCULANTE 6 M3, RODOVIA PAVIMENTADA, DMT 0,5 A 1,0 KM | S78: M3 | T78: 112.723
A79: S | B79: 2 | C79: S | D79: 0 | E79: 1 | F79: 2 | G79: 0 | H79: 0 | I79: 0 | J79: 0 | K79: 0 | L79: F | M79: Serviço | N79: Serviço | O79: 1.2.0.2. | P79: SINAPI | Q79: 72897 | R79: CARGA MANUAL DE ENTULHO EM CAMINHAO BASCULANTE 6 M3 | S79: M3 | T79: 112.723
A80: 2 | B80: 2 | C80: 2 | D80: 13 | E80: 1 | F80: 3 | G80: 0 | H80: 0 | I80: 0 | J80: 214 | K80: 13 | L80: F | M80: Nível 2 | N80: Nível 2 | O80: 1.3. | P80: AGETOP | R80: SERVIÇO EM TERRA | S80: -
A81: 3 | B81: 3 | C81: 3 | D81: 3 | E81: 1 | F81: 3 | G81: 1 | H81: 0 | I81: 0 | J81: 12 | K81: 3 | L81: F | M81: Nível 3 | N81: Nível 3 | O81: 1.3.1. | P81: SINAPI | R81: HALL | S81: -
A82: S | B82: 3 | C82: S | D82: 0 | E82: 1 | F82: 3 | G82: 1 | H82: 0 | I82: 0 | J82: 0 | K82: 0 | L82: F | M82: Serviço | N82: Serviço | O82: 1.3.1.1. | P82: AGETOP | Q82: 41140 | R82: REGULARIZAÇÃO DO TERRENO SEM APILOAMENTO COM TRANSPORTE MANUAL DA TERRA ESCAVADA | S82: m2 | T82: 23.77
A83: S | B83: 3 | C83: S | D83: 0 | E83: 1 | F83: 3 | G83: 1 | H83: 0 | I83: 0 | J83: =IF(OR($C83="S",$C83=0),0,MATCH(0,OFFSET($D83,1,$C83,ROW($C$330)-ROW($C83)),0)) -> 0 | K83: =IF(OR($C83="S",$C83=0),0,MATCH(OFFSET($D83,0,$C83)+1,OFFSET($D83,1,$C83,ROW($C$330)-ROW($C83)),0)) -> 0 | L83: F | M83: Serviço | N83: Serviço | O83: 1.3.1.2. | P83: AGETOP | Q83: 41002 | R83: APILOAMENTO | S83: m2 | T83: 23.77
A84: 3 | B84: 3 | C84: 3 | D84: 6 | E84: 1 | F84: 3 | G84: 2 | H84: 0 | I84: 0 | J84: 9 | K84: 6 | L84: F | M84: Nível 3 | N84: Nível 3 | O84: 1.3.2. | P84: SINAPI | R84: ACESSIBILIDADE | S84: -
A85: S | B85: 3 | C85: S | D85: 0 | E85: 1 | F85: 3 | G85: 2 | H85: 0 | I85: 0 | J85: 0 | K85: 0 | L85: F | M85: Serviço | N85: Serviço | O85: 1.3.2.1. | P85: SINAPI | Q85: 79480 | R85: ESCAVACAO MECANICA CAMPO ABERTO EM SOLO EXCETO ROCHA ATE 2,00M PROFUNDIDADE | S85: M3 | T85: 3.875 | X85: Referência: AGETOP - 41004
A86: S | B86: 3 | C86: S | D86: 0 | E86: 1 | F86: 3 | G86: 2 | H86: 0 | I86: 0 | J86: 0 | K86: 0 | L86: F | M86: Serviço | N86: Serviço | O86: 1.3.2.2. | P86: SINAPI | Q86: 72898 | R86: CARGA E DESCARGA MECANIZADAS DE ENTULHO EM CAMINHAO BASCULANTE 6 M3 | S86: M3 | T86: 3.875 | X86: Referência: AGETOP - 41005
A87: S | B87: 3 | C87: S | D87: 0 | E87: 1 | F87: 3 | G87: 2 | H87: 0 | I87: 0 | J87: 0 | K87: 0 | L87: F | M87: Serviço | N87: Serviço | O87: 1.3.2.3. | P87: AGETOP | Q87: 41012 | R87: INDENIZAÇÃO DE JAZIDA | S87: m3 | T87: 3.875
A88: S | B88: 3 | C88: S | D88: 0 | E88: 1 | F88: 3 | G88: 2 | H88: 0 | I88: 0 | J88: 0 | K88: 0 | L88: F | M88: Serviço | N88: Serviço | O88: 1.3.2.4. | P88: AGETOP | Q88: 41006 | R88: TRANSPORTE DE MATERIAL ESCAVADO M3.KM | S88: m3km | T88: 38.75
A89: S | B89: 3 | C89: S | D89: 0 | E89: 1 | F89: 3 | G89: 2 | H89: 0 | I89: 0 | J89: 0 | K89: 0 | L89: F | M89: Serviço | N89: Serviço | O89: 1.3.2.5. | P89: SINAPI | Q89: 74005/2 | R89: COMPACTACAO MECANICA C/ CONTROLE DO GC>=95% DO PN (AREAS) (C/MONIVELADORA 140 HP E ROLO COMPRESSOR VIBRATORIO 80 HP) | S89: M3 | T89: 3.1 | X89: Referência: AGETOP - 41008
A90: 3 | B90: 3 | C90: 3 | D90: 3 | E90: 1 | F90: 3 | G90: 3 | H90: 0 | I90: 0 | J90: 3 | K90: 124 | L90: F | M90: Nível 3 | N90: Nível 3 | O90: 1.3.3. | P90: SINAPI | R90: INST. ELÉTRICAS | S90: -
A91: S | B91: 3 | C91: S | D91: 0 | E91: 1 | F91: 3 | G91: 3 | H91: 0 | I91: 0 | J91: 0 | K91: 0 | L91: F | M91: Serviço | N91: Serviço | O91: 1.3.3.1. | P91: SINAPI | Q91: 93358 | R91: ESCAVAÇÃO MANUAL DE VALA COM PROFUNDIDADE MENOR OU IGUAL A 1,30 M. AF_03/2016 | S91: M3 | T91: 4.32 | X91: Referência: AGETOP - 40101
A92: S | B92: 3 | C92: S | D92: 0 | E92: 1 | F92: 3 | G92: 3 | H92: 0 | I92: 0 | J92: 0 | K92: 0 | L92: F | M92: Serviço | N92: Serviço | O92: 1.3.3.2. | P92: SINAPI | Q92: 96995 | R92: REATERRO MANUAL APILOADO COM SOQUETE. AF_10/2017 | S92: M3 | T92: 4.32 | X92: Referência: AGETOP - 40902
A93: =CHOOSE(1+LOG(1+2*(ORÇAMENTO.Nivel="Nível 1")+4*(ORÇAMENTO.Nivel="Nível 2")+8*(ORÇAMENTO.Nivel="Nível 3")+16*(ORÇAMENTO.Nivel="Nível 4")+32*(ORÇAMENTO.Nivel="Serviço"),2),0,1,2,3,4,"S") -> 2 | B93: =IF(OR(C93="s",C93=0),OFFSET(B93,-1,0),C93) -> 2 | C93: =IF(OFFSET(C93,-1,0)="L",1,IF(OFFSET(C93,-1,0)=1,2,IF(OR(A93="s",A93=0),"S",IF(AND(OFFSET(C93,-1,0)=2,A93=4),3,IF(AND(OR(OFFSET(C93,-1,0)="s",OFFSET(C93,-1,0)=0),A93<>"s",A93>OFFSET(B93,-1,0)),OFFSET(B93,-1,0),A93))))) -> 2 | D93: =IF(OR(C93="S",C93=0),0,IF(ISERROR(K93),J93,SMALL(J93:K93,1))) -> 37 | E93: =IF($C93=1,OFFSET(E93,-1,0)+1,OFFSET(E93,-1,0)) -> 1 | F93: =IF($C93=1,0,IF($C93=2,OFFSET(F93,-1,0)+1,OFFSET(F93,-1,0))) -> 4 | G93: =IF(AND($C93<=2,$C93<>0),0,IF($C93=3,OFFSET(G93,-1,0)+1,OFFSET(G93,-1,0))) -> 0 | H93: =IF(AND($C93<=3,$C93<>0),0,IF($C93=4,OFFSET(H93,-1,0)+1,OFFSET(H93,-1,0))) -> 0 | I93: =IF(AND($C93<=4,$C93<>0),0,IF(AND($C93="S",$W93>0),OFFSET(I93,-1,0)+1,OFFSET(I93,-1,0))) -> 0 | J93: 201 | K93: 37 | L93: F | M93: Nível 2 | N93: Nível 2 | O93: 1.4. | R93: INSTALAÇÕES ELÉTRICAS | S93: -
A94: S | B94: 2 | C94: S | D94: 0 | E94: 1 | F94: 4 | G94: 0 | H94: 0 | I94: 0 | J94: 0 | K94: 0 | L94: F | M94: Serviço | N94: Serviço | O94: 1.4.0.1. | P94: AGETOP | Q94: 70351 | R94: BRACADEIRA METALICA TIPO "U" DIAM. 3/4" | S94: Un | T94: 200
A95: S | B95: 2 | C95: S | D95: 0 | E95: 1 | F95: 4 | G95: 0 | H95: 0 | I95: 0 | J95: 0 | K95: 0 | L95: F | M95: Serviço | N95: Serviço | O95: 1.4.0.2. | P95: AGETOP | Q95: 70352 | R95: BRACADEIRA METALICA TIPO "U" DIAM. 1" | S95: Un | T95: 120
A96: S | B96: 2 | C96: S | D96: 0 | E96: 1 | F96: 4 | G96: 0 | H96: 0 | I96: 0 | J96: 0 | K96: 0 | L96: F | M96: Serviço | N96: Serviço | O96: 1.4.0.3. | P96: AGETOP | Q96: 70353 | R96: BRACADEIRA METALICA TIPO "U" DIAM. 1.1/4" | S96: Un | T96: 4
A97: =CHOOSE(1+LOG(1+2*(ORÇAMENTO.Nivel="Nível 1")+4*(ORÇAMENTO.Nivel="Nível 2")+8*(ORÇAMENTO.Nivel="Nível 3")+16*(ORÇAMENTO.Nivel="Nível 4")+32*(ORÇAMENTO.Nivel="Serviço"),2),0,1,2,3,4,"S") -> S | B97: 2 | C97: S | D97: 0 | E97: 1 | F97: 4 | G97: 0 | H97: 0 | I97: 0 | J97: 0 | K97: 0 | L97: F | M97: Serviço | N97: Serviço | O97: 1.4.0.4. | P97: AGETOP | Q97: 70354 | R97: BRACADEIRA METALICA TIPO "U" DIAM. 1.1/2" | S97: Un | T97: 40
A98: S | B98: 2 | C98: S | D98: 0 | E98: 1 | F98: 4 | G98: 0 | H98: 0 | I98: 0 | J98: 0 | K98: 0 | L98: F | M98: Serviço | N98: Serviço | O98: 1.4.0.5. | P98: AGETOP | Q98: 70421 | R98: BUCHA E ARRUELA METALICA DIAM. 3/4" | S98: PR | T98: 30
A99: S | B99: 2 | C99: S | D99: 0 | E99: 1 | F99: 4 | G99: 0 | H99: 0 | I99: 0 | J99: 0 | K99: 0 | L99: F | M99: Serviço | N99: Serviço | O99: 1.4.0.6. | P99: AGETOP | Q99: 70422 | R99: BUCHA E ARRUELA METALICA DIAM. 1" | S99: PR | T99: 30
A100: S | B100: 2 | C100: S | D100: 0 | E100: 1 | F100: 4 | G100: 0 | H100: 0 | I100: 0 | J100: 0 | K100: 0 | L100: F | M100: Serviço | N100: Serviço | O100: 1.4.0.7. | P100: AGETOP | Q100: 70424 | R100: BUCHA E ARRUELA METALICA DIAM. 1.1/2" | S100: PR | T100: 20
A101: S | B101: 2 | C101: S | D101: 0 | E101: 1 | F101: 4 | G101: 0 | H101: 0 | I101: 0 | J101: 0 | K101: 0 | L101: F | M101: Serviço | N101: Serviço | O101: 1.4.0.8. | P101: SINAPI | Q101: 92980 | R101: CABO DE COBRE FLEXÍVEL ISOLADO, 10 MM², ANTI-CHAMA 0,6/1,0 KV, PARA DISTRIBUIÇÃO - FORNECIMENTO E INSTALAÇÃO. AF_12/2015 | S101: M | T101: 300
A102: S | B102: 2 | C102: S | D102: 0 | E102: 1 | F102: 4 | G102: 0 | H102: 0 | I102: 0 | J102: 0 | K102: 0 | L102: F | M102: Serviço | N102: Serviço | O102: 1.4.0.9. | P102: SINAPI | Q102: 92982 | R102: CABO DE COBRE FLEXÍVEL ISOLADO, 16 MM², ANTI-CHAMA 0,6/1,0 KV, PARA DISTRIBUIÇÃO - FORNECIMENTO E INSTALAÇÃO. AF_12/2015 | S102: M | T102: 35
A103: S | B103: 2 | C103: S | D103: 0 | E103: 1 | F103: 4 | G103: 0 | H103: 0 | I103: 0 | J103: 0 | K103: 0 | L103: F | M103: Serviço | N103: Serviço | O103: 1.4.0.10. | P103: SINAPI | Q103: 92984 | R103: CABO DE COBRE FLEXÍVEL ISOLADO, 25 MM², ANTI-CHAMA 0,6/1,0 KV, PARA DISTRIBUIÇÃO - FORNECIMENTO E INSTALAÇÃO. AF_12/2015 | S103: M | T103: 100 | X103: Referência: AGETOP - 70511
A104: S | B104: 2 | C104: S | D104: 0 | E104: 1 | F104: 4 | G104: 0 | H104: 0 | I104: 0 | J104: 0 | K104: 0 | L104: F | M104: Serviço | N104: Serviço | O104: 1.4.0.11. | P104: SINAPI | Q104: 96971 | R104: CORDOALHA DE COBRE NU 16 MM², NÃO ENTERRADA, COM ISOLADOR - FORNECIMENTO E INSTALAÇÃO. AF_12/2017 | S104: M | T104: 55 | X104: Referência: AGETOP - 70541
A105: S | B105: 2 | C105: S | D105: 0 | E105: 1 | F105: 4 | G105: 0 | H105: 0 | I105: 0 | J105: 0 | K105: 0 | L105: F | M105: Serviço | N105: Serviço | O105: 1.4.0.12. | P105: SINAPI | Q105: 91927 | R105: CABO DE COBRE FLEXÍVEL ISOLADO, 2,5 MM², ANTI-CHAMA 0,6/1,0 KV, PARA CIRCUITOS TERMINAIS - FORNECIMENTO E INSTALAÇÃO. AF_12/2015 | S105: M | T105: 200 | X105: Referência: AGETOP - 70581
A106: S | B106: 2 | C106: S | D106: 0 | E106: 1 | F106: 4 | G106: 0 | H106: 0 | I106: 0 | J106: 0 | K106: 0 | L106: F | M106: Serviço | N106: Serviço | O106: 1.4.0.13. | P106: SINAPI | Q106: 91929 | R106: CABO DE COBRE FLEXÍVEL ISOLADO, 4 MM², ANTI-CHAMA 0,6/1,0 KV, PARA CIRCUITOS TERMINAIS - FORNECIMENTO E INSTALAÇÃO. AF_12/2015 | S106: M | T106: 1050 | X106: Referência: AGETOP - 70582
A107: S | B107: 2 | C107: S | D107: 0 | E107: 1 | F107: 4 | G107: 0 | H107: 0 | I107: 0 | J107: 0 | K107: 0 | L107: F | M107: Serviço | N107: Serviço | O107: 1.4.0.14. | P107: SINAPI | Q107: 92868 | R107: CAIXA RETANGULAR 4" X 2" MÉDIA (1,30 M DO PISO), METÁLICA, INSTALADA EM PAREDE - FORNECIMENTO E INSTALAÇÃO. AF_12/2015 | S107: UN | T107: 68 | X107: Referência: AGETOP - 70691
A108: S | B108: 2 | C108: S | D108: 0 | E108: 1 | F108: 4 | G108: 0 | H108: 0 | I108: 0 | J108: 0 | K108: 0 | L108: F | M108: Serviço | N108: Serviço | O108: 1.4.0.15. | P108: SINAPI | Q108: 93653 | R108: DISJUNTOR MONOPOLAR TIPO DIN, CORRENTE NOMINAL DE 10A - FORNECIMENTO E INSTALAÇÃO. AF_04/2016 | S108: UN | T108: 10
A109: S | B109: 2 | C109: S | D109: 0 | E109: 1 | F109: 4 | G109: 0 | H109: 0 | I109: 0 | J109: 0 | K109: 0 | L109: F | M109: Serviço | N109: Serviço | O109: 1.4.0.16. | P109: SINAPI | Q109: 93654 | R109: DISJUNTOR MONOPOLAR TIPO DIN, CORRENTE NOMINAL DE 16A - FORNECIMENTO E INSTALAÇÃO. AF_04/2016 | S109: UN | T109: 5
A110: S | B110: 2 | C110: S | D110: 0 | E110: 1 | F110: 4 | G110: 0 | H110: 0 | I110: 0 | J110: 0 | K110: 0 | L110: F | M110: Serviço | N110: Serviço | O110: 1.4.0.17. | P110: SINAPI | Q110: 93656 | R110: DISJUNTOR MONOPOLAR TIPO DIN, CORRENTE NOMINAL DE 25A - FORNECIMENTO E INSTALAÇÃO. AF_04/2016 | S110: UN | T110: 10
A111: S | B111: 2 | C111: S | D111: 0 | E111: 1 | F111: 4 | G111: 0 | H111: 0 | I111: =IF(AND($C111<=4,$C111<>0),0,IF(AND($C111="S",$W111>0),OFFSET(I111,-1,0)+1,OFFSET(I111,-1,0))) -> 0 | J111: 0 | K111: 0 | L111: F | M111: Serviço | N111: Serviço | O111: 1.4.0.18. | P111: SINAPI | Q111: 93673 | R111: DISJUNTOR TRIPOLAR TIPO DIN, CORRENTE NOMINAL DE 50A - FORNECIMENTO E INSTALAÇÃO. AF_04/2016 | S111: UN | T111: 4 | X111: Referência: AGETOP - 71174
A112: S | B112: 2 | C112: S | D112: 0 | E112: 1 | F112: 4 | G112: 0 | H112: 0 | I112: 0 | J112: 0 | K112: 0 | L112: F | M112: Serviço | N112: Serviço | O112: 1.4.0.19. | P112: SINAPI | Q112: 74130/5 | R112: DISJUNTOR TERMOMAGNETICO TRIPOLAR PADRAO NEMA (AMERICANO) 60 A 100A 240V, FORNECIMENTO E INSTALACAO | S112: UN | T112: 2
A113: S | B113: 2 | C113: S | D113: 0 | E113: 1 | F113: 4 | G113: 0 | H113: 0 | I113: 0 | J113: 0 | K113: 0 | L113: F | M113: Serviço | N113: Serviço | O113: 1.4.0.20. | P113: AGETOP | Q113: 71184 | R113: DISPOSITIVO DE PROTEÇÃO CONTRA SURTOS (D.P.S.) 275V DE 8 A 40KA | S113: Un | T113: 9
A114: S | B114: 2 | C114: S | D114: 0 | E114: 1 | F114: 4 | G114: 0 | H114: 0 | I114: 0 | J114: 0 | K114: 0 | L114: F | M114: Serviço | N114: Serviço | O114: 1.4.0.21. | P114: SINAPI | Q114: 95749 | R114: ELETRODUTO DE AÇO GALVANIZADO, CLASSE LEVE, DN 20 MM (3/4), APARENTE, INSTALADO EM PAREDE - FORNECIMENTO E INSTALAÇÃO. AF_11/2016_P | S114: M | T114: 200 | X114: Referência: AGETOP - 71211
A115: S | B115: 2 | C115: S | D115: 0 | E115: 1 | F115: 4 | G115: 0 | H115: 0 | I115: 0 | J115: 0 | K115: 0 | L115: F | M115: Serviço | N115: Serviço | O115: 1.4.0.22. | P115: SINAPI | Q115: 95750 | R115: ELETRODUTO DE AÇO GALVANIZADO, CLASSE LEVE, DN 25 MM (1), APARENTE, INSTALADO EM PAREDE - FORNECIMENTO E INSTALAÇÃO. AF_11/2016_P | S115: M | T115: 50
A116: S | B116: 2 | C116: S | D116: 0 | E116: 1 | F116: 4 | G116: 0 | H116: 0 | I116: 0 | J116: 0 | K116: 0 | L116: F | M116: Serviço | N116: Serviço | O116: 1.4.0.23. | P116: SINAPI | Q116: 95752 | R116: ELETRODUTO DE AÇO GALVANIZADO, CLASSE SEMI PESADO, DN 40 MM (1 1/2 ), APARENTE, INSTALADO EM PAREDE - FORNECIMENTO E INSTALAÇÃO. AF_11/2016_P | S116: M | T116: 100
A117: S | B117: 2 | C117: S | D117: 0 | E117: 1 | F117: 4 | G117: 0 | H117: 0 | I117: 0 | J117: 0 | K117: 0 | L117: F | M117: Serviço | N117: Serviço | O117: 1.4.0.24. | P117: AGETOP | Q117: 71321 | R117: FITA DE AUTO FUSAO, ROLO E 10,00 MM | S117: Un | T117: 5
A118: S | B118: 2 | C118: S | D118: 0 | E118: 1 | F118: 4 | G118: 0 | H118: 0 | I118: 0 | J118: 0 | K118: 0 | L118: F | M118: Serviço | N118: Serviço | O118: 1.4.0.25. | P118: AGETOP | Q118: 71331 | R118: FITA ISOLANTE, ROLO DE 20,00 M | S118: Un | T118: 20
A119: S | B119: 2 | C119: S | D119: 0 | E119: 1 | F119: 4 | G119: 0 | H119: 0 | I119: 0 | J119: 0 | K119: 0 | L119: F | M119: Serviço | N119: Serviço | O119: 1.4.0.26. | P119: AGETOP | Q119: 71381 | R119: HASTE REV.COBRE(COPPERWELD) 5/8" X 3,00 M C/CONECTOR | S119: Un | T119: 4
A120: S | B120: 2 | C120: S | D120: 0 | E120: 1 | F120: 4 | G120: 0 | H120: 0 | I120: 0 | J120: 0 | K120: 0 | L120: F | M120: Serviço | N120: Serviço | O120: 1.4.0.27. | P120: SINAPI | Q120: 91955 | R120: INTERRUPTOR PARALELO (1 MÓDULO), 10A/250V, INCLUINDO SUPORTE E PLACA - FORNECIMENTO E INSTALAÇÃO. AF_12/2015 | S120: UN | T120: 8 | X120: Referência: AGETOP - 71431
A121: S | B121: 2 | C121: S | D121: 0 | E121: 1 | F121: 4 | G121: 0 | H121: 0 | I121: 0 | J121: 0 | K121: 0 | L121: F | M121: Serviço | N121: Serviço | O121: 1.4.0.28. | P121: SINAPI | Q121: 91953 | R121: INTERRUPTOR SIMPLES (1 MÓDULO), 10A/250V, INCLUINDO SUPORTE E PLACA - FORNECIMENTO E INSTALAÇÃO. AF_12/2015 | S121: UN | T121: 18 | X121: Referência: AGETOP - 71440
A122: S | B122: 2 | C122: S | D122: 0 | E122: 1 | F122: 4 | G122: 0 | H122: 0 | I122: 0 | J122: 0 | K122: 0 | L122: F | M122: Serviço | N122: Serviço | O122: 1.4.0.29. | P122: COMPOSIÇÃO | Q122: COMP 387_SEE | R122: LÂMPADA LED TUBULAR 18W | S122: UN | T122: 280
A123: S | B123: 2 | C123: S | D123: 0 | E123: 1 | F123: 4 | G123: 0 | H123: 0 | I123: 0 | J123: 0 | K123: 0 | L123: F | M123: Serviço | N123: Serviço | O123: 1.4.0.30. | P123: AGETOP | Q123: 71622 | R123: LUMINÁRIA DE SOBREPOR COM REFLETOR DE ALUMÍNIO E ALETAS 2X28W | S123: un | T123: 140
A124: S | B124: 2 | C124: S | D124: 0 | E124: 1 | F124: 4 | G124: 0 | H124: 0 | I124: 0 | J124: 0 | K124: 0 | L124: F | M124: Serviço | N124: Serviço | O124: 1.4.0.31. | P124: SINAPI | Q124: 95758 | R124: LUVA DE EMENDA PARA ELETRODUTO, AÇO GALVANIZADO, DN 25 MM (1''), APARENTE, INSTALADA EM PAREDE - FORNECIMENTO E INSTALAÇÃO. AF_11/2016_P | S124: UN | T124: 40 | X124: Referência: AGETOP - 71702
A125: S | B125: 2 | C125: S | D125: 0 | E125: 1 | F125: 4 | G125: 0 | H125: 0 | I125: 0 | J125: 0 | K125: 0 | L125: F | M125: Serviço | N125: Serviço | O125: 1.4.0.32. | P125: SINAPI | Q125: 95760 | R125: LUVA DE EMENDA PARA ELETRODUTO, AÇO GALVANIZADO, DN 40 MM (1 1/2''), APARENTE, INSTALADA EM PAREDE - FORNECIMENTO E INSTALAÇÃO. AF_11/2016_P | S125: UN | T125: 20 | X125: Referência: AGETOP - 71704
A126: S | B126: 2 | C126: S | D126: 0 | E126: 1 | F126: 4 | G126: 0 | H126: 0 | I126: 0 | J126: 0 | K126: 0 | L126: F | M126: Serviço | N126: Serviço | O126: 1.4.0.33. | P126: AGETOP | Q126: 71824 | R126: PADRÃO TRIFASICO 35 MM H=7 METROS | S126: Un | T126: 1
A127: S | B127: 2 | C127: S | D127: 0 | E127: 1 | F127: 4 | G127: 0 | H127: 0 | I127: 0 | J127: 0 | K127: 0 | L127: F | M127: Serviço | N127: Serviço | O127: 1.4.0.34. | P127: SINAPI | Q127: 74131/5 | R127: QUADRO DE DISTRIBUICAO DE ENERGIA DE EMBUTIR, EM CHAPA METALICA, PARA 24 DISJUNTORES TERMOMAGNETICOS MONOPOLARES, COM BARRAMENTO TRIFASICO E NEUTRO, FORNECIMENTO E INSTALACAO | S127: UN | T127: 2
A128: S | B128: 2 | C128: S | D128: 0 | E128: 1 | F128: 4 | G128: 0 | H128: 0 | I128: 0 | J128: 0 | K128: 0 | L128: F | M128: Serviço | N128: Serviço | O128: 1.4.0.35. | P128: SINAPI | Q128: 74131/6 | R128: QUADRO DE DISTRIBUICAO DE ENERGIA DE EMBUTIR, EM CHAPA METALICA, PARA 32 DISJUNTORES TERMOMAGNETICOS MONOPOLARES, COM BARRAMENTO TRIFASICO E NEUTRO, FORNECIMENTO E INSTALACAO | S128: UN | T128: 1 | X128: Referência: AGETOP - 72198
A129: S | B129: 2 | C129: S | D129: 0 | E129: 1 | F129: 4 | G129: 0 | H129: 0 | I129: 0 | J129: 0 | K129: 0 | L129: F | M129: Serviço | N129: Serviço | O129: 1.4.0.36. | P129: SINAPI | Q129: 92000 | R129: TOMADA BAIXA DE EMBUTIR (1 MÓDULO), 2P+T 10 A, INCLUINDO SUPORTE E PLACA - FORNECIMENTO E INSTALAÇÃO. AF_12/2015 | S129: UN | T129: 42 | X129: Referência: AGETOP - 72578
A130: =CHOOSE(1+LOG(1+2*(ORÇAMENTO.Nivel="Nível 1")+4*(ORÇAMENTO.Nivel="Nível 2")+8*(ORÇAMENTO.Nivel="Nível 3")+16*(ORÇAMENTO.Nivel="Nível 4")+32*(ORÇAMENTO.Nivel="Serviço"),2),0,1,2,3,4,"S") -> 2 | B130: =IF(OR(C130="s",C130=0),OFFSET(B130,-1,0),C130) -> 2 | C130: =IF(OFFSET(C130,-1,0)="L",1,IF(OFFSET(C130,-1,0)=1,2,IF(OR(A130="s",A130=0),"S",IF(AND(OFFSET(C130,-1,0)=2,A130=4),3,IF(AND(OR(OFFSET(C130,-1,0)="s",OFFSET(C130,-1,0)=0),A130<>"s",A130>OFFSET(B130,-1,0)),OFFSET(B130,-1,0),A130))))) -> 2 | D130: =IF(OR(C130="S",C130=0),0,IF(ISERROR(K130),J130,SMALL(J130:K130,1))) -> 37 | E130: =IF($C130=1,OFFSET(E130,-1,0)+1,OFFSET(E130,-1,0)) -> 1 | F130: =IF($C130=1,0,IF($C130=2,OFFSET(F130,-1,0)+1,OFFSET(F130,-1,0))) -> 5 | G130: =IF(AND($C130<=2,$C130<>0),0,IF($C130=3,OFFSET(G130,-1,0)+1,OFFSET(G130,-1,0))) -> 0 | H130: =IF(AND($C130<=3,$C130<>0),0,IF($C130=4,OFFSET(H130,-1,0)+1,OFFSET(H130,-1,0))) -> 0 | I130: =IF(AND($C130<=4,$C130<>0),0,IF(AND($C130="S",$W130>0),OFFSET(I130,-1,0)+1,OFFSET(I130,-1,0))) -> 0 | J130: 164 | K130: 37 | L130: F | M130: Nível 2 | N130: Nível 2 | O130: 1.5. | P130: AGETOP | R130: INSTALAÇÕES HIDROSSANITÁRIAS | S130: -
A131: =CHOOSE(1+LOG(1+2*(ORÇAMENTO.Nivel="Nível 1")+4*(ORÇAMENTO.Nivel="Nível 2")+8*(ORÇAMENTO.Nivel="Nível 3")+16*(ORÇAMENTO.Nivel="Nível 4")+32*(ORÇAMENTO.Nivel="Serviço"),2),0,1,2,3,4,"S") -> 3 | B131: 3 | C131: 3 | D131: 36 | E131: 1 | F131: 5 | G131: 1 | H131: 0 | I131: =IF(AND($C131<=4,$C131<>0),0,IF(AND($C131="S",$W131>0),OFFSET(I131,-1,0)+1,OFFSET(I131,-1,0))) -> 0 | J131: 36 | K131: 66 | L131: F | M131: Nível 3 | N131: Nível 3 | O131: 1.5.1. | P131: SINAPI | R131: INSTALAÇÕES DE INCENDIO | S131: -
A132: S | B132: 3 | C132: S | D132: 0 | E132: 1 | F132: 5 | G132: 1 | H132: 0 | I132: 0 | J132: 0 | K132: 0 | L132: F | M132: Serviço | N132: Serviço | O132: 1.5.1.1. | P132: COMPOSIÇÃO | Q132: COMP 040_SEE | R132: CONJUNTO MOTOR-BOMBA ELÉTRICA TRIFÁSICO 380/220 V PARA VZ= 24,33 M³/H, HM= 46,24 M POTÊNCIA= 7,5 CV | S132: UN | T132: 1
A133: S | B133: 3 | C133: S | D133: 0 | E133: 1 | F133: 5 | G133: 1 | H133: 0 | I133: 0 | J133: 0 | K133: 0 | L133: F | M133: Serviço | N133: Serviço | O133: 1.5.1.2. | P133: AGETOP | Q133: 72338 | R133: SIRENE METALICA ALCANCE 500 M | S133: Un | T133: 2
A134: S | B134: 3 | C134: S | D134: 0 | E134: 1 | F134: 5 | G134: 1 | H134: 0 | I134: 0 | J134: 0 | K134: 0 | L134: F | M134: Serviço | N134: Serviço | O134: 1.5.1.3. | P134: AGETOP | Q134: 81882 | R134: RES.METALICO TAÇA AÇO PATINÁVEL-V=15M3-COL.SEC.H=6M+FUNDAÇÃO+LOGOTIPO | S134: Un | T134: 1
A135: S | B135: 3 | C135: S | D135: 0 | E135: 1 | F135: 5 | G135: 1 | H135: 0 | I135: 0 | J135: 0 | K135: 0 | L135: F | M135: Serviço | N135: Serviço | O135: 1.5.1.4. | P135: AGETOP | Q135: 80903 | R135: REGISTRO DE GAVETA BRUTO DIAMETRO 1" | S135: Un | T135: 1
A136: S | B136: 3 | C136: S | D136: 0 | E136: 1 | F136: 5 | G136: 1 | H136: 0 | I136: 0 | J136: 0 | K136: 0 | L136: F | M136: Serviço | N136: Serviço | O136: 1.5.1.5. | P136: AGETOP | Q136: 80910 | R136: REGISTRO DE GAVETA BRUTO DIAMETRO 2.1/2" | S136: Un | T136: 2
A137: S | B137: 3 | C137: S | D137: 0 | E137: 1 | F137: 5 | G137: 1 | H137: 0 | I137: 0 | J137: 0 | K137: 0 | L137: F | M137: Serviço | N137: Serviço | O137: 1.5.1.6. | P137: AGETOP | Q137: 82379 | R137: TUBO FERRO GALVANIZADO DIAM.2.1/2" | S137: m | T137: 158
A138: S | B138: 3 | C138: S | D138: 0 | E138: 1 | F138: 5 | G138: 1 | H138: 0 | I138: 0 | J138: 0 | K138: 0 | L138: F | M138: Serviço | N138: Serviço | O138: 1.5.1.7. | P138: AGETOP | Q138: 85003 | R138: EXTINTOR PO QUIMICO SECO (6 KG) - CAPACIDADE EXTINTORA 20 BC | S138: Un | T138: 2
A139: S | B139: 3 | C139: S | D139: 0 | E139: 1 | F139: 5 | G139: 1 | H139: 0 | I139: 0 | J139: 0 | K139: 0 | L139: F | M139: Serviço | N139: Serviço | O139: 1.5.1.8. | P139: AGETOP | Q139: 85006 | R139: EXTINTOR MULTI USO EM PO A B C (6 KG) - CAPACIDADE EXTINTORA 3A 20BC | S139: un | T139: 7
A140: S | B140: 3 | C140: S | D140: 0 | E140: 1 | F140: 5 | G140: 1 | H140: 0 | I140: 0 | J140: 0 | K140: 0 | L140: F | M140: Serviço | N140: Serviço | O140: 1.5.1.9. | P140: AGETOP | Q140: 85011 | R140: CAIXA DE INCÊNDIO METÁLICA COM SUPORTE PARA MANGUEIRA, TAMPA E MURETA 17X60X90 CM C/PINTURA | S140: Un | T140: 5
A141: S | B141: 3 | C141: S | D141: 0 | E141: 1 | F141: 5 | G141: 1 | H141: 0 | I141: 0 | J141: 0 | K141: 0 | L141: F | M141: Serviço | N141: Serviço | O141: 1.5.1.10. | P141: AGETOP | Q141: 85017 | R141: MANGUEIRA DE INCÊNDIO D.I. = 38 MM TIPO 2 COMP. = 15 M | S141: CJ | T141: 10
A142: S | B142: 3 | C142: S | D142: 0 | E142: 1 | F142: 5 | G142: 1 | H142: 0 | I142: 0 | J142: 0 | K142: 0 | L142: F | M142: Serviço | N142: Serviço | O142: 1.5.1.11. | P142: AGETOP | Q142: 85025 | R142: ESGUICHO REGULÁVEL 1.1/2" | S142: Un | T142: 5
A143: S | B143: 3 | C143: S | D143: 0 | E143: 1 | F143: 5 | G143: 1 | H143: 0 | I143: 0 | J143: 0 | K143: 0 | L143: F | M143: Serviço | N143: Serviço | O143: 1.5.1.12. | P143: AGETOP | Q143: 85027 | R143: ADAPTADOR P/ENGATE STORZ 2.1/2" X 1.1/2" | S143: Un | T143: 5
A144: S | B144: 3 | C144: S | D144: 0 | E144: 1 | F144: 5 | G144: 1 | H144: 0 | I144: 0 | J144: 0 | K144: 0 | L144: F | M144: Serviço | N144: Serviço | O144: 1.5.1.13. | P144: AGETOP | Q144: 85031 | R144: REGISTRO GLOBO ANGULAR 2.1/2" | S144: Un | T144: 4
A145: S | B145: 3 | C145: S | D145: 0 | E145: 1 | F145: 5 | G145: 1 | H145: 0 | I145: 0 | J145: 0 | K145: 0 | L145: F | M145: Serviço | N145: Serviço | O145: 1.5.1.14. | P145: AGETOP | Q145: 85037 | R145: TANQUE DE PRESSÃO DE 10 L | S145: Un | T145: 1
A146: S | B146: 3 | C146: S | D146: 0 | E146: 1 | F146: 5 | G146: 1 | H146: 0 | I146: 0 | J146: 0 | K146: 0 | L146: F | M146: Serviço | N146: Serviço | O146: 1.5.1.15. | P146: AGETOP | Q146: 85039 | R146: PRESSOSTATO 50 A 80 PSI | S146: Un | T146: 1
A147: S | B147: =IF(OR(C147="s",C147=0),OFFSET(B147,-1,0),C147) -> 3 | C147: =IF(OFFSET(C147,-1,0)="L",1,IF(OFFSET(C147,-1,0)=1,2,IF(OR(A147="s",A147=0),"S",IF(AND(OFFSET(C147,-1,0)=2,A147=4),3,IF(AND(OR(OFFSET(C147,-1,0)="s",OFFSET(C147,-1,0)=0),A147<>"s",A147>OFFSET(B147,-1,0)),OFFSET(B147,-1,0),A147))))) -> S | D147: =IF(OR(C147="S",C147=0),0,IF(ISERROR(K147),J147,SMALL(J147:K147,1))) -> 0 | E147: =IF($C147=1,OFFSET(E147,-1,0)+1,OFFSET(E147,-1,0)) -> 1 | F147: =IF($C147=1,0,IF($C147=2,OFFSET(F147,-1,0)+1,OFFSET(F147,-1,0))) -> 5 | G147: =IF(AND($C147<=2,$C147<>0),0,IF($C147=3,OFFSET(G147,-1,0)+1,OFFSET(G147,-1,0))) -> 1 | H147: =IF(AND($C147<=3,$C147<>0),0,IF($C147=4,OFFSET(H147,-1,0)+1,OFFSET(H147,-1,0))) -> 0 | I147: 0 | J147: =IF(OR($C147="S",$C147=0),0,MATCH(0,OFFSET($D147,1,$C147,ROW($C$330)-ROW($C147)),0)) -> 0 | K147: =IF(OR($C147="S",$C147=0),0,MATCH(OFFSET($D147,0,$C147)+1,OFFSET($D147,1,$C147,ROW($C$330)-ROW($C147)),0)) -> 0 | L147: F | M147: Serviço | N147: Serviço | O147: 1.5.1.16. | P147: AGETOP | Q147: 85041 | R147: MANOMETRO - 0 A 10 KG/CM2 | S147: Un | T147: 1
A148: S | B148: 3 | C148: S | D148: 0 | E148: 1 | F148: 5 | G148: 1 | H148: 0 | I148: 0 | J148: 0 | K148: 0 | L148: F | M148: Serviço | N148: Serviço | O148: 1.5.1.17. | P148: AGETOP | Q148: 85047 | R148: NIPLE DUPLO FERRO GALVANIZADO 2.1/2" | S148: Un | T148: 5
A149: S | B149: 3 | C149: S | D149: 0 | E149: 1 | F149: 5 | G149: 1 | H149: 0 | I149: 0 | J149: 0 | K149: 0 | L149: F | M149: Serviço | N149: Serviço | O149: 1.5.1.18. | P149: AGETOP | Q149: 85077 | R149: VÁLVULA DE RETENÇÃO HORIZONTAL 2.1/2" | S149: Un | T149: 2
A150: S | B150: 3 | C150: S | D150: 0 | E150: 1 | F150: 5 | G150: 1 | H150: 0 | I150: 0 | J150: 0 | K150: 0 | L150: F | M150: Serviço | N150: Serviço | O150: 1.5.1.19. | P150: COMPOSIÇÃO | Q150: COMP 017_SEE | R150: REDUCAO GIRATÓRIA TIPO STORZ LATAO P/ INST. PREDIAL COMBATE A INCENDIO ENGATE RAPIDO 2.1/2" X 1.1/2" | S150: UN | T150: 5
A151: S | B151: 3 | C151: S | D151: 0 | E151: 1 | F151: 5 | G151: 1 | H151: 0 | I151: 0 | J151: 0 | K151: 0 | L151: F | M151: Serviço | N151: Serviço | O151: 1.5.1.20. | P151: COMPOSIÇÃO | Q151: COMP 018_SEE | R151: CHAVE DUPLA P/ CONEXÕES TIPO STORZ EM LATÃO ENGATE RÁPIDO 1 1/2" X 2 1/2" | S151: UN | T151: 5
A152: S | B152: 3 | C152: S | D152: 0 | E152: 1 | F152: 5 | G152: 1 | H152: 0 | I152: 0 | J152: 0 | K152: 0 | L152: F | M152: Serviço | N152: Serviço | O152: 1.5.1.21. | P152: COMPOSIÇÃO | Q152: COMP 087_SEE | R152: REGISTRO DE GAVETA COM HASTE ASCENDENTE DE BRONZE 2 1/2" | S152: UN | T152: 1
A153: S | B153: 3 | C153: S | D153: 0 | E153: 1 | F153: 5 | G153: 1 | H153: 0 | I153: 0 | J153: 0 | K153: 0 | L153: F | M153: Serviço | N153: Serviço | O153: 1.5.1.22. | P153: COMPOSIÇÃO | Q153: COMP 019_SEE | R153: TAMPÃO LATAO C/ CORRENTE P/ INSTALAÇÃO PREDIAL COMBATE A INCÊNDIO ENGATE RÁPIDO 1 1/2" | S153: UN | T153: 5
A154: S | B154: 3 | C154: S | D154: 0 | E154: 1 | F154: 5 | G154: 1 | H154: 0 | I154: 0 | J154: 0 | K154: 0 | L154: F | M154: Serviço | N154: Serviço | O154: 1.5.1.23. | P154: COMPOSIÇÃO | Q154: COMP 088_SEE | R154: TE DE FERRO GALVANIZADO 90º X 2.1/2" X 1" | S154: UN | T154: 1
A155: S | B155: 3 | C155: S | D155: 0 | E155: 1 | F155: 5 | G155: 1 | H155: 0 | I155: 0 | J155: 0 | K155: 0 | L155: F | M155: Serviço | N155: Serviço | O155: 1.5.1.24. | P155: AGETOP | Q155: 85056 | R155: TÊ DE FERRO GALVANIZADO 90º X 2 1/2" | S155: un | T155: 5
A156: S | B156: 3 | C156: S | D156: 0 | E156: 1 | F156: 5 | G156: 1 | H156: 0 | I156: 0 | J156: 0 | K156: 0 | L156: F | M156: Serviço | N156: Serviço | O156: 1.5.1.25. | P156: COMPOSIÇÃO | Q156: COMP 030_SEE | R156: COTOVELO DE FERRO GALV. 90° X 2 1/2" | S156: UN | T156: 21
A157: S | B157: 3 | C157: S | D157: 0 | E157: 1 | F157: 5 | G157: 1 | H157: 0 | I157: 0 | J157: 0 | K157: 0 | L157: F | M157: Serviço | N157: Serviço | O157: 1.5.1.26. | P157: COMPOSIÇÃO | Q157: COMP 077_SEE | R157: UNIAO FERRO GALV C/ASSENTO CONICO BRONZE 2 1/2" | S157: UN | T157: 6
A158: S | B158: 3 | C158: S | D158: 0 | E158: 1 | F158: 5 | G158: 1 | H158: 0 | I158: 0 | J158: 0 | K158: 0 | L158: F | M158: Serviço | N158: Serviço | O158: 1.5.1.27. | P158: COMPOSIÇÃO | Q158: COMP 022_SEE | R158: TAMPÃO FOFO 40X50CM C/INSCRIÇÃO | S158: UN | T158: 1
A159: S | B159: 3 | C159: S | D159: 0 | E159: 1 | F159: 5 | G159: 1 | H159: 0 | I159: 0 | J159: 0 | K159: 0 | L159: F | M159: Serviço | N159: Serviço | O159: 1.5.1.28. | P159: COMPOSIÇÃO | Q159: COMP 024_SEE | R159: SINALIZADOR FOTOLUMINESCENTE PARA EXTINTOR | S159: UN | T159: 9
A160: S | B160: 3 | C160: S | D160: 0 | E160: 1 | F160: 5 | G160: 1 | H160: 0 | I160: 0 | J160: 0 | K160: 0 | L160: F | M160: Serviço | N160: Serviço | O160: 1.5.1.29. | P160: COMPOSIÇÃO | Q160: COMP 186_SEE | R160: BOTOEIRA BOMBA DE INCÊNDIO C/ MARTELO CONVENCIONAL/ ANALÓGICA | S160: UN | T160: 5
A161: S | B161: 3 | C161: S | D161: 0 | E161: 1 | F161: 5 | G161: 1 | H161: 0 | I161: 0 | J161: 0 | K161: 0 | L161: F | M161: Serviço | N161: Serviço | O161: 1.5.1.30. | P161: COMPOSIÇÃO | Q161: COMP 188_SEE | R161: ACIONADOR MANUAL DE ALARME | S161: UN | T161: 5
A162: S | B162: 3 | C162: S | D162: 0 | E162: 1 | F162: 5 | G162: 1 | H162: 0 | I162: 0 | J162: 0 | K162: 0 | L162: F | M162: Serviço | N162: Serviço | O162: 1.5.1.31. | P162: COMPOSIÇÃO | Q162: COMP 190_SEE | R162: CENTRAL DE DETECÇÃO E ALARME DE 40 SETORES COM BATERIA | S162: UN | T162: 1
A163: S | B163: 3 | C163: S | D163: 0 | E163: 1 | F163: 5 | G163: 1 | H163: 0 | I163: 0 | J163: 0 | K163: 0 | L163: F | M163: Serviço | N163: Serviço | O163: 1.5.1.32. | P163: COMPOSIÇÃO | Q163: COMP 025_SEE | R163: SINALIZADOR FOTOLUMINESCENTE DE EMERGÊNCIA | S163: UN | T163: 18
A164: S | B164: 3 | C164: S | D164: 0 | E164: 1 | F164: 5 | G164: 1 | H164: 0 | I164: 0 | J164: 0 | K164: 0 | L164: F | M164: Serviço | N164: Serviço | O164: 1.5.1.33. | P164: COMPOSIÇÃO | Q164: COMP 277_SEE | R164: MARCAÇÃO NO PISO - 1X1 M PARA EXTINTOR | S164: M2 | T164: 9
A165: S | B165: 3 | C165: S | D165: 0 | E165: 1 | F165: 5 | G165: 1 | H165: 0 | I165: 0 | J165: 0 | K165: 0 | L165: F | M165: Serviço | N165: Serviço | O165: 1.5.1.34. | P165: COMPOSIÇÃO | Q165: COMP 080_SEE | R165: BUCHA REDUCAO FERRO GALV ROSCA REF. 2 1/2"X1" | S165: UN | T165: 1
A166: S | B166: 3 | C166: S | D166: 0 | E166: 1 | F166: 5 | G166: 1 | H166: 0 | I166: 0 | J166: 0 | K166: 0 | L166: F | M166: Serviço | N166: Serviço | O166: 1.5.1.35. | P166: SINAPI | Q166: 97599 | R166: LUMINÁRIA DE EMERGÊNCIA - FORNECIMENTO E INSTALAÇÃO. AF_11/2017 | S166: UN | T166: 20
A167: 2 | B167: 2 | C167: 2 | D167: 27 | E167: 1 | F167: 6 | G167: 0 | H167: 0 | I167: 0 | J167: 127 | K167: 27 | L167: F | M167: Nível 2 | N167: Nível 2 | O167: 1.6. | R167: INSTALAÇÕES ESPECIAIS | S167: -
A168: S | B168: =IF(OR(C168="s",C168=0),OFFSET(B168,-1,0),C168) -> 2 | C168: =IF(OFFSET(C168,-1,0)="L",1,IF(OFFSET(C168,-1,0)=1,2,IF(OR(A168="s",A168=0),"S",IF(AND(OFFSET(C168,-1,0)=2,A168=4),3,IF(AND(OR(OFFSET(C168,-1,0)="s",OFFSET(C168,-1,0)=0),A168<>"s",A168>OFFSET(B168,-1,0)),OFFSET(B168,-1,0),A168))))) -> S | D168: =IF(OR(C168="S",C168=0),0,IF(ISERROR(K168),J168,SMALL(J168:K168,1))) -> 0 | E168: =IF($C168=1,OFFSET(E168,-1,0)+1,OFFSET(E168,-1,0)) -> 1 | F168: =IF($C168=1,0,IF($C168=2,OFFSET(F168,-1,0)+1,OFFSET(F168,-1,0))) -> 6 | G168: =IF(AND($C168<=2,$C168<>0),0,IF($C168=3,OFFSET(G168,-1,0)+1,OFFSET(G168,-1,0))) -> 0 | H168: =IF(AND($C168<=3,$C168<>0),0,IF($C168=4,OFFSET(H168,-1,0)+1,OFFSET(H168,-1,0))) -> 0 | I168: =IF(AND($C168<=4,$C168<>0),0,IF(AND($C168="S",$W168>0),OFFSET(I168,-1,0)+1,OFFSET(I168,-1,0))) -> 0 | J168: 0 | K168: 0 | L168: F | M168: Serviço | N168: Serviço | O168: 1.6.0.1. | P168: AGETOP | Q168: 91007 | R168: CENTRAL DE GÁS PADRÃO GOINFRA SEM INSTALAÇÕES (1+1 CILINDRO 45 KG) | S168: Un | T168: 1
A169: S | B169: 2 | C169: S | D169: 0 | E169: 1 | F169: 6 | G169: 0 | H169: 0 | I169: 0 | J169: 0 | K169: 0 | L169: F | M169: Serviço | N169: Serviço | O169: 1.6.0.2. | P169: AGETOP | Q169: 91023 | R169: UNIÃO S/BRONZE PRETA 3/4" NPT 300 LBS | S169: Un | T169: 3
A170: S | B170: 2 | C170: S | D170: 0 | E170: 1 | F170: 6 | G170: 0 | H170: 0 | I170: 0 | J170: 0 | K170: 0 | L170: F | M170: Serviço | N170: Serviço | O170: 1.6.0.3. | P170: COMPOSIÇÃO | Q170: COMP 382_SEE | R170: TE DE REDUCAO DE FERRO GALVANIZADO, COM ROSCA BSP, DE 3/4" X 1/2" | S170: UN | T170: 1
A171: S | B171: 2 | C171: S | D171: 0 | E171: 1 | F171: 6 | G171: 0 | H171: 0 | I171: 0 | J171: 0 | K171: 0 | L171: F | M171: Serviço | N171: Serviço | O171: 1.6.0.4. | P171: COMPOSIÇÃO | Q171: COMP 383_SEE | R171: BUCHA DE REDUCAO DE FERRO GALVANIZADO, COM ROSCA BSP, DE 1/2" X 1/4" | S171: UN | T171: 3
A172: S | B172: 2 | C172: S | D172: 0 | E172: 1 | F172: 6 | G172: 0 | H172: 0 | I172: 0 | J172: 0 | K172: 0 | L172: F | M172: Serviço | N172: Serviço | O172: 1.6.0.5. | P172: AGETOP | Q172: 91021 | R172: LUVA GALVANIZADO DE REDUÇÃO 3/4" X 1/2" (GÁS) | S172: Un | T172: 2
A173: S | B173: 2 | C173: S | D173: 0 | E173: 1 | F173: 6 | G173: 0 | H173: 0 | I173: 0 | J173: 0 | K173: 0 | L173: F | M173: Serviço | N173: Serviço | O173: 1.6.0.6. | P173: SINAPI | Q173: 92692 | R173: NIPLE, EM FERRO GALVANIZADO, CONEXÃO ROSQUEADA, DN 15 (1/2"), INSTALADO EM RAMAIS E SUB-RAMAIS DE GÁS - FORNECIMENTO E INSTALAÇÃO. AF_12/2015 | S173: UN | T173: 6
A174: S | B174: 2 | C174: S | D174: 0 | E174: 1 | F174: 6 | G174: 0 | H174: 0 | I174: 0 | J174: 0 | K174: 0 | L174: F | M174: Serviço | N174: Serviço | O174: 1.6.0.7. | P174: AGETOP | Q174: 91031 | R174: NIPLE DUPLO 300 PSI 3/4" | S174: Un | T174: 6
A175: S | B175: 2 | C175: S | D175: 0 | E175: 1 | F175: 6 | G175: 0 | H175: 0 | I175: 0 | J175: 0 | K175: 0 | L175: F | M175: Serviço | N175: Serviço | O175: 1.6.0.8. | P175: COMPOSIÇÃO | Q175: COMP 212_SEE | R175: NIPLE DE REDUÇÃO 1/2" X 1/4" BSP | S175: UN | T175: 4
A176: S | B176: 2 | C176: S | D176: 0 | E176: 1 | F176: 6 | G176: 0 | H176: 0 | I176: 0 | J176: 0 | K176: 0 | L176: F | M176: Serviço | N176: Serviço | O176: 1.6.0.9. | P176: COMPOSIÇÃO | Q176: COMP 213_SEE | R176: NIPLE DE REDUÇÃO 3/4" X 1/2" BSP | S176: UN | T176: 4
A177: S | B177: 2 | C177: S | D177: 0 | E177: 1 | F177: 6 | G177: 0 | H177: 0 | I177: 0 | J177: 0 | K177: 0 | L177: F | M177: Serviço | N177: Serviço | O177: 1.6.0.10. | P177: SINAPI | Q177: 92688 | R177: TUBO DE AÇO GALVANIZADO COM COSTURA, CLASSE MÉDIA, CONEXÃO ROSQUEADA, DN 20 (3/4"), INSTALADO EM RAMAIS E SUB-RAMAIS DE GÁS - FORNECIMENTO E INSTALAÇÃO. AF_12/2015 | S177: M | T177: 18
A178: S | B178: 2 | C178: S | D178: 0 | E178: 1 | F178: 6 | G178: 0 | H178: 0 | I178: 0 | J178: 0 | K178: 0 | L178: F | M178: Serviço | N178: Serviço | O178: 1.6.0.11. | P178: SINAPI | Q178: 92701 | R178: JOELHO 90 GRAUS, EM FERRO GALVANIZADO, CONEXÃO ROSQUEADA, DN 20 (3/4"), INSTALADO EM RAMAIS E SUB-RAMAIS DE GÁS - FORNECIMENTO E INSTALAÇÃO. AF_12/2015 | S178: UN | T178: 7
A179: S | B179: 2 | C179: S | D179: 0 | E179: 1 | F179: 6 | G179: 0 | H179: 0 | I179: 0 | J179: 0 | K179: 0 | L179: F | M179: Serviço | N179: Serviço | O179: 1.6.0.12. | P179: COMPOSIÇÃO | Q179: COMP 237_SEE | R179: FITA ANTICORROSIVA | S179: M | T179: 3.5
A180: S | B180: 2 | C180: S | D180: 0 | E180: 1 | F180: 6 | G180: 0 | H180: 0 | I180: 0 | J180: 0 | K180: 0 | L180: F | M180: Serviço | N180: Serviço | O180: 1.6.0.13. | P180: AGETOP | Q180: 91025 | R180: VÁLVULA ESFERICA LATÃO 3/4" | S180: Un | T180: 3
A181: S | B181: 2 | C181: S | D181: 0 | E181: 1 | F181: 6 | G181: 0 | H181: 0 | I181: 0 | J181: 0 | K181: 0 | L181: F | M181: Serviço | N181: Serviço | O181: 1.6.0.14. | P181: COMPOSIÇÃO | Q181: COMP 542_SEE | R181: VÁLVULA UGV 3/4" (S) LATÃO | S181: UN | T181: 1
A182: S | B182: 2 | C182: S | D182: 0 | E182: 1 | F182: 6 | G182: 0 | H182: 0 | I182: 0 | J182: 0 | K182: 0 | L182: F | M182: Serviço | N182: Serviço | O182: 1.6.0.15. | P182: COMPOSIÇÃO | Q182: COMP 543_SEE | R182: VÁLVULA UGV 1/2" (S) LATÃO | S182: UN | T182: 1
A183: S | B183: 2 | C183: S | D183: 0 | E183: 1 | F183: 6 | G183: 0 | H183: 0 | I183: 0 | J183: 0 | K183: 0 | L183: F | M183: Serviço | N183: Serviço | O183: 1.6.0.16. | P183: AGETOP | Q183: 91029 | R183: VALVULA DE RETENÇÃO LATÃO 1/2" X 7/16" NPT | S183: Un | T183: 1
A184: S | B184: 2 | C184: S | D184: 0 | E184: 1 | F184: 6 | G184: 0 | H184: 0 | I184: 0 | J184: 0 | K184: 0 | L184: F | M184: Serviço | N184: Serviço | O184: 1.6.0.17. | P184: COMPOSIÇÃO | Q184: COMP 211_SEE | R184: REGULADOR DE 2º ESTÁGIO 5KG/H | S184: UN | T184: 1
A185: S | B185: 2 | C185: S | D185: 0 | E185: 1 | F185: 6 | G185: 0 | H185: 0 | I185: 0 | J185: 0 | K185: 0 | L185: F | M185: Serviço | N185: Serviço | O185: 1.6.0.18. | P185: COMPOSIÇÃO | Q185: COMP 210_SEE | R185: REGULADOR DE 1º ESTÁGIO 60KG/H MODELO AP-40 COM MANÔMETRO | S185: UN | T185: 1
A186: S | B186: 2 | C186: S | D186: 0 | E186: 1 | F186: 6 | G186: 0 | H186: 0 | I186: 0 | J186: 0 | K186: 0 | L186: F | M186: Serviço | N186: Serviço | O186: 1.6.0.19. | P186: AGETOP | Q186: 85003 | R186: EXTINTOR PO QUIMICO SECO (6 KG) - CAPACIDADE EXTINTORA 20 BC | S186: Un | T186: 1
A187: S | B187: 2 | C187: S | D187: 0 | E187: 1 | F187: 6 | G187: 0 | H187: 0 | I187: 0 | J187: 0 | K187: 0 | L187: F | M187: Serviço | N187: Serviço | O187: 1.6.0.20. | P187: COMPOSIÇÃO | Q187: COMP 235_SEE | R187: PLACA DE SINALIZAÇÃO EM PVC COD 01 - (300X300) PROIBIDO FUMAR | S187: UN | T187: 1
A188: S | B188: 2 | C188: S | D188: 0 | E188: 1 | F188: 6 | G188: 0 | H188: 0 | I188: 0 | J188: 0 | K188: 0 | L188: F | M188: Serviço | N188: Serviço | O188: 1.6.0.21. | P188: COMPOSIÇÃO | Q188: COMP 236_SEE | R188: PLACA DE SINALIZAÇÃO EM PVC COD 06 - (300X300) PERIGO INFLAMÁVEL | S188: UN | T188: 1
A189: S | B189: 2 | C189: S | D189: 0 | E189: 1 | F189: 6 | G189: 0 | H189: 0 | I189: 0 | J189: 0 | K189: 0 | L189: F | M189: Serviço | N189: Serviço | O189: 1.6.0.22. | P189: AGETOP | Q189: 91043 | R189: BRAÇADEIRA METALICA TIPO "D" DIAM. 3/4" | S189: Un | T189: 7
A190: S | B190: 2 | C190: S | D190: 0 | E190: 1 | F190: 6 | G190: 0 | H190: 0 | I190: 0 | J190: 0 | K190: 0 | L190: F | M190: Serviço | N190: Serviço | O190: 1.6.0.23. | P190: AGETOP | Q190: 71863 | R190: PARAFUSO P/BUCHA S-10 | S190: Un | T190: 14
A191: S | B191: 2 | C191: S | D191: 0 | E191: 1 | F191: 6 | G191: 0 | H191: 0 | I191: 0 | J191: 0 | K191: 0 | L191: F | M191: Serviço | N191: Serviço | O191: 1.6.0.24. | P191: AGETOP | Q191: 70393 | R191: BUCHA DE NYLON S-10 | S191: Un | T191: 14
A192: S | B192: 2 | C192: S | D192: 0 | E192: 1 | F192: 6 | G192: 0 | H192: 0 | I192: 0 | J192: 0 | K192: 0 | L192: F | M192: Serviço | N192: Serviço | O192: 1.6.0.25. | P192: AGETOP | Q192: 91045 | R192: SUPORTE PARA COLETOR | S192: Un | T192: 2
A193: S | B193: 2 | C193: S | D193: 0 | E193: 1 | F193: 6 | G193: 0 | H193: 0 | I193: 0 | J193: 0 | K193: 0 | L193: F | M193: Serviço | N193: Serviço | O193: 1.6.0.26. | P193: COMPOSIÇÃO | Q193: COMP 045_SEE | R193: LAUDO DE ESTANQUEIDADE | S193: UN | T193: 1
A194: 2 | B194: 2 | C194: 2 | D194: 5 | E194: 1 | F194: 7 | G194: 0 | H194: 0 | I194: 0 | J194: 100 | K194: 5 | L194: F | M194: Nível 2 | N194: Nível 2 | O194: 1.7. | P194: AGETOP | Q194: 91045 | R194: ALVENARIAS E DIVISÓRIAS | S194: Un
A195: =CHOOSE(1+LOG(1+2*(ORÇAMENTO.Nivel="Nível 1")+4*(ORÇAMENTO.Nivel="Nível 2")+8*(ORÇAMENTO.Nivel="Nível 3")+16*(ORÇAMENTO.Nivel="Nível 4")+32*(ORÇAMENTO.Nivel="Serviço"),2),0,1,2,3,4,"S") -> 3 | B195: =IF(OR(C195="s",C195=0),OFFSET(B195,-1,0),C195) -> 3 | C195: =IF(OFFSET(C195,-1,0)="L",1,IF(OFFSET(C195,-1,0)=1,2,IF(OR(A195="s",A195=0),"S",IF(AND(OFFSET(C195,-1,0)=2,A195=4),3,IF(AND(OR(OFFSET(C195,-1,0)="s",OFFSET(C195,-1,0)=0),A195<>"s",A195>OFFSET(B195,-1,0)),OFFSET(B195,-1,0),A195))))) -> 3 | D195: =IF(OR(C195="S",C195=0),0,IF(ISERROR(K195),J195,SMALL(J195:K195,1))) -> 2 | E195: =IF($C195=1,OFFSET(E195,-1,0)+1,OFFSET(E195,-1,0)) -> 1 | F195: =IF($C195=1,0,IF($C195=2,OFFSET(F195,-1,0)+1,OFFSET(F195,-1,0))) -> 7 | G195: =IF(AND($C195<=2,$C195<>0),0,IF($C195=3,OFFSET(G195,-1,0)+1,OFFSET(G195,-1,0))) -> 1 | H195: =IF(AND($C195<=3,$C195<>0),0,IF($C195=4,OFFSET(H195,-1,0)+1,OFFSET(H195,-1,0))) -> 0 | I195: =IF(AND($C195<=4,$C195<>0),0,IF(AND($C195="S",$W195>0),OFFSET(I195,-1,0)+1,OFFSET(I195,-1,0))) -> 0 | J195: 4 | K195: 2 | L195: F | M195: Nível 3 | N195: Nível 3 | O195: 1.7.1. | P195: SINAPI | R195: ACESSIBILIDADE | S195: -
A196: S | B196: 3 | C196: S | D196: 0 | E196: 1 | F196: 7 | G196: 1 | H196: 0 | I196: 0 | J196: 0 | K196: 0 | L196: F | M196: Serviço | N196: Serviço | O196: 1.7.1.1. | P196: SINAPI | Q196: 87520 | R196: ALVENARIA DE VEDAÇÃO DE BLOCOS CERÂMICOS FURADOS NA HORIZONTAL DE 9X19X19CM (ESPESSURA 9CM) DE PAREDES COM ÁREA LÍQUIDA MAIOR OU IGUAL A 6M² COM VÃOS E ARGAMASSA DE ASSENTAMENTO COM PREPARO MANUAL. AF_06/2014 | S196: M2 | T196: 3.1 | X196: Referência: AGETOP - 100201
A197: 3 | B197: 3 | C197: 3 | D197: 2 | E197: 1 | F197: 7 | G197: 2 | H197: 0 | I197: 0 | J197: 2 | K197: 13 | L197: F | M197: Nível 3 | N197: Nível 3 | O197: 1.7.2. | P197: SINAPI | R197: VESTIÁRIO | S197: -
A198: S | B198: 3 | C198: S | D198: 0 | E198: 1 | F198: 7 | G198: 2 | H198: 0 | I198: 0 | J198: 0 | K198: 0 | L198: F | M198: Serviço | N198: Serviço | O198: 1.7.2.1. | P198: SINAPI | Q198: 87520 | R198: ALVENARIA DE VEDAÇÃO DE BLOCOS CERÂMICOS FURADOS NA HORIZONTAL DE 9X19X19CM (ESPESSURA 9CM) DE PAREDES COM ÁREA LÍQUIDA MAIOR OU IGUAL A 6M² COM VÃOS E ARGAMASSA DE ASSENTAMENTO COM PREPARO MANUAL. AF_06/2014 | S198: M2 | T198: 1.82 | X198: Referência: AGETOP - 100201
A199: 2 | B199: 2 | C199: 2 | D199: 2 | E199: 1 | F199: 8 | G199: 0 | H199: 0 | I199: 0 | J199: 95 | K199: 2 | L199: F | M199: Nível 2 | N199: Nível 2 | O199: 1.8. | R199: ESTRUTURAS METÁLICAS | S199: -
A200: S | B200: 2 | C200: S | D200: 0 | E200: 1 | F200: 8 | G200: 0 | H200: 0 | I200: 0 | J200: 0 | K200: 0 | L200: F | M200: Serviço | N200: Serviço | O200: 1.8.0.1. | P200: AGETOP | Q200: 150204 | R200: ESTRUTURA METÁLICA CONVENCIONAL EM AÇO DO TIPO MR-250 / ASTM A36 COM FUNDO ANTICORROSIVO | S200: Kg | T200: 8349
A201: 2 | B201: 2 | C201: 2 | D201: 21 | E201: 1 | F201: 9 | G201: 0 | H201: 0 | I201: 0 | J201: 93 | K201: 21 | L201: F | M201: Nível 2 | N201: Nível 2 | O201: 1.9. | R201: COBERTURAS | S201: -
A202: =CHOOSE(1+LOG(1+2*(ORÇAMENTO.Nivel="Nível 1")+4*(ORÇAMENTO.Nivel="Nível 2")+8*(ORÇAMENTO.Nivel="Nível 3")+16*(ORÇAMENTO.Nivel="Nível 4")+32*(ORÇAMENTO.Nivel="Serviço"),2),0,1,2,3,4,"S") -> 3 | B202: =IF(OR(C202="s",C202=0),OFFSET(B202,-1,0),C202) -> 3 | C202: =IF(OFFSET(C202,-1,0)="L",1,IF(OFFSET(C202,-1,0)=1,2,IF(OR(A202="s",A202=0),"S",IF(AND(OFFSET(C202,-1,0)=2,A202=4),3,IF(AND(OR(OFFSET(C202,-1,0)="s",OFFSET(C202,-1,0)=0),A202<>"s",A202>OFFSET(B202,-1,0)),OFFSET(B202,-1,0),A202))))) -> 3 | D202: =IF(OR(C202="S",C202=0),0,IF(ISERROR(K202),J202,SMALL(J202:K202,1))) -> 4 | E202: =IF($C202=1,OFFSET(E202,-1,0)+1,OFFSET(E202,-1,0)) -> 1 | F202: =IF($C202=1,0,IF($C202=2,OFFSET(F202,-1,0)+1,OFFSET(F202,-1,0))) -> 9 | G202: =IF(AND($C202<=2,$C202<>0),0,IF($C202=3,OFFSET(G202,-1,0)+1,OFFSET(G202,-1,0))) -> 1 | H202: =IF(AND($C202<=3,$C202<>0),0,IF($C202=4,OFFSET(H202,-1,0)+1,OFFSET(H202,-1,0))) -> 0 | I202: =IF(AND($C202<=4,$C202<>0),0,IF(AND($C202="S",$W202>0),OFFSET(I202,-1,0)+1,OFFSET(I202,-1,0))) -> 0 | J202: 20 | K202: 4 | L202: F | M202: Nível 3 | N202: Nível 3 | O202: 1.9.1. | P202: SINAPI | R202: COBERTURA BLOCO 06 | S202: -
A203: S | B203: 3 | C203: S | D203: 0 | E203: 1 | F203: 9 | G203: 1 | H203: 0 | I203: 0 | J203: 0 | K203: 0 | L203: F | M203: Serviço | N203: Serviço | O203: 1.9.1.1. | P203: AGETOP | Q203: 160100 | R203: COBERTURA COM TELHA AMERICANA RESINADA COR VERMELHA | S203: m2 | T203: 156.29
A204: S | B204: 3 | C204: S | D204: 0 | E204: 1 | F204: 9 | G204: 1 | H204: 0 | I204: 0 | J204: 0 | K204: 0 | L204: F | M204: Serviço | N204: Serviço | O204: 1.9.1.2. | P204: AGETOP | Q204: 160101 | R204: CUMEEIRA PARA TELHA AMERICANA RESINADA COR VERMELHA | S204: m | T204: 17.41
A205: S | B205: 3 | C205: S | D205: 0 | E205: 1 | F205: 9 | G205: 1 | H205: 0 | I205: 0 | J205: 0 | K205: 0 | L205: F | M205: Serviço | N205: Serviço | O205: 1.9.1.3. | P205: SINAPI | Q205: 94224 | R205: EMBOÇAMENTO COM ARGAMASSA TRAÇO 1:2:9 (CIMENTO, CAL E AREIA). AF_07/2019 | S205: M | T205: 52.76 | X205: Referência: AGETOP - 160403
A206: 3 | B206: 3 | C206: 3 | D206: 4 | E206: 1 | F206: 9 | G206: 2 | H206: 0 | I206: 0 | J206: 16 | K206: 4 | L206: F | M206: Nível 3 | N206: Nível 3 | O206: 1.9.2. | P206: SINAPI | R206: COBERTURA BLOCO 01 | S206: -
... 197 more rows

Sheet Resumo
B3: UNIDADE ESCOLAR | G3: CÓDIGO INEP
B4: =Orçamento!$O$4 -> ACERVO DAS ESCOLAS EXTINTAS DE GOIÂNIA | G4: =Orçamento!V4 -> 0
B6: OBRA | G6: CIDADE
B7: =Orçamento!$O$7 -> AMPLIAÇÃO E REFORMA | G7: =Orçamento!$V$7 -> GOIÂNIA
B9: ENDEREÇO | G9: CRE
B10: =Orçamento!$R$10 -> AV. HUGO DE CARVALHO RAMOS, VILA IRANY | G10: =Orçamento!$O$10 -> GOIÂNIA
B12: REFERÊNCIA | D12: DATA | G12: ÁREA TOTAL CONSTRUÍDA (M²)
B13: =CONCATENATE("AGETOP E SINAPI - ",Orçamento!$T$10) -> AGETOP E SINAPI - ONERADA | D13: =Orçamento!$S$7 -> 2020-09-02 | G13: =Orçamento!$V$13 -> 2413.75
A14: FILTRO
B15: RESUMO GERAL DO ORÇAMENTO
A16: ↓ | B16: ITEM | C16: DESCRIÇÃO DOS SERVIÇOS | E16: UNID | F16: QUANT | G16: PREÇO SEM BDI | H16: PREÇO COM BDI | I16: PARTICIP. (%)
A17: =IF(E17>0,"F","") -> F | B17: 1. | C17: =Orçamento!$P383 -> AMPLIAÇÃO E REFORMA | E17: UN | F17: 1 | G17: =IFERROR(Orçamento!S383,"-") -> 0 | H17: =IFERROR(Orçamento!V383,"") -> 0 | I17: =Orçamento!X383 -> 
A18: =IF(E18>0,"F","") -> F | B18: 2. | C18: =Orçamento!$P384 -> PASSARELA MODELO 02 - PADRÃO SÉC. XXI 2015 | E18: UN | F18: 1 | G18: =IFERROR(Orçamento!S384,"-") -> 0 | H18: =IFERROR(Orçamento!V384,"") -> 0 | I18: =Orçamento!X384 -> 
B19: 3. | C19: =Orçamento!$P385 ->  | G19: =IFERROR(Orçamento!S385,"-") -> 0 | H19: =IFERROR(Orçamento!V385,"") -> 0 | I19: =Orçamento!X385 -> 
B20: 4. | C20: =Orçamento!$P386 ->  | G20: =IFERROR(Orçamento!S386,"-") -> 0 | H20: =IFERROR(Orçamento!V386,"") -> 0 | I20: =Orçamento!X386 -> 
B21: 5. | C21: =Orçamento!$P387 ->  | G21: =IFERROR(Orçamento!S387,"-") -> 0 | H21: =IFERROR(Orçamento!V387,"") -> 0 | I21: =Orçamento!X387 -> 
B22: 6. | C22: =Orçamento!$P388 ->  | G22: =IFERROR(Orçamento!S388,"-") -> 0 | H22: =IFERROR(Orçamento!V388,"") -> 0 | I22: =Orçamento!X388 -> 
B23: 7. | C23: =Orçamento!$P389 ->  | G23: =IFERROR(Orçamento!S389,"-") -> 0 | H23: =IFERROR(Orçamento!V389,"") -> 0 | I23: =Orçamento!X389 -> 
B24: 8. | C24: =Orçamento!$P390 ->  | G24: =IFERROR(Orçamento!S390,"-") -> 0 | H24: =IFERROR(Orçamento!V390,"") -> 0 | I24: =Orçamento!X390 -> 
B25: 9. | C25: =Orçamento!$P391 ->  | G25: =IFERROR(Orçamento!S391,"-") -> 0 | H25: =IFERROR(Orçamento!V391,"") -> 0 | I25: =Orçamento!X391 -> 
B26: 10. | C26: =Orçamento!$P392 ->  | G26: =IFERROR(Orçamento!S392,"-") -> 0 | H26: =IFERROR(Orçamento!V392,"") -> 0 | I26: =Orçamento!X392 -> 
B27: 11. | C27: =Orçamento!$P393 ->  | G27: =IFERROR(Orçamento!S393,"-") -> 0 | H27: =IFERROR(Orçamento!V393,"") -> 0 | I27: =Orçamento!X393 -> 
B28: 12. | C28: =Orçamento!$P394 ->  | G28: =IFERROR(Orçamento!S394,"-") -> 0 | H28: =IFERROR(Orçamento!V394,"") -> 0 | I28: =Orçamento!X394 -> 
B29: 13. | C29: =Orçamento!$P395 ->  | G29: =IFERROR(Orçamento!S395,"-") -> 0 | H29: =IFERROR(Orçamento!V395,"") -> 0 | I29: =Orçamento!X395 -> 
B30: 14. | C30: =Orçamento!$P396 ->  | G30: =IFERROR(Orçamento!S396,"-") -> 0 | H30: =IFERROR(Orçamento!V396,"") -> 0 | I30: =Orçamento!X396 -> 
B31: 15. | C31: =Orçamento!$P397 ->  | G31: =IFERROR(Orçamento!S397,"-") -> 0 | H31: =IFERROR(Orçamento!V397,"") -> 0 | I31: =Orçamento!X397 -> 
B32: 16. | C32: =Orçamento!$P398 ->  | G32: =IFERROR(Orçamento!S398,"-") -> 0 | H32: =IFERROR(Orçamento!V398,"") -> 0 | I32: =Orçamento!X398 -> 
B33: 17. | C33: =Orçamento!$P399 ->  | G33: =IFERROR(Orçamento!S399,"-") -> 0 | H33: =IFERROR(Orçamento!V399,"") -> 0 | I33: =Orçamento!X399 -> 
B34: 18. | C34: =Orçamento!$P400 ->  | G34: =IFERROR(Orçamento!S400,"-") -> 0 | H34: =IFERROR(Orçamento!V400,"") -> 0 | I34: =Orçamento!X400 -> 
B35: 19. | C35: =Orçamento!$P401 ->  | G35: =IFERROR(Orçamento!S401,"-") -> 0 | H35: =IFERROR(Orçamento!V401,"") -> 0 | I35: =Orçamento!X401 -> 
B36: 20. | C36: =Orçamento!$P402 ->  | G36: =IFERROR(Orçamento!S402,"-") -> 0 | H36: =IFERROR(Orçamento!V402,"") -> 0 | I36: =Orçamento!X402 -> 
A37: F | B37: TOTAL GERAL DO ORÇAMENTO (R$) | G37: =SUM(G17:G36) -> 0 | H37: 0 | I37: =SUM(I17:I36) -> 
A38: F
A39: F

Sheet Somatório
B3: UNIDADE ESCOLAR | E3: CÓDIGO INEP
B4: =Orçamento!$O$4 -> ACERVO DAS ESCOLAS EXTINTAS DE GOIÂNIA | E4: =Orçamento!V4 -> 0
B6: OBRA | E6: CIDADE
B7: =Orçamento!$O$7 -> AMPLIAÇÃO E REFORMA | E7: =Orçamento!$V$7 -> GOIÂNIA
B9: ENDEREÇO | E9: CRE
B10: =Orçamento!$R$10 -> AV. HUGO DE CARVALHO RAMOS, VILA IRANY | E10: =Orçamento!$O$10 -> GOIÂNIA
B12: REFERÊNCIA | D12: DATA | E12: ÁREA TOTAL CONSTRUÍDA (M²)
B13: =CONCATENATE("AGETOP E SINAPI - ",Orçamento!$T$10) -> AGETOP E SINAPI - ONERADA | D13: =Orçamento!$S$7 -> 2020-09-02 | E13: =Orçamento!$V$13 -> 2413.75
A14: FILTRO
B15: SOMATÓRIO DE SERVIÇOS
A16: ↓ | B16: ITEM | C16: DESCRIÇÃO DOS SERVIÇOS | D16: PREÇO SEM BDI (R$) | E16: PREÇO COM BDI (R$) | F16: PARTIC. ( % )
A17: =IF(D17>0,"F","") ->  | B17: a. | C17: =Orçamento!P349 -> SERVIÇOS PRELIMINARES | D17: =Orçamento!S349 -> 0 | E17: =Orçamento!V349 -> 0 | F17: =Orçamento!X349 -> 0
A18: =IF(D18>0,"F","") ->  | B18: b. | C18: =Orçamento!P350 -> TRANSPORTES | D18: =Orçamento!S350 -> 0 | E18: =Orçamento!V350 -> 0 | F18: =Orçamento!X350 -> 0
B19: c. | C19: =Orçamento!P351 -> SERVIÇO EM TERRA | D19: =Orçamento!S351 -> 0 | E19: =Orçamento!V351 -> 0 | F19: =Orçamento!X351 -> 0
B20: d. | C20: =Orçamento!P352 -> FUNDAÇÕES E SONDAGENS | D20: =Orçamento!S352 -> 0 | E20: =Orçamento!V352 -> 0 | F20: =Orçamento!X352 -> 0
B21: e. | C21: =Orçamento!P353 -> ESTRUTURA | D21: =Orçamento!S353 -> 0 | E21: =Orçamento!V353 -> 0 | F21: =Orçamento!X353 -> 0
B22: f. | C22: =Orçamento!P354 -> INSTALAÇÕES ELÉTRICAS | D22: =Orçamento!S354 -> 0 | E22: =Orçamento!V354 -> 0 | F22: =Orçamento!X354 -> 0
B23: g. | C23: =Orçamento!P355 -> INSTALAÇÕES HIDROSSANITÁRIAS | D23: =Orçamento!S355 -> 0 | E23: =Orçamento!V355 -> 0 | F23: =Orçamento!X355 -> 0
B24: h. | C24: =Orçamento!P356 -> INSTALAÇÕES ESPECIAIS | D24: =Orçamento!S356 -> 0 | E24: =Orçamento!V356 -> 0 | F24: =Orçamento!X356 -> 0
B25: i. | C25: =Orçamento!P357 -> ALVENARIAS E DIVISÓRIAS | D25: =Orçamento!S357 -> 0 | E25: =Orçamento!V357 -> 0 | F25: =Orçamento!X357 -> 0
B26: j. | C26: =Orçamento!P358 -> ALVENARIA AUTO-PORTANTE | D26: =Orçamento!S358 -> 0 | E26: =Orçamento!V358 -> 0 | F26: =Orçamento!X358 -> 0
B27: k. | C27: =Orçamento!P359 -> IMPERMEABILIZAÇÃO | D27: =Orçamento!S359 -> 0 | E27: =Orçamento!V359 -> 0 | F27: =Orçamento!X359 -> 0
B28: l. | C28: =Orçamento!P360 -> ISOLAMENTO TÉRMICO E ACÚSTICO | D28: =Orçamento!S360 -> 0 | E28: =Orçamento!V360 -> 0 | F28: =Orçamento!X360 -> 0
B29: m. | C29: =Orçamento!P361 -> ESTRUTURA DE MADEIRA | D29: =Orçamento!S361 -> 0 | E29: =Orçamento!V361 -> 0 | F29: =Orçamento!X361 -> 0
B30: n. | C30: =Orçamento!P362 -> ESTRUTURAS METÁLICAS | D30: =Orçamento!S362 -> 0 | E30: =Orçamento!V362 -> 0 | F30: =Orçamento!X362 -> 0
B31: o. | C31: =Orçamento!P363 -> COBERTURAS | D31: =Orçamento!S363 -> 0 | E31: =Orçamento!V363 -> 0 | F31: =Orçamento!X363 -> 0
B32: p. | C32: =Orçamento!P364 -> ESQUADRIAS DE MADEIRA | D32: =Orçamento!S364 -> 0 | E32: =Orçamento!V364 -> 0 | F32: =Orçamento!X364 -> 0
B33: q. | C33: =Orçamento!P365 -> ESQUADRIAS METÁLICAS | D33: =Orçamento!S365 -> 0 | E33: =Orçamento!V365 -> 0 | F33: =Orçamento!X365 -> 0
B34: r. | C34: =Orçamento!P366 -> VIDROS | D34: =Orçamento!S366 -> 0 | E34: =Orçamento!V366 -> 0 | F34: =Orçamento!X366 -> 0
B35: s. | C35: =Orçamento!P367 -> REVESTIMENTO DE PAREDE | D35: =Orçamento!S367 -> 0 | E35: =Orçamento!V367 -> 0 | F35: =Orçamento!X367 -> 0
B36: t. | C36: =Orçamento!P368 -> FORROS | D36: =Orçamento!S368 -> 0 | E36: =Orçamento!V368 -> 0 | F36: =Orçamento!X368 -> 0
B37: u. | C37: =Orçamento!P369 -> REVESTIMENTO DE PISO | D37: =Orçamento!S369 -> 0 | E37: =Orçamento!V369 -> 0 | F37: =Orçamento!X369 -> 0
B38: v. | C38: =Orçamento!P370 -> FERRAGENS | D38: =Orçamento!S370 -> 0 | E38: =Orçamento!V370 -> 0 | F38: =Orçamento!X370 -> 0
B39: w. | C39: =Orçamento!P371 -> MARCENARIA | D39: =Orçamento!S371 -> 0 | E39: =Orçamento!V371 -> 0 | F39: =Orçamento!X371 -> 0
B40: x. | C40: =Orçamento!P372 -> ADMINISTRAÇÃO | D40: =Orçamento!S372 -> 0 | E40: =Orçamento!V372 -> 0 | F40: =Orçamento!X372 -> 0
B41: y. | C41: =Orçamento!P373 -> PINTURA | D41: =Orçamento!S373 -> 0 | E41: =Orçamento!V373 -> 0 | F41: =Orçamento!X373 -> 0
B42: z. | C42: =Orçamento!P374 -> DIVERSOS | D42: =Orçamento!S374 -> 0 | E42: =Orçamento!V374 -> 0 | F42: =Orçamento!X374 -> 0
A43: F | B43: TOTAL GERAL DO ORÇAMENTO | D43: =SUM(D17:D42) -> 0 | E43: =SUM(E17:E42) -> 0 | F43: =SUM(F17:F42) -> 0
B45: (*) Para itens da AGETOP, os vidros não estão inclusos nas esquadrias e já foram considerados os custos de contramarco para as esquadrias de alumínio;

Sheet Cronog_90_Dias
B3: UNIDADE ESCOLAR | I3: PRAZO
B4: =Orçamento!O4 -> ACERVO DAS ESCOLAS EXTINTAS DE GOIÂNIA | I4: 90 DIAS CORRIDOS
B6: OBRA | I6: DATA
B7: =Orçamento!O7 -> AMPLIAÇÃO E REFORMA | I7: =Orçamento!S7 -> 2020-09-02
B9: LOCAL | I9: ÁREA TOTAL CONSTRUÍDA (M²)
A10: FILTRO | B10: =Orçamento!V7 -> GOIÂNIA | I10: =Orçamento!V13 -> 2413.75
B12: CRONOGRAMA - FÍSICO FINANCEIRO
A13: ↓ | B13: CUSTO TOTAL: | C13: =D93 -> 0 | D13: VALOR | E13: Dias: | F13: 30 | J13: 60 | N13: 90 | R13: TOTAL
B14: DESCRIÇÃO DOS SERVIÇOS | E14: % | F14: 1ª PARCELA | J14: 2ª PARCELA | N14: 3ª PARCELA
A15: =IF(D15>0,"F","") ->  | B15: SERVIÇOS PRELIMINARES | D15: =Orçamento!V349 -> 0 | E15: =Orçamento!X349 -> 0 | F15: =ROUND(F17*$D$15,2) -> 0 | J15: =ROUND(J17*$D$15,2) -> 0 | N15: =ROUND(N17*$D$15,2) -> 0 | R15: =SUM(F15:Q15) -> 0 | T15: =IF(D15=R15,"OK","ERRO") -> OK
A16: =IF(A15="F",A15,"") -> 
A17: =IF(A16="F",A16,"") ->  | F17: 1 | J17: 0 | N17: =1-F17-J17 -> 0 | R17: =IFERROR(E15/100,"") -> 0 | T17: =IF(E15=R17*100,"OK","ERRO") -> OK
A18: =IF(D18>0,"F","") ->  | B18: TRANSPORTES | D18: =Orçamento!V350 -> 0 | E18: =Orçamento!X350 -> 0 | F18: =ROUND(F20*$D$18,2) -> 0 | J18: =ROUND(J20*$D$18,2) -> 0 | N18: =ROUND(N20*$D$18,2) -> 0 | R18: =SUM(F18:Q18) -> 0 | T18: =IF(D18=R18,"OK","ERRO") -> OK
A19: =IF(A18="F",A18,"") -> 
A20: =IF(A19="F",A19,"") ->  | F20: 0.335 | J20: 0.33 | N20: =1-F20-J20 -> 0.335 | R20: =IFERROR(E18/100,"") -> 0 | T20: =IF(E18=R20*100,"OK","ERRO") -> OK
A21: =IF(D21>0,"F","") ->  | B21: SERVIÇO EM TERRA | D21: =Orçamento!V351 -> 0 | E21: =Orçamento!X351 -> 0 | F21: =ROUND(F23*$D$21,2) -> 0 | J21: =ROUND(J23*$D$21,2) -> 0 | N21: =ROUND(N23*$D$21,2) -> 0 | R21: =SUM(F21:Q21) -> 0 | T21: =IF(D21=R21,"OK","ERRO") -> OK
A22: =IF(A21="F",A21,"") -> 
A23: =IF(A22="F",A22,"") ->  | F23: 1 | J23: 0 | N23: =1-F23-J23 -> 0 | R23: =IFERROR(E21/100,"") -> 0 | T23: =IF(E21=R23*100,"OK","ERRO") -> OK
A24: =IF(D24>0,"F","") ->  | B24: FUNDAÇÕES E SONDAGENS | D24: =Orçamento!V352 -> 0 | E24: =Orçamento!X352 -> 0 | F24: =ROUND(F26*$D$24,2) -> 0 | J24: =ROUND(J26*$D$24,2) -> 0 | N24: =ROUND(N26*$D$24,2) -> 0 | R24: =SUM(F24:Q24) -> 0 | T24: =IF(D24=R24,"OK","ERRO") -> OK
A25: =IF(A24="F",A24,"") -> 
A26: =IF(A25="F",A25,"") ->  | F26: 1 | J26: 0 | N26: =1-F26-J26 -> 0 | R26: =IFERROR(E24/100,"") -> 0 | T26: =IF(E24=R26*100,"OK","ERRO") -> OK
A27: =IF(D27>0,"F","") ->  | B27: ESTRUTURA | D27: =Orçamento!V353 -> 0 | E27: =Orçamento!X353 -> 0 | F27: =ROUND(F29*$D$27,2) -> 0 | J27: =ROUND(J29*$D$27,2) -> 0 | N27: =ROUND(N29*$D$27,2) -> 0 | R27: =SUM(F27:Q27) -> 0 | T27: =IF(D27=R27,"OK","ERRO") -> OK
A28: =IF(A27="F",A27,"") -> 
A29: =IF(A28="F",A28,"") ->  | F29: 0.54 | J29: 0.46 | N29: =1-F29-J29 -> 0 | R29: =IFERROR(E27/100,"") -> 0 | T29: =IF(E27=R29*100,"OK","ERRO") -> OK
A30: =IF(D30>0,"F","") ->  | B30: INST.ELET/TELEFÔNICA/CABEAMENTO ESTRUTURADO | D30: =Orçamento!V354 -> 0 | E30: =Orçamento!X354 -> 0 | F30: =ROUND(F32*$D$30,2) -> 0 | J30: =ROUND(J32*$D$30,2) -> 0 | N30: =ROUND(N32*$D$30,2) -> 0 | R30: =SUM(F30:Q30) -> 0 | T30: =IF(D30=R30,"OK","ERRO") -> OK
A31: =IF(A30="F",A30,"") -> 
A32: =IF(A31="F",A31,"") ->  | F32: 0.26 | J32: 0.74 | N32: =1-F32-J32 -> 0 | R32: =IFERROR(E30/100,"") -> 0 | T32: =IF(E30=R32*100,"OK","ERRO") -> OK
A33: =IF(D33>0,"F","") ->  | B33: INSTALAÇÕES HIDROSSANITÁRIAS | D33: =Orçamento!V355 -> 0 | E33: =Orçamento!X355 -> 0 | F33: =ROUND(F35*$D$33,2) -> 0 | J33: =ROUND(J35*$D$33,2) -> 0 | N33: =ROUND(N35*$D$33,2) -> 0 | R33: =SUM(F33:Q33) -> 0 | T33: =IF(D33=R33,"OK","ERRO") -> OK
A34: =IF(A33="F",A33,"") -> 
A35: =IF(A34="F",A34,"") ->  | F35: 0.26 | J35: 0.74 | N35: =1-F35-J35 -> 0 | R35: =IFERROR(E33/100,"") -> 0 | T35: =IF(E33=R35*100,"OK","ERRO") -> OK
A36: =IF(D36>0,"F","") ->  | B36: INSTALAÇÕES ESPECIAIS | D36: =Orçamento!V356 -> 0 | E36: =Orçamento!X356 -> 0 | F36: =ROUND(F38*$D$36,2) -> 0 | J36: =ROUND(J38*$D$36,2) -> 0 | N36: =ROUND(N38*$D$36,2) -> 0 | R36: =SUM(F36:Q36) -> 0 | T36: =IF(D36=R36,"OK","ERRO") -> OK
A37: =IF(A36="F",A36,"") -> 
A38: =IF(A37="F",A37,"") ->  | F38: 0.26 | J38: 0.74 | N38: =1-F38-J38 -> 0 | R38: =IFERROR(E36/100,"") -> 0 | T38: =IF(E36=R38*100,"OK","ERRO") -> OK
A39: =IF(D39>0,"F","") ->  | B39: ALVENARIA E DIVISÓRIAS | D39: =Orçamento!V357 -> 0 | E39: =Orçamento!X357 -> 0 | F39: =ROUND(F41*$D$39,2) -> 0 | J39: =ROUND(J41*$D$39,2) -> 0 | N39: =ROUND(N41*$D$39,2) -> 0 | R39: =SUM(F39:Q39) -> 0 | T39: =IF(D39=R39,"OK","ERRO") -> OK
A40: =IF(A39="F",A39,"") -> 
A41: =IF(A40="F",A40,"") ->  | F41: 0.26 | J41: 0.74 | N41: =1-F41-J41 -> 0 | R41: =IFERROR(E39/100,"") -> 0 | T41: =IF(E39=R41*100,"OK","ERRO") -> OK
A42: =IF(D42>0,"F","") ->  | B42: ALVENARIA AUTO-PORTANTE | D42: =Orçamento!V358 -> 0 | E42: =Orçamento!X358 -> 0 | F42: =ROUND(F44*$D$42,2) -> 0 | J42: =ROUND(J44*$D$42,2) -> 0 | N42: =ROUND(N44*$D$42,2) -> 0 | R42: =SUM(F42:Q42) -> 0 | T42: =IF(D42=R42,"OK","ERRO") -> OK
A43: =IF(A42="F",A42,"") -> 
A44: =IF(A43="F",A43,"") ->  | F44: 0 | J44: =1-B44 -> 1 | N44: =1-F44-J44 -> 0 | R44: =IFERROR(E42/100,"") -> 0 | T44: =IF(E42=R44*100,"OK","ERRO") -> OK
A45: =IF(D45>0,"F","") ->  | B45: IMPERMEABILIZAÇÃO | D45: =Orçamento!V359 -> 0 | E45: =Orçamento!X359 -> 0 | F45: =ROUND(F47*$D$45,2) -> 0 | J45: =ROUND(J47*$D$45,2) -> 0 | N45: =ROUND(N47*$D$45,2) -> 0 | R45: =SUM(F45:Q45) -> 0 | T45: =IF(D45=R45,"OK","ERRO") -> OK
A46: =IF(A45="F",A45,"") -> 
A47: =IF(A46="F",A46,"") ->  | F47: 0.85 | J47: 0.15 | N47: =1-F47-J47 -> 0 | R47: =IFERROR(E45/100,"") -> 0 | T47: =IF(E45=R47*100,"OK","ERRO") -> OK
A48: =IF(D48>0,"F","") ->  | B48: ISOLAMENTO TÉRMICO E ACÚSTICO | D48: =Orçamento!V360 -> 0 | E48: =Orçamento!X360 -> 0 | F48: =ROUND(F50*$D$48,2) -> 0 | J48: =ROUND(J50*$D$48,2) -> 0 | N48: =ROUND(N50*$D$48,2) -> 0 | R48: =SUM(F48:Q48) -> 0 | T48: =IF(D48=R48,"OK","ERRO") -> OK
A49: =IF(A48="F",A48,"") -> 
A50: =IF(A49="F",A49,"") ->  | F50: 0 | J50: =1-B50 -> 1 | N50: =1-F50-J50 -> 0 | R50: =IFERROR(E48/100,"") -> 0 | T50: =IF(E48=R50*100,"OK","ERRO") -> OK
A51: =IF(D51>0,"F","") ->  | B51: ESTRUTURA DE MADEIRA | D51: =Orçamento!V361 -> 0 | E51: =Orçamento!X361 -> 0 | F51: =ROUND(F53*$D$51,2) -> 0 | J51: =ROUND(J53*$D$51,2) -> 0 | N51: =ROUND(N53*$D$51,2) -> 0 | R51: =SUM(F51:Q51) -> 0 | T51: =IF(D51=R51,"OK","ERRO") -> OK
A52: =IF(A51="F",A51,"") -> 
A53: =IF(A52="F",A52,"") ->  | F53: 0 | J53: 0.58 | N53: =1-F53-J53 -> 0.42 | R53: =IFERROR(E51/100,"") -> 0 | T53: =IF(E51=R53*100,"OK","ERRO") -> OK
A54: =IF(D54>0,"F","") ->  | B54: ESTRUTURA METÁLICA | D54: =Orçamento!V362 -> 0 | E54: =Orçamento!X362 -> 0 | F54: =ROUND(F56*$D$54,2) -> 0 | J54: =ROUND(J56*$D$54,2) -> 0 | N54: =ROUND(N56*$D$54,2) -> 0 | R54: =SUM(F54:Q54) -> 0 | T54: =IF(D54=R54,"OK","ERRO") -> OK
A55: =IF(A54="F",A54,"") -> 
A56: =IF(A55="F",A55,"") ->  | F56: 0 | J56: 0.58 | N56: =1-F56-J56 -> 0.42 | R56: =IFERROR(E54/100,"") -> 0 | T56: =IF(E54=R56*100,"OK","ERRO") -> OK
A57: =IF(D57>0,"F","") ->  | B57: COBERTURAS | D57: =Orçamento!V363 -> 0 | E57: =Orçamento!X363 -> 0 | F57: =ROUND(F59*$D$57,2) -> 0 | J57: =ROUND(J59*$D$57,2) -> 0 | N57: =ROUND(N59*$D$57,2) -> 0 | R57: =SUM(F57:Q57) -> 0 | T57: =IF(D57=R57,"OK","ERRO") -> OK
A58: =IF(A57="F",A57,"") -> 
A59: =IF(A58="F",A58,"") ->  | F59: 0 | J59: 0 | N59: =1-F59-J59 -> 1 | R59: =IFERROR(E57/100,"") -> 0 | T59: =IF(E57=R59*100,"OK","ERRO") -> OK
A60: =IF(D60>0,"F","") ->  | B60: ESQUADRIAS DE MADEIRA | D60: =Orçamento!V364 -> 0 | E60: =Orçamento!X364 -> 0 | F60: =ROUND(F62*$D$60,2) -> 0 | J60: =ROUND(J62*$D$60,2) -> 0 | N60: =ROUND(N62*$D$60,2) -> 0 | R60: =SUM(F60:Q60) -> 0 | T60: =IF(D60=R60,"OK","ERRO") -> OK
A61: =IF(A60="F",A60,"") -> 
A62: =IF(A61="F",A61,"") ->  | F62: 0 | J62: 0.4 | N62: =1-F62-J62 -> 0.6 | R62: =IFERROR(E60/100,"") -> 0 | T62: =IF(E60=R62*100,"OK","ERRO") -> OK
A63: =IF(D63>0,"F","") ->  | B63: ESQUADRIAS METÁLICAS | D63: =Orçamento!V365 -> 0 | E63: =Orçamento!X365 -> 0 | F63: =ROUND(F65*$D$63,2) -> 0 | J63: =ROUND(J65*$D$63,2) -> 0 | N63: =ROUND(N65*$D$63,2) -> 0 | R63: =SUM(F63:Q63) -> 0 | T63: =IF(D63=R63,"OK","ERRO") -> OK
A64: =IF(A63="F",A63,"") -> 
A65: =IF(A64="F",A64,"") ->  | F65: 0 | J65: 0.45 | N65: =1-F65-J65 -> 0.55 | R65: =IFERROR(E63/100,"") -> 0 | T65: =IF(E63=R65*100,"OK","ERRO") -> OK
A66: =IF(D66>0,"F","") ->  | B66: VIDROS | D66: =Orçamento!V366 -> 0 | E66: =Orçamento!X366 -> 0 | F66: =ROUND(F68*$D$66,2) -> 0 | J66: =ROUND(J68*$D$66,2) -> 0 | N66: =ROUND(N68*$D$66,2) -> 0 | R66: =SUM(F66:Q66) -> 0 | T66: =IF(D66=R66,"OK","ERRO") -> OK
A67: =IF(A66="F",A66,"") -> 
A68: =IF(A67="F",A67,"") ->  | F68: 0 | J68: 0 | N68: =1-F68-J68 -> 1 | R68: =IFERROR(E66/100,"") -> 0 | T68: =IF(E66=R68*100,"OK","ERRO") -> OK
A69: =IF(D69>0,"F","") ->  | B69: REVESTIMENTO DE PAREDE | D69: =Orçamento!V367 -> 0 | E69: =Orçamento!X367 -> 0 | F69: =ROUND(F71*$D$69,2) -> 0 | J69: =ROUND(J71*$D$69,2) -> 0 | N69: =ROUND(N71*$D$69,2) -> 0 | R69: =SUM(F69:Q69) -> 0 | T69: =IF(D69=R69,"OK","ERRO") -> OK
A70: =IF(A69="F",A69,"") -> 
A71: =IF(A70="F",A70,"") ->  | F71: 0 | J71: 0.4 | N71: =1-F71-J71 -> 0.6 | R71: =IFERROR(E69/100,"") -> 0 | T71: =IF(E69=R71*100,"OK","ERRO") -> OK
A72: =IF(D72>0,"F","") ->  | B72: FORROS | D72: =Orçamento!V368 -> 0 | E72: =Orçamento!X368 -> 0 | F72: =ROUND(F74*$D$72,2) -> 0 | J72: =ROUND(J74*$D$72,2) -> 0 | N72: =ROUND(N74*$D$72,2) -> 0 | R72: =SUM(F72:Q72) -> 0 | T72: =IF(D72=R72,"OK","ERRO") -> OK
A73: =IF(A72="F",A72,"") -> 
A74: =IF(A73="F",A73,"") ->  | F74: 0 | J74: 0.4 | N74: =1-F74-J74 -> 0.6 | R74: =IFERROR(E72/100,"") -> 0 | T74: =IF(E72=R74*100,"OK","ERRO") -> OK
A75: =IF(D75>0,"F","") ->  | B75: REVESTIMENTO DE PISO | D75: =Orçamento!V369 -> 0 | E75: =Orçamento!X369 -> 0 | F75: =ROUND(F77*$D$75,2) -> 0 | J75: =ROUND(J77*$D$75,2) -> 0 | N75: =ROUND(N77*$D$75,2) -> 0 | R75: =SUM(F75:Q75) -> 0 | T75: =IF(D75=R75,"OK","ERRO") -> OK
A76: =IF(A75="F",A75,"") -> 
A77: =IF(A76="F",A76,"") ->  | F77: 0 | J77: 0.4 | N77: =1-F77-J77 -> 0.6 | R77: =IFERROR(E75/100,"") -> 0 | T77: =IF(E75=R77*100,"OK","ERRO") -> OK
A78: =IF(D78>0,"F","") ->  | B78: FERRAGENS | D78: =Orçamento!V370 -> 0 | E78: =Orçamento!X370 -> 0 | F78: =ROUND(F80*$D$78,2) -> 0 | J78: =ROUND(J80*$D$78,2) -> 0 | N78: =ROUND(N80*$D$78,2) -> 0 | R78: =SUM(F78:Q78) -> 0 | T78: =IF(D78=R78,"OK","ERRO") -> OK
A79: =IF(A78="F",A78,"") -> 
A80: =IF(A79="F",A79,"") ->  | F80: 0 | J80: 0 | N80: =1-F80-J80 -> 1 | R80: =IFERROR(E78/100,"") -> 0 | T80: =IF(E78=R80*100,"OK","ERRO") -> OK
A81: =IF(D81>0,"F","") ->  | B81: MARCENARIA | D81: =Orçamento!V371 -> 0 | E81: =Orçamento!X371 -> 0 | F81: =ROUND(F83*$D$81,2) -> 0 | J81: =ROUND(J83*$D$81,2) -> 0 | N81: =ROUND(N83*$D$81,2) -> 0 | R81: =SUM(F81:Q81) -> 0 | T81: =IF(D81=R81,"OK","ERRO") -> OK
A82: =IF(A81="F",A81,"") -> 
A83: =IF(A82="F",A82,"") ->  | F83: 0 | J83: 0 | N83: =1-F83-J83 -> 1 | R83: =IFERROR(E81/100,"") -> 0 | T83: =IF(E81=R83*100,"OK","ERRO") -> OK
A84: =IF(D84>0,"F","") ->  | B84: ADMINISTRAÇÃO - MENSALISTAS | D84: =Orçamento!V372 -> 0 | E84: =Orçamento!X372 -> 0 | F84: =ROUND(F86*$D$84,2) -> 0 | J84: =ROUND(J86*$D$84,2) -> 0 | N84: =ROUND(N86*$D$84,2) -> 0 | R84: =SUM(F84:Q84) -> 0 | T84: =IF(D84=R84,"OK","ERRO") -> OK
A85: =IF(A84="F",A84,"") -> 
A86: =IF(A85="F",A85,"") ->  | F86: 0.35 | J86: 0.31 | N86: =1-F86-J86 -> 0.34 | R86: =IFERROR(E84/100,"") -> 0 | T86: =IF(E84=R86*100,"OK","ERRO") -> OK
A87: =IF(D87>0,"F","") ->  | B87: PINTURA | D87: =Orçamento!V373 -> 0 | E87: =Orçamento!X373 -> 0 | F87: =ROUND(F89*$D$87,2) -> 0 | J87: =ROUND(J89*$D$87,2) -> 0 | N87: =ROUND(N89*$D$87,2) -> 0 | R87: =SUM(F87:Q87) -> 0 | T87: =IF(D87=R87,"OK","ERRO") -> OK
A88: =IF(A87="F",A87,"") -> 
A89: =IF(A88="F",A88,"") ->  | F89: 0 | J89: 0 | N89: =1-F89-J89 -> 1 | R89: =IFERROR(E87/100,"") -> 0 | T89: =IF(E87=R89*100,"OK","ERRO") -> OK
A90: =IF(D90>0,"F","") ->  | B90: DIVERSOS | D90: =Orçamento!V374 -> 0 | E90: =Orçamento!X374 -> 0 | F90: =ROUND(F92*$D$90,2) -> 0 | J90: =ROUND(J92*$D$90,2) -> 0 | N90: =ROUND(N92*$D$90,2) -> 0 | R90: =SUM(F90:Q90) -> 0 | T90: =IF(D90=R90,"OK","ERRO") -> OK
A91: =IF(A90="F",A90,"") -> 
A92: =IF(A91="F",A91,"") ->  | F92: 0 | J92: 0 | N92: =1-F92-J92 -> 1 | R92: =IFERROR(E90/100,"") -> 0 | T92: =IF(E90=R92*100,"OK","ERRO") -> OK
A93: F | B93: CUSTO DO ORÇAMENTO | D93: =SUM(D15:D92) -> 0 | E93: =SUM(E15:E92) -> 0 | F93: =F15+F18+F21+F24+F27+F30+F33+F36+F39+F42+F45+F48+F51+F54+F57+F60+F63+F66+F69+F72+F75+F78+F81+F84+F87+F90 -> 0 | J93: =J15+J18+J21+J24+J27+J30+J33+J36+J39+J42+J45+J48+J51+J54+J57+J60+J63+J66+J69+J72+J75+J78+J81+J84+J87+J90 -> 0 | N93: =N15+N18+N21+N24+N27+N30+N33+N36+N39+N42+N45+N48+N51+N54+N57+N60+N63+N66+N69+N72+N75+N78+N81+N84+N87+N90 -> 0 | R93: =R15+R18+R21+R24+R27+R30+R33+R36+R39+R42+R45+R48+R51+R54+R57+R60+R63+R66+R69+R72+R75+R78+R81+R84+R87+R90 -> 0
A94: F | B94: PERCENTUAIS: | F94: =IFERROR(F93/D93,"") ->  | J94: =IFERROR(J93/D93,"") ->  | N94: =IFERROR(N93/D93,"") ->  | R94: =SUM(F94:Q94) -> 0
A95: F | B95: TOTAIS ACUMULADOS: | F95: =F93 -> 0 | J95: =F95+J93 -> 0 | N95: =J95+N93 -> 0
A96: F | B96: PERCENTUAIS ACUMULADOS: | F96: =F94 ->  | J96: =J94+F96 ->  | N96: =IFERROR(J96+N94,"") -> 
A97: F
A98: F | B98: OBSERVAÇÕES:
A99: F | B99: Os pagamentos somente poderão ser efetuados mediante medição e atesto pelos técnicos da Secretaria da Educação.

Sheet Composição BDI
A3: UNIDADE ESCOLAR
A4: =Orçamento!$O$4 -> ACERVO DAS ESCOLAS EXTINTAS DE GOIÂNIA
A6: OBRA
A7: =Orçamento!$O$7 -> AMPLIAÇÃO E REFORMA
A9: ENDEREÇO
A10: =Orçamento!$R$10 -> AV. HUGO DE CARVALHO RAMOS, VILA IRANY
A12: CIDADE
A13: =Orçamento!$V$7 -> GOIÂNIA
A15: CRE
A16: =Orçamento!$O$10 -> GOIÂNIA
A18: DETALHAMENTO DA COMPOSIÇÃO DE BDI
A19: COMPOSIÇÃO BDI PARA OBRAS CIVIS | F19: BDI CONSTRUÇÃO E REFORMA
A20: DESCRIÇÃO | B20: COEF. | C20: TAXA % (a.m) | D20: % no preço de venda | F20: Situação | G20: 1º Quartil | H20: Médio | I20: 3º Quartil
A21: 1) COFINS | B21: 1 | C21: 0.03 | D21: =C21 -> 0.03 | F21: =IF(OR(C21<G21,C21>I21),"FORA DO INTERVALO","OK") -> OK | G21: 0.03 | H21: 0.03 | I21: 0.03
A22: 2) PIS | B22: 1 | C22: 0.0065 | D22: =C22 -> 0.0065 | F22: =IF(OR(C22<G22,C22>I22),"FORA DO INTERVALO","OK") -> OK | G22: 0.0065 | H22: 0.0065 | I22: 0.0065
A23: 3) ISSQN | B23: 1 | C23: 0.03 | D23: =C23*B23 -> 0.03 | F23: OK | G23: 0.02 | H23: 0.035 | I23: 0.05
A24: 4) CPRB | B24: 1 | C24: 0 | D24: =C24 -> 0 | F24: FORA DO INTERVALO | G24: 0.045 | H24: 0.045 | I24: 0.045
A25: 5) Administração Central | B25: 1 | C25: 0.0312 | D25: 0.0312 | F25: OK | G25: 0.03 | H25: 0.04 | I25: 0.055
A26: 6) Despesas Financeiras | B26: 1 | C26: 0.0056 | D26: 0.0056 | F26: FORA DO INTERVALO | G26: 0.0059 | H26: 0.0123 | I26: 0.0139
A27: 7) Seguros + Garantias | B27: 1 | C27: 0.0012 | D27: 0.0012 | F27: FORA DO INTERVALO | G27: 0.008 | H27: 0.008 | I27: 0.01
A28: 8) Risco | B28: 1 | C28: 0.0097 | D28: 0.0097 | F28: OK | G28: 0.0097 | H28: 0.0127 | I28: 0.0127
A29: 9) Lucro | B29: 1 | C29: 0.072 | D29: 0.072 | F29: OK | G29: 0.0616 | H29: 0.074 | I29: 0.0896
A30: BDI - FINAL | D30: =(((1+D25+D27+D28)*(1+D26)*(1+D29))/(1-(D21+D22+D23+D24))-1) -> 0.2034141775 | F30: =IF(OR(D30<G30,D30>I30),"FORA DO INTERVALO","OK") -> OK | G30: 0.2034 | H30: 0.2212 | I30: 0.25
A32: Notas:
A33: (1) e (2) Alíquota definida por lei.
A34: (3) Alíquota e base de cálculo definidas pela legislação municipal.
A35: (4) Alíquota definida pelas leis 12.546/11, 12844/13 e 13.161/15 (CPRB – contribuição previdenciária sobre a receita bruta).
A36: (5) Valores definidos a partir dos limites no Acórdão nº 2.622/2013 - TCU – Plenário. Valores entre o 1º e 3º quartis.
A37: (6) Valor calculado pela expressão matemática do acórdão 2.369/2011 – TCU – Plenário e disponibilizado pela AGETOP em dezembro de 2018. (Foi utilizado para o cálculo a média da Taxa SELIC no período de 11/2017 a 10/2018)
A39: (7) Valores definidos pela AGETOP a partir dos limites no Acórdão nº 2.622/2013 - TCU – Plenário. Valores médios. Observação da AGETOP: (Seguros contra erros de execução, incêndio e explosão, danos da natureza (vendaval, destelhamento, alagamento, inundação, desmoronamento, geadas etc.), emprego de material defeituoso ou inadequado, roubo e/ou furto qualificado, quebra de equipamentos, desmoronamento de estrutura, nas modalidades de Obras Civis em Construção (OCC); Instalação e Montagem (IM); e Obras Civis em Construção e Instalação e Montagem (OCC/IM). Bem como coberturas adicionais para ampliação dessas coberturas básicas, como: cobertura de responsabilidade civil geral, cobertura de responsabilidade civil cruzada, cobertura de despesas extraordinárias, cobertura de tumultos, cobertura de desentulho do local, cobertura de riscos do fabricante, dentre outras, incluindo o seguro de vida em grupo regido pela convenção coletiva dos trabalhadores na indústria da construção civil). A partir de 24/02/2015 por intermédio da Portaria 449/2015 a Presidência da AGETOP, na pessoa do Senhor Jayme Eduardo Rincon, determinou a exclusão dos valores referentes aos Seguros de Risco de Engenharia e Responsabilidade Civil do Profissional na composição do cálculo do B.D.I..
A40: (8) Valores definidos a partir dos limites no Acórdão nº 2.622/2013 - TCU – Plenário. Valores entre 1º e 3° quartis.
A41: (9) Valores definidos a partir dos limites definidos no Acórdão nº 2.622/2013 - TCU – Plenário. Valores adotados e praticados no mercado ( “ ex ante ” ) ou aqueles entre os 1º e 3º quartis.
A43: (*) A fórmula para estipulação da taxa de BDI estimado adotado é a mesma que foi aplicada para a obtenção das tabelas contidas no Acórdão n. 2.622/2013 – TCUPlenário
A45: Obs.: Para obras com valores superiores a R$ 20.000.000,00 sugere-se recalcular o BDI, dimensionando as taxas de administração central e lucro para patamares inferiores ao estipulado acima.

Sheet Relatório CENTRAL
B3: UNIDADE ESCOLAR | D3: CIDADE
B4: =Orçamento!$O$4 -> ACERVO DAS ESCOLAS EXTINTAS DE GOIÂNIA | D4: =Orçamento!$V$7 -> GOIÂNIA
B6: OBRA | D6: CRE
B7: =Orçamento!$O$7 -> AMPLIAÇÃO E REFORMA | D7: =Orçamento!$O$10 -> GOIÂNIA
B9: ENDEREÇO | D9: DATA
A10: FILTRO | B10: =Orçamento!$R$10 -> AV. HUGO DE CARVALHO RAMOS, VILA IRANY | D10: =Orçamento!$S$7 -> 2020-09-02
B12: RELATÓRIO CENTRAL
A13: ↓ | B13: CÓDIGO | C13: ETAPA | D13: PREÇO (R$) C/ BDI | E13: PARTIC ( % )
A14: =IF(D14>0,"F","") ->  | B14: =Orçamento!O349 -> a. | C14: =Orçamento!P349 -> SERVIÇOS PRELIMINARES | D14: =Orçamento!V349 -> 0 | E14: =Orçamento!X349 -> 0
A15: =IF(D15>0,"F","") ->  | B15: =Orçamento!O350 -> b. | C15: =Orçamento!P350 -> TRANSPORTES | D15: =Orçamento!V350 -> 0 | E15: =Orçamento!X350 -> 0
B16: =Orçamento!O351 -> c. | C16: =Orçamento!P351 -> SERVIÇO EM TERRA | D16: =Orçamento!V351 -> 0 | E16: =Orçamento!X351 -> 0
B17: =Orçamento!O352 -> d. | C17: =Orçamento!P352 -> FUNDAÇÕES E SONDAGENS | D17: =Orçamento!V352 -> 0 | E17: =Orçamento!X352 -> 0
B18: =Orçamento!O353 -> e. | C18: =Orçamento!P353 -> ESTRUTURA | D18: =Orçamento!V353 -> 0 | E18: =Orçamento!X353 -> 0
B19: =Orçamento!O354 -> f. | C19: =Orçamento!P354 -> INSTALAÇÕES ELÉTRICAS | D19: =Orçamento!V354 -> 0 | E19: =Orçamento!X354 -> 0
B20: =Orçamento!O355 -> g. | C20: =Orçamento!P355 -> INSTALAÇÕES HIDROSSANITÁRIAS | D20: =Orçamento!V355 -> 0 | E20: =Orçamento!X355 -> 0
B21: =Orçamento!O356 -> h | C21: =Orçamento!P356 -> INSTALAÇÕES ESPECIAIS | D21: =Orçamento!V356 -> 0 | E21: =Orçamento!X356 -> 0
B22: =Orçamento!O357 -> i. | C22: =Orçamento!P357 -> ALVENARIAS E DIVISÓRIAS | D22: =Orçamento!V357 -> 0 | E22: =Orçamento!X357 -> 0
B23: =Orçamento!O358 -> j. | C23: =Orçamento!P358 -> ALVENARIA AUTO-PORTANTE | D23: =Orçamento!V358 -> 0 | E23: =Orçamento!X358 -> 0
B24: =Orçamento!O359 -> k. | C24: =Orçamento!P359 -> IMPERMEABILIZAÇÃO | D24: =Orçamento!V359 -> 0 | E24: =Orçamento!X359 -> 0
B25: =Orçamento!O360 -> l. | C25: =Orçamento!P360 -> ISOLAMENTO TÉRMICO E ACÚSTICO | D25: =Orçamento!V360 -> 0 | E25: =Orçamento!X360 -> 0
B26: =Orçamento!O361 -> m. | C26: =Orçamento!P361 -> ESTRUTURA DE MADEIRA | D26: =Orçamento!V361 -> 0 | E26: =Orçamento!X361 -> 0
B27: =Orçamento!O362 -> n. | C27: =Orçamento!P362 -> ESTRUTURAS METÁLICAS | D27: =Orçamento!V362 -> 0 | E27: =Orçamento!X362 -> 0
B28: =Orçamento!O363 -> o. | C28: =Orçamento!P363 -> COBERTURAS | D28: =Orçamento!V363 -> 0 | E28: =Orçamento!X363 -> 0
B29: =Orçamento!O364 -> p. | C29: =Orçamento!P364 -> ESQUADRIAS DE MADEIRA | D29: =Orçamento!V364 -> 0 | E29: =Orçamento!X364 -> 0
B30: =Orçamento!O365 -> q. | C30: =Orçamento!P365 -> ESQUADRIAS METÁLICAS | D30: =Orçamento!V365 -> 0 | E30: =Orçamento!X365 -> 0
B31: =Orçamento!O366 -> r. | C31: =Orçamento!P366 -> VIDROS | D31: =Orçamento!V366 -> 0 | E31: =Orçamento!X366 -> 0
B32: =Orçamento!O367 -> s. | C32: =Orçamento!P367 -> REVESTIMENTO DE PAREDE | D32: =Orçamento!V367 -> 0 | E32: =Orçamento!X367 -> 0
B33: =Orçamento!O368 -> t. | C33: =Orçamento!P368 -> FORROS | D33: =Orçamento!V368 -> 0 | E33: =Orçamento!X368 -> 0
B34: =Orçamento!O369 -> u. | C34: =Orçamento!P369 -> REVESTIMENTO DE PISO | D34: =Orçamento!V369 -> 0 | E34: =Orçamento!X369 -> 0
B35: =Orçamento!O370 -> v. | C35: =Orçamento!P370 -> FERRAGENS | D35: =Orçamento!V370 -> 0 | E35: =Orçamento!X370 -> 0
B36: =Orçamento!O371 -> w. | C36: =Orçamento!P371 -> MARCENARIA | D36: =Orçamento!V371 -> 0 | E36: =Orçamento!X371 -> 0
B37: =Orçamento!O372 -> x. | C37: =Orçamento!P372 -> ADMINISTRAÇÃO | D37: =Orçamento!V372 -> 0 | E37: =Orçamento!X372 -> 0
B38: =Orçamento!O373 -> y. | C38: =Orçamento!P373 -> PINTURA | D38: =Orçamento!V373 -> 0 | E38: =Orçamento!X373 -> 0
B39: =Orçamento!O374 -> z. | C39: =Orçamento!P374 -> DIVERSOS | D39: =Orçamento!V374 -> 0 | E39: =Orçamento!X374 -> 0
A40: F | B40: TOTAL GERAL DO ORÇAMENTO (R$) C/BDI | D40: =SUM(D14:D39) -> 0 | E40: =SUM(E14:E39) -> 0

Sheet Parc Maior Relev
B3: UNIDADE ESCOLAR | E3: CÓDIGO INEP
B4: =Orçamento!$O$4 -> ACERVO DAS ESCOLAS EXTINTAS DE GOIÂNIA | E4: =Orçamento!$V$4 -> 0
B6: OBRA | E6: CIDADE
B7: =Orçamento!$O$7 -> AMPLIAÇÃO E REFORMA | E7: =Orçamento!$V$7 -> GOIÂNIA
B9: CRE | E9: ÁREA TOTAL CONSTRUÍDA (M²)
B10: =Orçamento!$O$10 -> GOIÂNIA | E10: =Orçamento!$V$13 -> 2413.75
A11: FILTRO
B12: PARCELA DE MAIOR RELEVÂNCIA
B13: CÓDIGO | C13: SERVIÇO | D13: DESCRIÇÃO | E13: UNID | F13: QUANT | G13: PARC. MAIOR RELEV (100%)
B14: 70000 | C14: INSTALAÇÕES ELÉTRICAS | D14: SUBESTAÇÃO | E14: KVA | F14: =SUMIF(Orçamento!$R$20:$R$330,'Parc Maior Relev'!D14,Orçamento!$T$20:$T$330) -> 0 | G14: =F14 -> 0
B15: CÓDIGO | C15: SERVIÇO | D15: DESCRIÇÃO | E15: UNID | F15: QUANT | G15: PARC. MAIOR RELEV (50%)
B16: 70000 | C16: INSTALAÇÕES ELÉTRICAS | D16: INSTALAÇÕES ELÉTRICAS | E16: KVA | F16: 47.96 | G16: =F16*0.5 -> 23.98
B17: 160000 | C17: COBERTURAS | D17: TELHA AMERICANA | E17: M2 | F17: =Orçamento!T203+Orçamento!T207+Orçamento!T211+Orçamento!T215+Orçamento!T219 -> 985.83 | G17: =F17*0.5 -> 492.915
B18: 160000 | C18: COBERTURAS | D18: TELHA FIBROCIMENTO | E18: M2 | F18: =SUMIF(Orçamento!$R$20:$R$330,'Parc Maior Relev'!D18,Orçamento!$T$20:$T$330) -> 0 | G18: 0
B19: 160000 | C19: COBERTURAS | D19: TELHA METÁLICA | E19: M2 | F19: =SUMIF(Orçamento!$R$20:$R$330,'Parc Maior Relev'!D19,Orçamento!$T$20:$T$330) -> 0 | G19: 0
B20: 200000 | C20: REVESTIMENTO DE PAREDE | D20: REBOCO | E20: M2 | F20: =SUMIF(Orçamento!$R$20:$R$330,'Parc Maior Relev'!D20,Orçamento!$T$20:$T$330) -> 0 | G20: =F20*0.5 -> 0
B21: 200000 | C21: REVESTIMENTO DE PAREDE | D21: REVESTIMENTO CERÂMICO | E21: M2 | F21: =SUMIF(Orçamento!$R$20:$R$330,'Parc Maior Relev'!D21,Orçamento!$T$20:$T$330) -> 0 | G21: 0
B22: 210000 | C22: FORROS | D22: FORRO DE GESSO | E22: M2 | F22: =SUMIF(Orçamento!$R$20:$R$330,'Parc Maior Relev'!D22,Orçamento!$T$20:$T$330) -> 0 | G22: =F22*0.5 -> 0
B23: 210000 | C23: FORROS | D23: FORRO PVC | E23: M2 | F23: =SUMIF(Orçamento!$R$20:$R$330,'Parc Maior Relev'!D23,Orçamento!$T$20:$T$330) -> 0 | G23: 0
B24: 210000 | C24: FORROS | D24: FORRO ACARTONADO | E24: M2 | F24: =SUMIF(Orçamento!$R$20:$R$330,'Parc Maior Relev'!D24,Orçamento!$T$20:$T$330) -> 0 | G24: 0
B25: 220000 | C25: REVESTIMENTO DE PISO | D25: PISO GRANITINA | E25: M2 | F25: =SUMIF(Orçamento!$R$20:$R$330,'Parc Maior Relev'!D25,Orçamento!$T$20:$T$330) -> 0 | G25: 0
B26: 220000 | C26: REVESTIMENTO DE PISO | D26: PISO LAMINADO | E26: M2 | F26: =SUMIF(Orçamento!$R$20:$R$330,'Parc Maior Relev'!D26,Orçamento!$T$20:$T$330) -> 0 | G26: 0
B27: 220000 | C27: REVESTIMENTO DE PISO | D27: PISO CONCRETO DESEMPENADO | E27: M2 | F27: =SUMIF(Orçamento!$R$20:$R$330,'Parc Maior Relev'!D27,Orçamento!$T$20:$T$330) -> 0 | G27: 0
B28: 220000 | C28: REVESTIMENTO DE PISO | D28: PISO CERÂMICO | E28: M2 | F28: =SUMIF(Orçamento!$R$20:$R$330,'Parc Maior Relev'!D28,Orçamento!$T$20:$T$330) -> 0 | G28: =F28*0.5 -> 0
B29: 260000 | C29: PINTURA | D29: PINTURA | E29: M2 | F29: =SUMIF(Orçamento!$R$20:$R$330,'Parc Maior Relev'!D29,Orçamento!$T$20:$T$330) -> 0 | G29: 0
A30: F
A31: F | B31: (*) Para os fins do inciso I dp § 1º do Art. 30 da Lei Federal 8.666/93, são consideradas parcelas de maior relevância técnica as execuções apresentadas
A32: F

Sheet Composições
A4: UNIDADE ESCOLAR | H4: CÓDIGO INEP
A5: =Orçamento!$O$4 -> ACERVO DAS ESCOLAS EXTINTAS DE GOIÂNIA | H5: =Orçamento!$V$4 -> 0
A7: OBRA | H7: CIDADE
A8: =Orçamento!$O$7 -> AMPLIAÇÃO E REFORMA | H8: =Orçamento!$V$7 -> GOIÂNIA
A10: CRE | D10: ENDEREÇO | H10: REFERÊNCIA AGETOP
A11: =Orçamento!$O$10 -> GOIÂNIA | D11: =Orçamento!$R$10 -> AV. HUGO DE CARVALHO RAMOS, VILA IRANY | H11: =Orçamento!$S$10 -> ABR/19 | I11: =Orçamento!$T$10 -> ONERADA
A13: DATA | D13: ÁREA TOTAL CONSTRUÍDA (M²) | H13: REFERÊNCIA SINAPI
A14: =Orçamento!$S$7 -> 2020-09-02 | D14: =Orçamento!$V$13 -> 2413.75 | H14: =Orçamento!$V$10 -> OUT/19 | I14: =Orçamento!$W$10 -> ONERADA
A16: COMPOSIÇÕES DE CUSTOS UNITÁRIOS - SEE-GO
A17: 10 | B17: FONTE | C17: CÓDIGO | D17: DESCRIÇÃO | E17: UNIDADE | F17: COEFIC. | G17: CUSTO UNITÁRIO | I17: CUSTO TOTAL (A) + (B) + (C) + (D) + (E)
G18: DESONERADO | H18: NÃO DESONER. | I18: DESONERADO | J18: NÃO DESONER.
B19: COMPOSIÇÃO | C19: COMP 010_SEE | D19: DEMOLIÇÃO DE GRADE/GRELHA/CORRIMÃO/GUARDA CORPO - METÁLICO | E19: M2 | G19: - | H19: - | I19: 4.06 | J19: 4.71
G20: 0 | H20: 0 | I20: 0 | J20: 0
G21: 0 | H21: 0 | I21: 0 | J21: 0
G22: 0 | H22: 0 | I22: 0 | J22: 0
B23: MÃO DE OBRA (B) - TOTAL | I23: 0 | J23: 0
B24: AGETOP | C24: 20106 | D24: RETIRADA DE JANELAS OU PORTAIS C/ TRANSP. ATÉ CB. E CARGA | E24: m2 | F24: 1 | G24: 4.06 | H24: 4.71 | I24: 4.06 | J24: 4.71
G25: 0 | H25: 0 | I25: 0 | J25: 0
G26: 0 | H26: 0 | I26: 0 | J26: 0
B27: MATERIAL (C) - TOTAL | I27: 4.06 | J27: 4.71
A29: 387 | B29: FONTE | C29: CÓDIGO | D29: DESCRIÇÃO | E29: UNIDADE | F29: COEFIC. | G29: CUSTO UNITÁRIO | I29: CUSTO TOTAL (A) + (B) + (C) + (D) + (E)
G30: DESONERADO | H30: NÃO DESONER. | I30: DESONERADO | J30: NÃO DESONER.
B31: COMPOSIÇÃO | C31: COMP 387_SEE | D31: LÂMPADA LED TUBULAR 18W | E31: UN | I31: 22.09 | J31: 22.11
B32: AGETOP_I | C32: 8 | D32: AJUDANTE | E32: h | F32: 0.015 | G32: 8.75 | H32: 10.14 | I32: 0.13 | J32: 0.15
B33: AGETOP_I | C33: 12 | D33: MATERIAL HIDRO-SANITÁRIO | E33: 0 | F33: 0.015 | G33: 0 | H33: 0 | I33: 0 | J33: 0
B34: MÃO DE OBRA (B) - TOTAL | I34: 0.13 | J34: 0.15
B35: COTAÇÃO | C35: COT 195_SEE | D35: LÂMPADA LED TUBULAR 18W | E35: UN | F35: 1 | G35: 21.96 | H35: 21.96 | I35: 21.96 | J35: 21.96
B36: MATERIAL (C) - TOTAL | I36: 21.96 | J36: 21.96
A38: 40 | B38: FONTE | C38: CÓDIGO | D38: DESCRIÇÃO | E38: UNIDADE | F38: COEFIC. | G38: CUSTO UNITÁRIO | I38: CUSTO TOTAL (A) + (B) + (C) + (D) + (E)
G39: DESONERADO | H39: NÃO DESONER. | I39: DESONERADO | J39: NÃO DESONER.
B40: COMPOSIÇÃO | C40: COMP 040_SEE | D40: CONJUNTO MOTOR-BOMBA ELÉTRICA TRIFÁSICO 380/220 V PARA VZ= 24,33 M³/H, HM= 46,24 M POTÊNCIA= 7,5 CV | E40: UN | I40: 3862.67 | J40: 3873.79
B41: AGETOP_I | C41: 8 | D41: AJUDANTE | E41: h | F41: 8 | G41: 8.75 | H41: 10.14 | I41: 70 | J41: 81.12
B42: AGETOP_I | C42: 11 | D42: MATERIAL ELÉTRICO | E42: 0 | F42: 8 | G42: 0 | H42: 0 | I42: 0 | J42: 0
B43: MÃO DE OBRA (B) - TOTAL | I43: 70 | J43: 81.12
B44: COTAÇÃO | C44: COT 008_SEE | D44: CONJUNTO MOTOR-BOMBA ELÉTRICA TRIFÁSICO 380/220 V PARA VZ= 24,33 M³/H, HM= 46,24 M POTÊNCIA= 7,5 CV | E44: UN | F44: 1 | G44: 3792.666667 | H44: 3792.666667 | I44: 3792.67 | J44: 3792.67
B45: MATERIAL (C) - TOTAL | I45: 3792.67 | J45: 3792.67
A47: 17 | B47: FONTE | C47: CÓDIGO | D47: DESCRIÇÃO | E47: UNIDADE | F47: COEFIC. | G47: CUSTO UNITÁRIO | I47: CUSTO TOTAL (A) + (B) + (C) + (D) + (E)
G48: DESONERADO | H48: NÃO DESONER. | I48: DESONERADO | J48: NÃO DESONER.
B49: COMPOSIÇÃO | C49: COMP 017_SEE | D49: REDUCAO GIRATÓRIA TIPO STORZ LATAO P/ INST. PREDIAL COMBATE A INCENDIO ENGATE RAPIDO 2.1/2" X 1.1/2" | E49: UN | G49: - | H49: - | I49: 97.09 | J49: 97.31
B50: AGETOP_I | C50: 8 | D50: AJUDANTE | E50: h | F50: 0.16 | G50: 8.75 | H50: 10.14 | I50: 1.4 | J50: 1.62
B51: AGETOP_I | C51: 11 | D51: MATERIAL ELÉTRICO | E51: 0 | F51: 0.16 | G51: 0 | H51: 0 | I51: 0 | J51: 0
B52: MÃO DE OBRA (B) - TOTAL | I52: 1.4 | J52: 1.62
B53: SINAPI_I | C53: 20972 | D53: REDUCAO FIXA TIPO STORZ, ENGATE RAPIDO 2.1/2" X 1.1/2", EM LATAO, PARA INSTALACAO PREDIAL COMBATE A INCENDIO PREDIAL | E53: UN | F53: 1 | G53: 95.69 | H53: 95.69 | I53: 95.69 | J53: 95.69
B54: MATERIAL (C) - TOTAL | I54: 95.69 | J54: 95.69
A56: 18 | B56: FONTE | C56: CÓDIGO | D56: DESCRIÇÃO | E56: UNIDADE | F56: COEFIC. | G56: CUSTO UNITÁRIO | I56: CUSTO TOTAL (A) + (B) + (C) + (D) + (E)
G57: DESONERADO | H57: NÃO DESONER. | I57: DESONERADO | J57: NÃO DESONER.
B58: COMPOSIÇÃO | C58: COMP 018_SEE | D58: CHAVE DUPLA P/ CONEXÕES TIPO STORZ EM LATÃO ENGATE RÁPIDO 1 1/2" X 2 1/2" | E58: UN | G58: - | H58: - | I58: 12.75 | J58: 12.75
B59: AGETOP_I | C59: 11 | D59: MATERIAL ELÉTRICO | E59: 0 | F59: 0.15 | G59: 0 | H59: 0 | I59: 0 | J59: 0
B60: MÃO DE OBRA (B) - TOTAL | I60: 0 | J60: 0
B61: SINAPI_I | C61: 20971 | D61: CHAVE DUPLA PARA CONEXOES TIPO STORZ, ENGATE RAPIDO 1 1/2" X 2 1/2", EM LATAO, PARA INSTALACAO PREDIAL COMBATE A INCENDIO | E61: UN | F61: 1 | G61: 12.75 | H61: 12.75 | I61: 12.75 | J61: 12.75
B62: MATERIAL (C) - TOTAL | I62: 12.75 | J62: 12.75
A64: 87 | B64: FONTE | C64: CÓDIGO | D64: DESCRIÇÃO | E64: UNIDADE | F64: COEFIC. | G64: CUSTO UNITÁRIO | I64: CUSTO TOTAL (A) + (B) + (C) + (D) + (E)
G65: DESONERADO | H65: NÃO DESONER. | I65: DESONERADO | J65: NÃO DESONER.
B66: COMPOSIÇÃO | C66: COMP 087_SEE | D66: REGISTRO DE GAVETA COM HASTE ASCENDENTE DE BRONZE 2 1/2" | E66: UN | I66: 241.73 | J66: 243.33
B67: AGETOP_I | C67: 8 | D67: AJUDANTE | E67: h | F67: 1.15 | G67: 8.75 | H67: 10.14 | I67: 10.06 | J67: 11.66
B68: AGETOP_I | C68: 11 | D68: MATERIAL ELÉTRICO | E68: 0 | F68: 1.15 | G68: 0 | H68: 0 | I68: 0 | J68: 0
B69: MÃO DE OBRA (B) - TOTAL | I69: 10.06 | J69: 11.66
B70: AGETOP_I | C70: H689 | F70: 2.82 | G70: 0 | H70: 0 | I70: 0 | J70: 0
B71: COTAÇÃO | C71: COT 017_SEE | D71: REGISTRO DE GAVETA COM HASTE ASCENDENTE DE BRONZE 2 1/2" | E71: UN | F71: 1 | G71: 231.6666667 | H71: 231.6666667 | I71: 231.67 | J71: 231.67
B72: MATERIAL (C) - TOTAL | I72: 231.67 | J72: 231.67
A74: 19 | B74: FONTE | C74: CÓDIGO | D74: DESCRIÇÃO | E74: UNIDADE | F74: COEFIC. | G74: CUSTO UNITÁRIO | I74: CUSTO TOTAL (A) + (B) + (C) + (D) + (E)
G75: DESONERADO | H75: NÃO DESONER. | I75: DESONERADO | J75: NÃO DESONER.
B76: COMPOSIÇÃO | C76: COMP 019_SEE | D76: TAMPÃO LATAO C/ CORRENTE P/ INSTALAÇÃO PREDIAL COMBATE A INCÊNDIO ENGATE RÁPIDO 1 1/2" | E76: UN | G76: - | H76: - | I76: 53.62 | J76: 53.83
B77: AGETOP_I | C77: 11 | D77: MATERIAL ELÉTRICO | E77: 0 | F77: 0.15 | G77: 0 | H77: 0 | I77: 0 | J77: 0
B78: AGETOP_I | C78: 8 | D78: AJUDANTE | E78: h | F78: 0.15 | G78: 8.75 | H78: 10.14 | I78: 1.31 | J78: 1.52
B79: MÃO DE OBRA (B) - TOTAL | I79: 1.31 | J79: 1.52
B80: SINAPI_I | C80: 20964 | D80: TAMPAO COM CORRENTE, EM LATAO, ENGATE RAPIDO 1 1/2", PARA INSTALACAO PREDIAL DE COMBATE A INCENDIO | E80: UN | F80: 1 | G80: 52.31 | H80: 52.31 | I80: 52.31 | J80: 52.31
B81: MATERIAL (C) - TOTAL | I81: 52.31 | J81: 52.31
A83: 88 | B83: FONTE | C83: CÓDIGO | D83: DESCRIÇÃO | E83: UNIDADE | F83: COEFIC. | G83: CUSTO UNITÁRIO | I83: CUSTO TOTAL (A) + (B) + (C) + (D) + (E)
G84: DESONERADO | H84: NÃO DESONER. | I84: DESONERADO | J84: NÃO DESONER.
B85: COMPOSIÇÃO | C85: COMP 088_SEE | D85: TE DE FERRO GALVANIZADO 90º X 2.1/2" X 1" | E85: UN | I85: 78.53 | J85: 79.4
B86: AGETOP_I | C86: 8 | D86: AJUDANTE | E86: h | F86: 0.624 | G86: 8.75 | H86: 10.14 | I86: 5.46 | J86: 6.33
B87: AGETOP_I | C87: 11 | D87: MATERIAL ELÉTRICO | E87: 0 | F87: 0.624 | G87: 0 | H87: 0 | I87: 0 | J87: 0
B88: MÃO DE OBRA (B) - TOTAL | I88: 5.46 | J88: 6.33
B89: AGETOP_I | C89: H689 | F89: 1.2 | G89: 0 | H89: 0 | I89: 0 | J89: 0
B90: SINAPI_I | C90: 6307 | D90: TE DE REDUCAO DE FERRO GALVANIZADO, COM ROSCA BSP, DE 2 1/2" X 1" | E90: UN | F90: 1 | G90: 73.07 | H90: 73.07 | I90: 73.07 | J90: 73.07
B91: MATERIAL (C) - TOTAL | I91: 73.07 | J91: 73.07
A93: 30 | B93: FONTE | C93: CÓDIGO | D93: DESCRIÇÃO | E93: UNIDADE | F93: COEFIC. | G93: CUSTO UNITÁRIO | I93: CUSTO TOTAL (A) + (B) + (C) + (D) + (E)
G94: DESONERADO | H94: NÃO DESONER. | I94: DESONERADO | J94: NÃO DESONER.
B95: COMPOSIÇÃO | C95: COMP 030_SEE | D95: COTOVELO DE FERRO GALV. 90° X 2 1/2" | E95: UN | I95: 56.78 | J95: 58.06
B96: AGETOP_I | C96: 8 | D96: AJUDANTE | E96: h | F96: 0.92 | G96: 8.75 | H96: 10.14 | I96: 8.05 | J96: 9.33
B97: AGETOP_I | C97: 11 | D97: MATERIAL ELÉTRICO | E97: 0 | F97: 0.92 | G97: 0 | H97: 0 | I97: 0 | J97: 0
B98: MÃO DE OBRA (B) - TOTAL | I98: 8.05 | J98: 9.33
B99: SINAPI_I | C99: 3470 | D99: COTOVELO 90 GRAUS DE FERRO GALVANIZADO, COM ROSCA BSP, DE 2 1/2" | E99: UN | F99: 1 | G99: 48.73 | H99: 48.73 | I99: 48.73 | J99: 48.73
B100: AGETOP_I | C100: H689 | F100: 2 | G100: 0 | H100: 0 | I100: 0 | J100: 0
B101: MATERIAL (C) - TOTAL | I101: 48.73 | J101: 48.73
A103: 77 | B103: FONTE | C103: CÓDIGO | D103: DESCRIÇÃO | E103: UNIDADE | F103: COEFIC. | G103: CUSTO UNITÁRIO | I103: CUSTO TOTAL (A) + (B) + (C) + (D) + (E)
G104: DESONERADO | H104: NÃO DESONER. | I104: DESONERADO | J104: NÃO DESONER.
B105: COMPOSIÇÃO | C105: COMP 077_SEE | D105: UNIAO FERRO GALV C/ASSENTO CONICO BRONZE 2 1/2" | E105: UN | I105: 142.49 | J105: 143.05
B106: AGETOP_I | C106: 8 | D106: AJUDANTE | E106: h | F106: 0.4 | G106: 8.75 | H106: 10.14 | I106: 3.5 | J106: 4.06
B107: AGETOP_I | C107: 11 | D107: MATERIAL ELÉTRICO | E107: 0 | F107: 0.4 | G107: 0 | H107: 0 | I107: 0 | J107: 0
B108: MÃO DE OBRA (B) - TOTAL | I108: 3.5 | J108: 4.06
B109: AGETOP_I | C109: H689 | F109: 2.4 | G109: 0 | H109: 0 | I109: 0 | J109: 0
B110: SINAPI_I | C110: 12427 | D110: UNIAO COM ASSENTO CONICO DE BRONZE, DIAMETRO 2 1/2" | E110: UN | F110: 1 | G110: 138.99 | H110: 138.99 | I110: 138.99 | J110: 138.99
B111: MATERIAL (C) - TOTAL | I111: 138.99 | J111: 138.99
A113: 22 | B113: FONTE | C113: CÓDIGO | D113: DESCRIÇÃO | E113: UNIDADE | F113: COEFIC. | G113: CUSTO UNITÁRIO | I113: CUSTO TOTAL (A) + (B) + (C) + (D) + (E)
G114: DESONERADO | H114: NÃO DESONER. | I114: DESONERADO | J114: NÃO DESONER.
B115: COMPOSIÇÃO | C115: COMP 022_SEE | D115: TAMPÃO FOFO 40X50CM C/INSCRIÇÃO | E115: UN | G115: - | H115: - | I115: 195.55 | J115: 195.55
B116: AGETOP_I | C116: 11 | D116: MATERIAL ELÉTRICO | E116: 0 | F116: 0.15 | G116: 0 | H116: 0 | I116: 0 | J116: 0
B117: MÃO DE OBRA (B) - TOTAL | I117: 0 | J117: 0
B118: SINAPI_I | C118: 11293 | D118: TAMPAO FOFO SIMPLES COM BASE, CLASSE A15 CARGA MAX 1,5 T, 400 X 500 MM, COM INSCRICAO INCENDIO | E118: UN | F118: 1 | G118: 195.55 | H118: 195.55 | I118: 195.55 | J118: 195.55
B119: MATERIAL (C) - TOTAL | I119: 195.55 | J119: 195.55
A121: 24 | B121: FONTE | C121: CÓDIGO | D121: DESCRIÇÃO | E121: UNIDADE | F121: COEFIC. | G121: CUSTO UNITÁRIO | I121: CUSTO TOTAL (A) + (B) + (C) + (D) + (E)
G122: DESONERADO | H122: NÃO DESONER. | I122: DESONERADO | J122: NÃO DESONER.
B123: COMPOSIÇÃO | C123: COMP 024_SEE | D123: SINALIZADOR FOTOLUMINESCENTE PARA EXTINTOR | E123: UN | G123: - | H123: - | I123: 24.16 | J123: 24.28
B124: AGETOP_I | C124: 5 | D124: SERVENTE | E124: h | F124: 0.09 | G124: 8.75 | H124: 10.14 | I124: 0.79 | J124: 0.91
B125: MÃO DE OBRA (B) - TOTAL | I125: 0.79 | J125: 0.91
B126: AGETOP_I | C126: 3070 | D126: BUCHA DE NYLON S-6 | E126: un | F126: 2 | G126: 0.04 | H126: 0.04 | I126: 0.08 | J126: 0.08
B127: AGETOP_I | C127: 3393 | D127: PARAFUSO P/BUCHA S-6 | E127: un | F127: 2 | G127: 0.08 | H127: 0.08 | I127: 0.16 | J127: 0.16
B128: SINAPI_I | C128: 37556 | D128: PLACA DE SINALIZACAO DE SEGURANCA CONTRA INCENDIO, FOTOLUMINESCENTE, QUADRADA, *20 X 20* CM, EM PVC *2* MM ANTI-CHAMAS (SIMBOLOS, CORES E PICTOGRAMAS CONFORME NBR 13434) | E128: UN | F128: 1 | G128: 23.13 | H128: 23.13 | I128: 23.13 | J128: 23.13
B129: MATERIAL (C) - TOTAL | I129: 23.37 | J129: 23.37
A131: 186 | B131: FONTE | C131: CÓDIGO | D131: DESCRIÇÃO | E131: UNIDADE | F131: COEFIC. | G131: CUSTO UNITÁRIO | I131: CUSTO TOTAL (A) + (B) + (C) + (D) + (E)
G132: DESONERADO | H132: NÃO DESONER. | I132: DESONERADO | J132: NÃO DESONER.
B133: COMPOSIÇÃO | C133: COMP 186_SEE | D133: BOTOEIRA BOMBA DE INCÊNDIO C/ MARTELO CONVENCIONAL/ ANALÓGICA | E133: UN | I133: 72.25 | J133: 73.64
B134: AGETOP_I | C134: 8 | D134: AJUDANTE | E134: h | F134: 1 | G134: 8.75 | H134: 10.14 | I134: 8.75 | J134: 10.14
B135: AGETOP_I | C135: 12 | D135: MATERIAL HIDRO-SANITÁRIO | E135: 0 | F135: 1 | G135: 0 | H135: 0 | I135: 0 | J135: 0
B136: MÃO DE OBRA (B) - TOTAL | I136: 8.75 | J136: 10.14
B137: COTAÇÃO | C137: COT 088_SEE | D137: BOTOEIRA BOMBA DE INCÊNDIO C/ MARTELO CONVENCIONAL/ ANALÓGICA | E137: UN | F137: 1 | G137: 63.5 | H137: 63.5 | I137: 63.5 | J137: 63.5
B138: MATERIAL (C) - TOTAL | I138: 63.5 | J138: 63.5
A140: 188 | B140: FONTE | C140: CÓDIGO | D140: DESCRIÇÃO | E140: UNIDADE | F140: COEFIC. | G140: CUSTO UNITÁRIO | I140: CUSTO TOTAL (A) + (B) + (C) + (D) + (E)
G141: DESONERADO | H141: NÃO DESONER. | I141: DESONERADO | J141: NÃO DESONER.
B142: COMPOSIÇÃO | C142: COMP 188_SEE | D142: ACIONADOR MANUAL DE ALARME | E142: UN | I142: 90.33 | J142: 91.44
B143: AGETOP_I | C143: 8 | D143: AJUDANTE | E143: h | F143: 0.8 | G143: 8.75 | H143: 10.14 | I143: 7 | J143: 8.11
B144: AGETOP_I | C144: 12 | D144: MATERIAL HIDRO-SANITÁRIO | E144: 0 | F144: 0.8 | G144: 0 | H144: 0 | I144: 0 | J144: 0
B145: MÃO DE OBRA (B) - TOTAL | I145: 7 | J145: 8.11
B146: COTAÇÃO | C146: COT 090_SEE | D146: ACIONADOR MANUAL DE ALARME | E146: UN | F146: 1 | G146: 83.33333333 | H146: 83.33333333 | I146: 83.33 | J146: 83.33
B147: MATERIAL (C) - TOTAL | I147: 83.33 | J147: 83.33
A149: 190 | B149: FONTE | C149: CÓDIGO | D149: DESCRIÇÃO | E149: UNIDADE | F149: COEFIC. | G149: CUSTO UNITÁRIO | I149: CUSTO TOTAL (A) + (B) + (C) + (D) + (E)
G150: DESONERADO | H150: NÃO DESONER. | I150: DESONERADO | J150: NÃO DESONER.
B151: COMPOSIÇÃO | C151: COMP 190_SEE | D151: CENTRAL DE DETECÇÃO E ALARME DE 40 SETORES COM BATERIA | E151: UN | I151: 1033.33 | J151: 1044.45
B152: AGETOP_I | C152: 8 | D152: AJUDANTE | E152: h | F152: 8 | G152: 8.75 | H152: 10.14 | I152: 70 | J152: 81.12
B153: AGETOP_I | C153: 12 | D153: MATERIAL HIDRO-SANITÁRIO | E153: 0 | F153: 8 | G153: 0 | H153: 0 | I153: 0 | J153: 0
B154: MÃO DE OBRA (B) - TOTAL | I154: 70 | J154: 81.12
B155: COTAÇÃO | C155: COT 092_SEE | D155: CENTRAL DE DETECÇÃO E ALARME DE 40 SETORES COM BATERIA (PREÇO MÉDIO) | E155: UN | F155: 1 | G155: 963.3333333 | H155: 963.3333333 | I155: 963.33 | J155: 963.33
B156: MATERIAL (C) - TOTAL | I156: 963.33 | J156: 963.33
A158: 25 | B158: FONTE | C158: CÓDIGO | D158: DESCRIÇÃO | E158: UNIDADE | F158: COEFIC. | G158: CUSTO UNITÁRIO | I158: CUSTO TOTAL (A) + (B) + (C) + (D) + (E)
G159: DESONERADO | H159: NÃO DESONER. | I159: DESONERADO | J159: NÃO DESONER.
B160: COMPOSIÇÃO | C160: COMP 025_SEE | D160: SINALIZADOR FOTOLUMINESCENTE DE EMERGÊNCIA | E160: UN | G160: - | H160: - | I160: 24.16 | J160: 24.28
B161: AGETOP_I | C161: 5 | D161: SERVENTE | E161: h | F161: 0.09 | G161: 8.75 | H161: 10.14 | I161: 0.79 | J161: 0.91
B162: MÃO DE OBRA (B) - TOTAL | I162: 0.79 | J162: 0.91
B163: AGETOP_I | C163: 3070 | D163: BUCHA DE NYLON S-6 | E163: un | F163: 2 | G163: 0.04 | H163: 0.04 | I163: 0.08 | J163: 0.08
B164: AGETOP_I | C164: 3393 | D164: PARAFUSO P/BUCHA S-6 | E164: un | F164: 2 | G164: 0.08 | H164: 0.08 | I164: 0.16 | J164: 0.16
B165: SINAPI_I | C165: 37556 | D165: PLACA DE SINALIZACAO DE SEGURANCA CONTRA INCENDIO, FOTOLUMINESCENTE, QUADRADA, *20 X 20* CM, EM PVC *2* MM ANTI-CHAMAS (SIMBOLOS, CORES E PICTOGRAMAS CONFORME NBR 13434) | E165: UN | F165: 1 | G165: 23.13 | H165: 23.13 | I165: 23.13 | J165: 23.13
B166: MATERIAL (C) - TOTAL | I166: 23.37 | J166: 23.37
A168: 277 | B168: FONTE | C168: CÓDIGO | D168: DESCRIÇÃO | E168: UNIDADE | F168: COEFIC. | G168: CUSTO UNITÁRIO | I168: CUSTO TOTAL (A) + (B) + (C) + (D) + (E)
G169: DESONERADO | H169: NÃO DESONER. | I169: DESONERADO | J169: NÃO DESONER.
B170: COMPOSIÇÃO | C170: COMP 277_SEE | D170: MARCAÇÃO NO PISO - 1X1 M PARA EXTINTOR | E170: M2 | I170: 29.42 | J170: 29.49
B171: AGETOP_I | C171: 5 | D171: SERVENTE | E171: h | F171: 0.0333 | G171: 8.75 | H171: 10.14 | I171: 0.29 | J171: 0.34
B172: MÃO DE OBRA (B) - TOTAL | I172: 0.29 | J172: 0.34
B173: SINAPI_I | C173: 5318 | D173: SOLVENTE DILUENTE A BASE DE AGUARRAS | E173: L | F173: 0.13 | G173: 10.86 | H173: 10.86 | I173: 1.41 | J173: 1.41
B174: SINAPI | C174: 5824 | D174: CAMINHÃO TOCO, PBT 16.000 KG, CARGA ÚTIL MÁX. 10.685 KG, DIST. ENTRE EIXOS 4,8 M, POTÊNCIA 189 CV, INCLUSIVE CARROCERIA FIXA ABERTA DE MADEIRA P/ TRANSPORTE GERAL DE CARGA SECA, DIMEN. APROX. 2,5 X 7,00 X 0,50 M - CHP DIURNO. AF_06/2014 | E174: CHP | F174: 0.0033 | G174: 123.81 | H174: 127 | I174: 0.41 | J174: 0.42
B175: SINAPI_I | C175: 7343 | D175: TINTA A BASE DE RESINA ACRILICA, PARA SINALIZACAO HORIZONTAL VIARIA (NBR 11862) | E175: L | F175: 0.6 | G175: 12.55 | H175: 12.55 | I175: 7.53 | J175: 7.53
B176: SINAPI_I | C176: 7348 | D176: TINTA ACRILICA PREMIUM PARA PISO | E176: L | F176: 0.03 | G176: 13.5 | H176: 13.5 | I176: 0.41 | J176: 0.41
B177: SINAPI_I | C177: 25972 | D177: MICROESFERAS DE VIDRO PARA SINALIZACAO HORIZONTAL VIARIA, TIPO I-B (PREMIX) - NBR 16184 | E177: KG | F177: 2.14 | G177: 8.88 | H177: 8.88 | I177: 19 | J177: 19
B178: SINAPI | C178: 95133 | D178: MÁQUINA DEMARCADORA DE FAIXA DE TRÁFEGO À FRIO, AUTOPROPELIDA, POTÊNCIA 38 HP - CHP DIURNO. AF_07/2016 | E178: CHP | F178: 0.0033 | G178: 111.85 | H178: 115.4 | I178: 0.37 | J178: 0.38
B179: MATERIAL (C) - TOTAL | I179: 29.13 | J179: 29.15
A181: 80 | B181: FONTE | C181: CÓDIGO | D181: DESCRIÇÃO | E181: UNIDADE | F181: COEFIC. | G181: CUSTO UNITÁRIO | I181: CUSTO TOTAL (A) + (B) + (C) + (D) + (E)
G182: DESONERADO | H182: NÃO DESONER. | I182: DESONERADO | J182: NÃO DESONER.
B183: COMPOSIÇÃO | C183: COMP 080_SEE | D183: BUCHA REDUCAO FERRO GALV ROSCA REF. 2 1/2"X1" | E183: UN | I183: 26.78 | J183: 27.17
B184: AGETOP_I | C184: 8 | D184: AJUDANTE | E184: h | F184: 0.28 | G184: 8.75 | H184: 10.14 | I184: 2.45 | J184: 2.84
B185: AGETOP_I | C185: 11 | D185: MATERIAL ELÉTRICO | E185: 0 | F185: 0.28 | G185: 0 | H185: 0 | I185: 0 | J185: 0
B186: MÃO DE OBRA (B) - TOTAL | I186: 2.45 | J186: 2.84
B187: SINAPI_I | C187: 3148 | D187: FITA VEDA ROSCA EM ROLOS DE 18 MM X 50 M (L X C) | E187: UN | F187: 0.0245 | G187: 14.38 | H187: 14.38 | I187: 0.35 | J187: 0.35
B188: SINAPI_I | C188: 773 | D188: BUCHA DE REDUCAO DE FERRO GALVANIZADO, COM ROSCA BSP, DE 2 1/2" X 1" | E188: UN | F188: 1 | G188: 23.98 | H188: 23.98 | I188: 23.98 | J188: 23.98
B189: MATERIAL (C) - TOTAL | I189: 24.33 | J189: 24.33
A191: 382 | B191: FONTE | C191: CÓDIGO | D191: DESCRIÇÃO | E191: UNIDADE | F191: COEFIC. | G191: CUSTO UNITÁRIO | I191: CUSTO TOTAL (A) + (B) + (C) + (D) + (E)
G192: DESONERADO | H192: NÃO DESONER. | I192: DESONERADO | J192: NÃO DESONER.
B193: COMPOSIÇÃO | C193: COMP 382_SEE | D193: TE DE REDUCAO DE FERRO GALVANIZADO, COM ROSCA BSP, DE 3/4" X 1/2" | E193: UN | I193: 14.08 | J193: 14.91
B194: AGETOP_I | C194: 8 | D194: AJUDANTE | E194: h | F194: 0.6 | G194: 8.75 | H194: 10.14 | I194: 5.25 | J194: 6.08
B195: AGETOP_I | C195: 11 | D195: MATERIAL ELÉTRICO | E195: 0 | F195: 0.6105 | G195: 0 | H195: 0 | I195: 0 | J195: 0
B196: MÃO DE OBRA (B) - TOTAL | I196: 5.25 | J196: 6.08
B197: SINAPI_I | C197: 3146 | D197: FITA VEDA ROSCA EM ROLOS DE 18 MM X 10 M (L X C) | E197: UN | F197: 0.120754717 | G197: 3.9 | H197: 3.9 | I197: 0.47 | J197: 0.47
B198: SINAPI_I | C198: 6302 | D198: TE DE REDUCAO DE FERRO GALVANIZADO, COM ROSCA BSP, DE 3/4" X 1/2" | E198: UN | F198: 1 | G198: 8.36 | H198: 8.36 | I198: 8.36 | J198: 8.36
B199: MATERIAL (C) - TOTAL | I199: 8.83 | J199: 8.83
A201: 383 | B201: FONTE | C201: CÓDIGO | D201: DESCRIÇÃO | E201: UNIDADE | F201: COEFIC. | G201: CUSTO UNITÁRIO | I201: CUSTO TOTAL (A) + (B) + (C) + (D) + (E)
G202: DESONERADO | H202: NÃO DESONER. | I202: DESONERADO | J202: NÃO DESONER.
B203: COMPOSIÇÃO | C203: COMP 383_SEE | D203: BUCHA DE REDUCAO DE FERRO GALVANIZADO, COM ROSCA BSP, DE 1/2" X 1/4" | E203: UN | I203: 4.48 | J203: 4.7
B204: AGETOP_I | C204: 8 | D204: AJUDANTE | E204: h | F204: 0.16 | G204: 8.75 | H204: 10.14 | I204: 1.4 | J204: 1.62
B205: AGETOP_I | C205: 11 | D205: MATERIAL ELÉTRICO | E205: 0 | F205: 0.16 | G205: 0 | H205: 0 | I205: 0 | J205: 0
B206: MÃO DE OBRA (B) - TOTAL | I206: 1.4 | J206: 1.62
B207: AGETOP_I | C207: H689 | F207: 1.2 | G207: 0 | H207: 0 | I207: 0 | J207: 0
B208: SINAPI_I | C208: 770 | D208: BUCHA DE REDUCAO DE FERRO GALVANIZADO, COM ROSCA BSP, DE 1/2" X 1/4" | E208: UN | F208: 1 | G208: 3.08 | H208: 3.08 | I208: 3.08 | J208: 3.08
B209: MATERIAL (C) - TOTAL | I209: 3.08 | J209: 3.08
A211: 212 | B211: FONTE | C211: CÓDIGO | D211: DESCRIÇÃO | E211: UNIDADE | F211: COEFIC. | G211: CUSTO UNITÁRIO | I211: CUSTO TOTAL (A) + (B) + (C) + (D) + (E)
G212: DESONERADO | H212: NÃO DESONER. | I212: DESONERADO | J212: NÃO DESONER.
B213: COMPOSIÇÃO | C213: COMP 212_SEE | D213: NIPLE DE REDUÇÃO 1/2" X 1/4" BSP | E213: UN | I213: 7.45 | J213: 7.67
B214: AGETOP_I | C214: 8 | D214: AJUDANTE | E214: h | F214: 0.16 | G214: 8.75 | H214: 10.14 | I214: 1.4 | J214: 1.62
B215: AGETOP_I | C215: 11 | D215: MATERIAL ELÉTRICO | E215: 0 | F215: 0.16 | G215: 0 | H215: 0 | I215: 0 | J215: 0
B216: MÃO DE OBRA (B) - TOTAL | I216: 1.4 | J216: 1.62
B217: COTAÇÃO | C217: COT 103_SEE | D217: NIPLE DE REDUÇÃO 1/2" X 1/4" BSP | E217: UN | F217: 1 | G217: 6.053333333 | H217: 6.053333333 | I217: 6.05 | J217: 6.05
B218: MATERIAL (C) - TOTAL | I218: 6.05 | J218: 6.05
A220: 213 | B220: FONTE | C220: CÓDIGO | D220: DESCRIÇÃO | E220: UNIDADE | F220: COEFIC. | G220: CUSTO UNITÁRIO | I220: CUSTO TOTAL (A) + (B) + (C) + (D) + (E)
G221: DESONERADO | H221: NÃO DESONER. | I221: DESONERADO | J221: NÃO DESONER.
B222: COMPOSIÇÃO | C222: COMP 213_SEE | D222: NIPLE DE REDUÇÃO 3/4" X 1/2" BSP | E222: UN | I222: 11.11 | J222: 11.33
B223: AGETOP_I | C223: 8 | D223: AJUDANTE | E223: h | F223: 0.16 | G223: 8.75 | H223: 10.14 | I223: 1.4 | J223: 1.62
B224: AGETOP_I | C224: 11 | D224: MATERIAL ELÉTRICO | E224: 0 | F224: 0.16 | G224: 0 | H224: 0 | I224: 0 | J224: 0
B225: MÃO DE OBRA (B) - TOTAL | I225: 1.4 | J225: 1.62
B226: COTAÇÃO | C226: COT 104_SEE | D226: NIPLE DE REDUÇÃO 3/4" X 1/2" BSP | E226: UN | F226: 1 | G226: 9.71 | H226: 9.71 | I226: 9.71 | J226: 9.71
B227: MATERIAL (C) - TOTAL | I227: 9.71 | J227: 9.71
A229: 237 | B229: FONTE | C229: CÓDIGO | D229: DESCRIÇÃO | E229: UNIDADE | F229: COEFIC. | G229: CUSTO UNITÁRIO | I229: CUSTO TOTAL (A) + (B) + (C) + (D) + (E)
... 105 more rows

Sheet Cotações
A4: UNIDADE ESCOLAR | H4: CÓDIGO INEP
A5: =Orçamento!$O$4 -> ACERVO DAS ESCOLAS EXTINTAS DE GOIÂNIA | H5: =Orçamento!$V$4 -> 0
A7: OBRA | H7: CIDADE
A8: =Orçamento!$O$7 -> AMPLIAÇÃO E REFORMA | H8: =Orçamento!$V$7 -> GOIÂNIA
A10: CRE | D10: ENDEREÇO | H10: REFERÊNCIA AGETOP
A11: =Orçamento!$O$10 -> GOIÂNIA | D11: =Orçamento!$R$10 -> AV. HUGO DE CARVALHO RAMOS, VILA IRANY | H11: =Orçamento!$S$10 -> ABR/19 | I11: =Orçamento!$T$10 -> ONERADA
A13: DATA | D13: ÁREA TOTAL CONSTRUÍDA (M²) | H13: REFERÊNCIA SINAPI
A14: =Orçamento!$S$7 -> 2020-09-02 | D14: =Orçamento!$V$13 -> 2413.75 | H14: =Orçamento!$V$10 -> OUT/19 | I14: =Orçamento!$W$10 -> ONERADA
A16: COTAÇÕES DE PREÇOS - SEE-GO
B17: FONTE | C17: CÓDIGO | D17: DESCRIÇÃO | E17: UNIDADE | F17: MÉDIA | H17: ÍNDICE RETROAÇÃO
F18: DESONERADA | G18: ONERADA
A19: 195 | B19: COTAÇÃO | C19: COT 195_SEE | D19: LÂMPADA LED TUBULAR 18W | E19: UN | F19: 21.96 | G19: 21.96
C20: EMPRESA | D20: NOME DA EMPRESA | F20: COTAÇÕES | H20: DATA COTAÇÃO
C21: E030 - AJEL M... | D21: AJEL MATERIAIS ELÉTRICOS | F21: 19.89 | G21: 19.89
C22: E013 - ELETRO... | D22: ELETROTRANSOL | F22: 25.99 | G22: 25.99
C23: E014 - MAKRO ... | D23: MAKRO SERVICE | F23: 20 | G23: 20
C26: OBSERVAÇÕES:
B28: FONTE | C28: CÓDIGO | D28: DESCRIÇÃO | E28: UNIDADE | F28: MÉDIA | H28: ÍNDICE RETROAÇÃO
F29: DESONERADA | G29: ONERADA
A30: 8 | B30: COTAÇÃO | C30: COT 008_SEE | D30: CONJUNTO MOTOR-BOMBA ELÉTRICA TRIFÁSICO 380/220 V PARA VZ= 24,33 M³/H, HM= 46,24 M POTÊNCIA= 7,5 CV | E30: UN | F30: 3792.666667 | G30: 3792.666667
C31: EMPRESA | D31: NOME DA EMPRESA | F31: COTAÇÕES | H31: DATA COTAÇÃO
C32: E036 - TECNOB... | D32: TECNOBOMBAS | F32: 4200 | G32: 4200 | H32: 05.02.2019
C33: E039 - ESPÍND... | D33: ESPÍNDOLA E ANDRADE LTDA-ME | F33: 3178 | G33: 3178 | H33: 05.02.2019
C34: E054 - R M D ... | D34: R M D DE SOUZA EIRELI - ME | F34: 4000 | G34: 4000 | H34: 06.02.2019
C37: OBSERVAÇÕES:
B39: FONTE | C39: CÓDIGO | D39: DESCRIÇÃO | E39: UNIDADE | F39: MÉDIA | H39: ÍNDICE RETROAÇÃO
F40: DESONERADA | G40: ONERADA
A41: 17 | B41: COTAÇÃO | C41: COT 017_SEE | D41: REGISTRO DE GAVETA COM HASTE ASCENDENTE DE BRONZE 2 1/2" | E41: UN | F41: 231.6666667 | G41: 231.6666667
C42: EMPRESA | D42: NOME DA EMPRESA | F42: COTAÇÕES | H42: DATA COTAÇÃO
C43: E034 - VALK T... | D43: VALK TUBOS | F43: 220 | G43: 220
C44: E035 - ACIONA... | D44: ACIONAR SERVIÇOS E EQUIPAMENTOS CONTRA INCÊNDIO | F44: 250 | G44: 250
C45: E038 - CENTER... | D45: CENTER FIRE | F45: 225 | G45: 225
C48: OBSERVAÇÕES:
B50: FONTE | C50: CÓDIGO | D50: DESCRIÇÃO | E50: UNIDADE | F50: MÉDIA | H50: ÍNDICE RETROAÇÃO
F51: DESONERADA | G51: ONERADA
A52: 88 | B52: COTAÇÃO | C52: COT 088_SEE | D52: BOTOEIRA BOMBA DE INCÊNDIO C/ MARTELO CONVENCIONAL/ ANALÓGICA | E52: UN | F52: 63.5 | G52: 63.5
C53: EMPRESA | D53: NOME DA EMPRESA | F53: COTAÇÕES | H53: DATA COTAÇÃO
C54: E034 - VALK T... | D54: VALK TUBOS | F54: 58 | G54: 58
C55: E035 - ACIONA... | D55: ACIONAR SERVIÇOS E EQUIPAMENTOS CONTRA INCÊNDIO | F55: 67.5 | G55: 67.5
C56: E038 - CENTER... | D56: CENTER FIRE | F56: 65 | G56: 65
C59: OBSERVAÇÕES:
B61: FONTE | C61: CÓDIGO | D61: DESCRIÇÃO | E61: UNIDADE | F61: MÉDIA | H61: ÍNDICE RETROAÇÃO
F62: DESONERADA | G62: ONERADA
A63: 90 | B63: COTAÇÃO | C63: COT 090_SEE | D63: ACIONADOR MANUAL DE ALARME | E63: UN | F63: 83.33333333 | G63: 83.33333333
C64: EMPRESA | D64: NOME DA EMPRESA | F64: COTAÇÕES | H64: DATA COTAÇÃO
C65: E034 - VALK T... | D65: VALK TUBOS | F65: 120 | G65: 120
C66: E035 - ACIONA... | D66: ACIONAR SERVIÇOS E EQUIPAMENTOS CONTRA INCÊNDIO | F66: 65 | G66: 65
C67: E038 - CENTER... | D67: CENTER FIRE | F67: 65 | G67: 65
C70: OBSERVAÇÕES:
B72: FONTE | C72: CÓDIGO | D72: DESCRIÇÃO | E72: UNIDADE | F72: MÉDIA | H72: ÍNDICE RETROAÇÃO
F73: DESONERADA | G73: ONERADA
A74: 92 | B74: COTAÇÃO | C74: COT 092_SEE | D74: CENTRAL DE DETECÇÃO E ALARME DE 40 SETORES COM BATERIA (PREÇO MÉDIO) | E74: UN | F74: 963.3333333 | G74: 963.3333333
C75: EMPRESA | D75: NOME DA EMPRESA | F75: COTAÇÕES | H75: DATA COTAÇÃO
C76: E034 - VALK T... | D76: VALK TUBOS | F76: 840 | G76: 840
C77: E035 - ACIONA... | D77: ACIONAR SERVIÇOS E EQUIPAMENTOS CONTRA INCÊNDIO | F77: 980 | G77: 980
C78: E038 - CENTER... | D78: CENTER FIRE | F78: 1070 | G78: 1070
C81: OBSERVAÇÕES:
B83: FONTE | C83: CÓDIGO | D83: DESCRIÇÃO | E83: UNIDADE | F83: MÉDIA | H83: ÍNDICE RETROAÇÃO
F84: DESONERADA | G84: ONERADA
A85: 103 | B85: COTAÇÃO | C85: COT 103_SEE | D85: NIPLE DE REDUÇÃO 1/2" X 1/4" BSP | E85: UN | F85: 6.053333333 | G85: 6.053333333
C86: EMPRESA | D86: NOME DA EMPRESA | F86: COTAÇÕES | H86: DATA COTAÇÃO
C87: E070 - FOCO R... | D87: FOCO REPRESENTAÇÃO E CONSULTORIA LTDA-ME | F87: 4.46 | G87: 4.46 | H87: 12/02/2019
C88: E071 - CASA D... | D88: CASA DAS PEÇAS COM E INDUSTRIA DE FOGOES LTDA | F88: 3.9 | G88: 3.9 | H88: 11/02/2019
C89: E072 - AMIG I... | D89: AMIG INSTALAÇÃO DE REDE DE GÁS E INCÊNDIO | F89: 9.8 | G89: 9.8 | H89: 08/02/2019
C92: OBSERVAÇÕES:
B94: FONTE | C94: CÓDIGO | D94: DESCRIÇÃO | E94: UNIDADE | F94: MÉDIA | H94: ÍNDICE RETROAÇÃO
F95: DESONERADA | G95: ONERADA
A96: 104 | B96: COTAÇÃO | C96: COT 104_SEE | D96: NIPLE DE REDUÇÃO 3/4" X 1/2" BSP | E96: UN | F96: 9.71 | G96: 9.71
C97: EMPRESA | D97: NOME DA EMPRESA | F97: COTAÇÕES | H97: DATA COTAÇÃO
C98: E070 - FOCO R... | D98: FOCO REPRESENTAÇÃO E CONSULTORIA LTDA-ME | F98: 10.93 | G98: 10.93 | H98: 12/02/2019
C99: E071 - CASA D... | D99: CASA DAS PEÇAS COM E INDUSTRIA DE FOGOES LTDA | F99: 5.5 | G99: 5.5 | H99: 11/02/2019
C100: E072 - AMIG I... | D100: AMIG INSTALAÇÃO DE REDE DE GÁS E INCÊNDIO | F100: 12.7 | G100: 12.7 | H100: 08/02/2019
C103: OBSERVAÇÕES:
B105: FONTE | C105: CÓDIGO | D105: DESCRIÇÃO | E105: UNIDADE | F105: MÉDIA | H105: ÍNDICE RETROAÇÃO
F106: DESONERADA | G106: ONERADA
A107: 281 | B107: COTAÇÃO | C107: COT 281_SEE | D107: VÁLVULA UGV 3/4" (S) LATÃO | E107: UN | F107: 15.83666667 | G107: 15.83666667
C108: EMPRESA | D108: NOME DA EMPRESA | F108: COTAÇÕES | H108: DATA COTAÇÃO
C109: E070 - FOCO R... | D109: FOCO REPRESENTAÇÃO E CONSULTORIA LTDA-ME | F109: 12.51 | G109: 12.51 | H109: 12/02/2019
C110: E071 - CASA D... | D110: CASA DAS PEÇAS COM E INDUSTRIA DE FOGOES LTDA | F110: 17.5 | G110: 17.5 | H110: 11/02/2019
C111: E072 - AMIG I... | D111: AMIG INSTALAÇÃO DE REDE DE GÁS E INCÊNDIO | F111: 17.5 | G111: 17.5 | H111: 08/02/2019
C114: OBSERVAÇÕES:
B116: FONTE | C116: CÓDIGO | D116: DESCRIÇÃO | E116: UNIDADE | F116: MÉDIA | H116: ÍNDICE RETROAÇÃO
F117: DESONERADA | G117: ONERADA
A118: 282 | B118: COTAÇÃO | C118: COT 282_SEE | D118: VÁLVULA UGV 1/2" (S) LATÃO | E118: UN | F118: 15.16666667 | G118: 15.16666667
C119: EMPRESA | D119: NOME DA EMPRESA | F119: COTAÇÕES | H119: DATA COTAÇÃO
C120: E070 - FOCO R... | D120: FOCO REPRESENTAÇÃO E CONSULTORIA LTDA-ME | F120: 11.2 | G120: 11.2 | H120: 12/02/2019
C121: E071 - CASA D... | D121: CASA DAS PEÇAS COM E INDUSTRIA DE FOGOES LTDA | F121: 17.5 | G121: 17.5 | H121: 11/02/2019
C122: E072 - AMIG I... | D122: AMIG INSTALAÇÃO DE REDE DE GÁS E INCÊNDIO | F122: 16.8 | G122: 16.8 | H122: 08/02/2019
C125: OBSERVAÇÕES:
B127: FONTE | C127: CÓDIGO | D127: DESCRIÇÃO | E127: UNIDADE | F127: MÉDIA | H127: ÍNDICE RETROAÇÃO
F128: DESONERADA | G128: ONERADA
A129: 102 | B129: COTAÇÃO | C129: COT 102_SEE | D129: REGULADOR DE 2º ESTÁGIO 5KG/H | E129: UN | F129: 59.83333333 | G129: 59.83333333
C130: EMPRESA | D130: NOME DA EMPRESA | F130: COTAÇÕES | H130: DATA COTAÇÃO
C131: E070 - FOCO R... | D131: FOCO REPRESENTAÇÃO E CONSULTORIA LTDA-ME | F131: 38.9 | G131: 38.9 | H131: 12/02/2019
C132: E071 - CASA D... | D132: CASA DAS PEÇAS COM E INDUSTRIA DE FOGOES LTDA | F132: 55.6 | G132: 55.6 | H132: 11/02/2019
C133: E072 - AMIG I... | D133: AMIG INSTALAÇÃO DE REDE DE GÁS E INCÊNDIO | F133: 85 | G133: 85 | H133: 08/02/2019
C136: OBSERVAÇÕES: | D136: AMIG enviou cotação de regulador de 2º estágio de 12kg/h.
B138: FONTE | C138: CÓDIGO | D138: DESCRIÇÃO | E138: UNIDADE | F138: MÉDIA | H138: ÍNDICE RETROAÇÃO
F139: DESONERADA | G139: ONERADA
A140: 101 | B140: COTAÇÃO | C140: COT 101_SEE | D140: REGULADOR DE 1º ESTÁGIO 60KG/H MODELO AP-40 COM MANÔMETRO | E140: UN | F140: 205.5766667 | G140: 205.5766667
C141: EMPRESA | D141: NOME DA EMPRESA | F141: COTAÇÕES | H141: DATA COTAÇÃO
C142: E070 - FOCO R... | D142: FOCO REPRESENTAÇÃO E CONSULTORIA LTDA-ME | F142: 148.73 | G142: 148.73 | H142: 12/02/2019
C143: E071 - CASA D... | D143: CASA DAS PEÇAS COM E INDUSTRIA DE FOGOES LTDA | F143: 198 | G143: 198 | H143: 11/02/2019
C144: E072 - AMIG I... | D144: AMIG INSTALAÇÃO DE REDE DE GÁS E INCÊNDIO | F144: 270 | G144: 270 | H144: 08/02/2019
C147: OBSERVAÇÕES:
